Workbook

Sheet TA (hidden)
D1: 0 | E1: 25 | F1: 50 | G1: 150.01
A2: 1 | B2: 2 | C2: 3 | D2: 4 | E2: 5 | F2: 6 | G2: 7
C3: One-way ESALs | D3: < 25 | E3: 25 - 50 | F3: 50 - 150 | G3: > 150
B4: Traffic | C4: two-way ADT | D4: < 500 | E4: 500 - 1000 | F4: 1000 - 3000 | G4: > 3000
C5: two-way HCADT | D5: < 25 | E5: 25 - 50 | F5: 50 - 150 | G5: > 150
B6: Surface Thickness, in. | D6: Allowable Deflections, inches
A7: 0 | B7: less than 3 in. | D7: 0.075 | E7: 0.07 | F7: 0.06 | G7: 0.045
A8: 3 | B8: 3 to 6 in. | D8: 0.065 | E8: 0.06 | F8: 0.05 | G8: 0.04
A9: 6.01 | B9: greater than 6 in. | D9: 0.055 | E9: 0.05 | F9: 0.04 | G9: 0.035
C12: 151 | D12: =HLOOKUP($C$12,$D$1:$G$2,2) -> 7
C13: 6.01 | D13: =VLOOKUP($C$13,$A$7:$G$9,$D$12) -> 0.035
D15: =VLOOKUP($C$13,$A$7:$G$9,HLOOKUP($C$12,$D$1:$G$2,2)) -> 0.035

Sheet Seasonal Adj Factors (hidden)
E2: BENKELMAN BEAM SEASONAL CORRECTION FACTORS
E4: 2006-12-31 | O4: bit | P4: 2 | Q4: =VLOOKUP(P4,C10:D14,2) -> 1
C5: Date | E5: 2007-05-01 | F5: 2007-05-16 | G5: 2007-06-01 | H5: 2007-06-16 | I5: 2007-07-01 | J5: 2007-07-16 | K5: 2007-08-01 | L5: 2007-08-16 | M5: 2007-09-01 | O5: julian | P5: 137 | Q5: =HLOOKUP(P5,E6:M7,2) -> 2
C6: Julian | E6: =YEARFRAC($E$4,E5,3)*365-1 -> 120 | F6: =YEARFRAC($E$4,F5,3)*365 -> 136 | G6: 152 | H6: 167 | I6: 182 | J6: 197 | K6: 213 | L6: 228 | M6: 244
D7: Index | E7: 1 | F7: 2 | G7: 3 | H7: 4 | I7: 5 | J7: 6 | K7: 7 | L7: 8 | M7: 9
E8: 2001-05-01 | F8: 2001-05-16 | G8: 2001-06-01 | H8: 2001-06-16 | I8: 2001-07-01 | J8: 2001-07-16 | K8: 2001-08-01 | L8: 2001-08-16
C9: Bit Lmt | D9: Index | E9: 2001-05-15 | F9: 2001-05-31 | G9: 2001-06-15 | H9: 2001-06-30 | I9: 2001-07-15 | J9: 2001-07-31 | K9: 2001-08-15 | L9: 2001-08-31 | M9: Sept.
A10: Plastic | B10: =< 2.0" | C10: 0 | D10: 1 | E10: 1.12 | F10: 1.29 | G10: 1.44 | H10: 1.53 | I10: 1.6 | J10: 1.65 | K10: 1.69 | L10: 1.73 | M10: 1.79
A11: Plastic | B11: >2" & <= 3.5" | C11: 2.01 | D11: 2 | E11: 1.17 | F11: 1.34 | G11: 1.5 | H11: 1.59 | I11: 1.63 | J11: 1.67 | K11: 1.71 | L11: 1.73 | M11: 1.75
A12: Plastic | B12: >3.5" & <= 5.5" | C12: 3.51 | D12: 3 | E12: 1.14 | F12: 1.24 | G12: 1.37 | H12: 1.43 | I12: 1.5 | J12: 1.58 | K12: 1.64 | L12: 1.7 | M12: 1.71 | O12: SAF | P12: =INDEX(E10:M14,Q4,Q5) -> 1.29
A13: Plastic | B13: >5.5" & <= 8.0" | C13: 5.51 | D13: 4 | E13: 1.17 | F13: 1.25 | G13: 1.25 | H13: 1.25 | I13: 1.26 | J13: 1.3 | K13: 1.41 | L13: 1.5 | M13: 1.55
A14: Plastic | B14: >8.0" Flex. | C14: 8.01 | D14: 5 | E14: 1.13 | F14: 1.18 | G14: 1.16 | H14: 1.13 | I14: 1.15 | J14: 1.18 | K14: 1.29 | L14: 1.37 | M14: 1.45
A15: Plastic | B15: >8.0" F-D | E15: 1.12 | F15: 1.16 | G15: 1.16 | H15: 1.1 | I15: 1.09 | J15: 1.15 | K15: 1.33 | L15: 1.46 | M15: 1.55
E18: 2001-05-01 | F18: 2001-05-16 | G18: 2001-06-01 | H18: 2001-06-16 | I18: 2001-07-01 | J18: 2001-07-16 | K18: 2001-08-01 | L18: 2001-08-16 | O18: bit | P18: =+P4 -> 2 | Q18: =VLOOKUP(P18,C20:D21,2) -> 1
E19: 2001-05-15 | F19: 2001-05-31 | G19: 2001-06-15 | H19: 2001-06-30 | I19: 2001-07-15 | J19: 2001-07-31 | K19: 2001-08-15 | L19: 2001-08-31 | M19: Sept.
A20: SP | B20: =< 5.0" | C20: 0 | D20: 1 | E20: 1.16 | F20: 1.35 | G20: 1.4 | H20: 1.5 | I20: 1.52 | J20: 1.51 | K20: 1.48 | L20: 1.46 | M20: 1.45 | O20: SAF | P20: =INDEX(E20:M21,Q18,Q5) -> 1.35
A21: SP | B21: > 5.0" | C21: 5.01 | D21: 2 | E21: 1.29 | F21: 1.4 | G21: 1.46 | H21: 1.5 | I21: 1.54 | J21: 1.58 | K21: 1.64 | L21: 1.69 | M21: 1.71
E24: 2001-05-01 | F24: 2001-05-16 | G24: 2001-06-01 | H24: 2001-06-16 | I24: 2001-07-01 | J24: 2001-07-16 | K24: 2001-08-01 | L24: 2001-08-16 | O24: bit | P24: =+P4 -> 2 | Q24: =VLOOKUP(P24,C26:D28,2) -> 1
E25: 2001-05-15 | F25: 2001-05-31 | G25: 2001-06-15 | H25: 2001-06-30 | I25: 2001-07-15 | J25: 2001-07-31 | K25: 2001-08-15 | L25: 2001-08-31 | M25: Sept.
A26: NP | B26: =< 2.0" | C26: 0 | D26: 1 | E26: 1.3 | F26: 1.41 | G26: 1.72 | H26: 1.79 | I26: 1.83 | J26: 1.83 | K26: 1.88 | L26: 1.88 | M26: 1.88
A27: NP | B27: >2" & <= 5.5" | C27: 2.01 | D27: 2 | E27: 1.21 | F27: 1.36 | G27: 1.47 | H27: 1.53 | I27: 1.58 | J27: 1.56 | K27: 1.52 | L27: 1.49 | M27: 1.44 | O27: SAF | P27: =INDEX(E26:M28,Q24,Q5) -> 1.41
A28: NP | B28: >5.5" & <= 8.0" | C28: 5.51 | D28: 3 | E28: 1 | F28: 1.02 | G28: 0.98 | H28: 1 | I28: 1.05 | J28: 1.05 | K28: 1.07 | L28: 1.11 | M28: 1.11

Sheet SUMMARY
A1: Version TONN2010 - 1.06 | D1: Test Date | H1: Pave. Temp. | I1: Segments (20 max) | AB1: Plastic | AD1: Conventional | AF1: 1 - ADT <500 HCADT <25
D2: ='FWD Data'!C4 -> 2013-05-28 | H2: =AVERAGE(CALC!C6:C1001) -> 65.09166689 | I2: =AH8 -> 1 | P2: =IF(I2>20,"TOO MANY SEGMENTS. REDUCE CHANGES TO HMA OR BASE THICKNESS","") ->  | AB2: Semi-Plastic | AD2: Full Depth | AF2: 2 - ADT 500-1000 HCADT 25-50
D3: Roadway | E3: From Station | F3: State | G3: State | H3: To Statiion | I3: District | K3: TONN ANALYSIS | O3: State | P3: Control Section | R3: Lane | S3: Direction | T3: Lat. and Long. | W3: State | AB3: Non-Plastic | AF3: 3 - ADT 1000-3000 HCADT 50-150
D4: ='FWD Data'!A2 -> JACKSON CSAH 23 | E4: =D11 -> 0.1 | F4: Aid | G4: Aid | H4: =OFFSET(D11:D1184,B11-1,0,1,1) -> 1.2 | I4: ='FWD Data'!C6 -> 7B | J4: Calculated | K4: Reported | O4: Aid | P4: ='FWD Data'!B2 -> 903223 | R4: ='FWD Data'!E6 -> Driving | S4: =IF('FWD Data'!D6>0,"Increasing",IF('FWD Data'!D6<0,"Decreasing",0)) -> Increasing | T4: =ROUND('FWD Data'!AB6,4)&", "&ROUND('FWD Data'!AC6,4) -> 43.6439, -94.9745 | W4: Aid | AB4: ENTER TYPE | AC4: 1 | AD4: 1 | AF4: 4 - ADT >3000 HCADT >150
A5: Previous Day's | J5: Capacity, Tons | L5: Overlay, in. | M5: Life, ESALs | N5: R-value | O5: GE | P5: Capacity, Tons | Q5: Moduli Statistics | U5: Depth to | V5: #1 Defl. | W5: R-value | AA5: 4 | AB5: 4 | AG5: ENTER TRAFFIC
A6: Max. Temp. ⁰F | I6: 85% Percentile | J6: =PERCENTILE(J11:J1001,0.15) ->  | L6: =PERCENTILE(L11:L1001,0.85) ->  | M6: =PERCENTILE(M11:M1001,0.15) ->  | N6: =PERCENTILE(N11:N1001,0.15) -> 12.30842819 | O6: =IFERROR(PERCENTILE(O11:O1001,0.15),"") ->  | P6: =VLOOKUP(I6,AB26:AC27,2) ->  | Q6: AC | R6: HMA (72° F) | S6: Base | T6: Subgrade | U6: Stiff Layer | V6: (mils) | W6: =IFERROR(PERCENTILE(W11:W1001,0.15),"") -> 
A7: Min. Temp. ⁰F | I7: Average | J7: =AVERAGE(J11:J1001) ->  | L7: =AVERAGE(L11:L1001) ->  | M7: =AVERAGE(M11:M1001) ->  | N7: =AVERAGE(N11:N1001) -> 17.56538828 | O7: =IFERROR(AVERAGE(O11:O1001),"") ->  | P7: =AVERAGE(P11:P1001) ->  | Q7: =AVERAGE(Q11:Q1001) ->  | T7: =AVERAGE(T11:T1001) ->  | V7: =AVERAGE(V11:V1001) -> 9.523333542 | W7: =IFERROR(AVERAGE(W11:W1001),"") ->  | AE7: 5 | AF7: 5
A8: Avg. Temp. ⁰ F | B8: =(B6+B7)/2 -> 0 | I8: Std. Dev. | J8: =STDEV(J11:J1001) ->  | L8: =STDEV(L11:L1001) ->  | M8: =STDEV(M11:M1001) ->  | N8: =STDEV(N11:N1001) -> 7.477481438 | O8: =IFERROR(STDEV(O11:O1001),"") ->  | P8: =STDEV(P11:P1001) ->  | Q8: =STDEV(Q11:Q1001) ->  | V8: =STDEV(V11:V1001) -> 4.175540086 | W8: =IFERROR(STDEV(W11:W1001),"") ->  | AB8: Daily ESALs | AC8: =IF(AF7=1,20,IF(AF7=2,35,IF(AF7=3,100,200))) -> 200 | AH8: =OFFSET(AH11:AH1011,B11-1,0,1,1) -> 1
E9: HMA | F9: Soil | G9: Traffic | H9: Base | J9: Calculated | K9: TONN2010 subgrade | P9: TONN2010 | Q9: Moduli | U9: Depth to | V9: #1 Defl. | W9: S.A. | AD9: =IFERROR(VLOOKUP(AE9,AE10:AF97,2),1) -> 1
A10: HMA Thickness (inches) | D10: Station | E10: Thickness | F10: Type | G10: Cat. | H10: Thickness | I10: ESALs | J10: Capacity, Tons | K10: as ksi for chart | L10: Overlay, in. | M10: Life, ESALs | N10: R-value | O10: GE | P10: Capacity, Tons | Q10: EAC | R10: HMA (72° F) | S10: Base | T10: Subgrade | U10: Stiff Layer | V10: (mils) | W10: R-Value | AB10: =COUNT($B$6:$B$7)<2 -> TRUE | AD10: 1 | AF10: 1 | AH10: segments
B11: =COUNT(D11:D1001) -> 12 | D11: =CALC!A6 -> 0.1 | E11: 0 | H11: 0 | I11: 0 | J11: =IFERROR(CALC!U6," ") ->  | K11: =IF(T11="",NA(),T11/1000) ->  | L11: =IFERROR(CALC!X6," ") ->  | M11: =IFERROR(CALC!Y6," ") ->  | N11: =IFERROR(CALC!AE6," ") -> 14.37958275 | O11: =IF(AND(E11<>"",F11<>"",G11<>"",B$8<>0),IFERROR(CALC!AF6," "),"") ->  | V11: 12.85000056 | W11: =IF(T11>0,(0.41+0.873*T11/1000)^1.28," ") ->  | AB11: =$B$11-COUNTIF($E$11:$E$1000,">0")>0 -> TRUE | AD11: 2 | AE11: Aitkin | AF11: 2 | AH11: 1
D12: =CALC!A7 -> 0.18 | E12: 0 | H12: 0 | I12: 0 | J12: =IFERROR(CALC!U7," ") ->  | K12: =IF(T12="",NA(),T12/1000) ->  | L12: =IFERROR(CALC!X7," ") ->  | M12: =IFERROR(CALC!Y7," ") ->  | N12: =IFERROR(CALC!AE7," ") -> 16.87556608 | O12: =IF(AND(E12<>"",F12<>"",G12<>"",B$8<>0),IFERROR(CALC!AF7," "),"") ->  | V12: 9.920000081 | W12: =IF(T12>0,(0.41+0.873*T12/1000)^1.28," ") ->  | AB12: =$B$11-(COUNTIF($F$11:$F$1000,"p")+COUNTIF($F$11:$F$1000,"s")+COUNTIF($F$11:$F$1000,"n"))>0 -> TRUE | AD12: 3 | AE12: Anoka | AF12: 3 | AH12: =IF(AND(E12=E11,H12=H11),AH11,AH11+1) -> 1
A13: Base Thickness (inches) | D13: =CALC!A8 -> 0.3 | E13: 0 | H13: 0 | I13: 0 | J13: =IFERROR(CALC!U8," ") ->  | L13: =IFERROR(CALC!X8," ") ->  | M13: =IFERROR(CALC!Y8," ") ->  | N13: =IFERROR(CALC!AE8," ") -> 16.29811681 | O13: =IF(AND(E13<>"",F13<>"",G13<>"",B$8<>0),IFERROR(CALC!AF8," "),"") ->  | V13: 10.13000007 | AB13: =($B$11-COUNTIF($G$11:$G$1000,">0")+COUNTIF($G$11:$G$1000,">4"))>0 -> TRUE | AD13: 4 | AE13: Becker | AF13: 4 | AH13: =IF(AND(E13=E12,H13=H12),AH12,AH12+1) -> 1
D14: =CALC!A9 -> 0.4 | E14: 0 | H14: 0 | I14: 0 | J14: =IFERROR(CALC!U9," ") ->  | L14: =IFERROR(CALC!X9," ") ->  | M14: =IFERROR(CALC!Y9," ") ->  | N14: =IFERROR(CALC!AE9," ") -> 13.69657905 | O14: =IF(AND(E14<>"",F14<>"",G14<>"",B$8<>0),IFERROR(CALC!AF9," "),"") ->  | V14: 8.96999989 | AB14: =IF(AND(AB10=FALSE,AB11=FALSE,AB12=FALSE,AB13=FALSE),0,1) -> 1 | AD14: 5 | AE14: Beltrami | AF14: 5 | AH14: 1
D15: =CALC!A10 -> 0.5 | E15: 0 | H15: 0 | I15: 0 | J15: =IFERROR(CALC!U10," ") ->  | L15: =IFERROR(CALC!X10," ") ->  | M15: =IFERROR(CALC!Y10," ") ->  | N15: =IFERROR(CALC!AE10," ") -> 11.00191226 | O15: =IF(AND(E15<>"",F15<>"",G15<>"",B$8<>0),IFERROR(CALC!AF10," "),"") ->  | V15: 11.23000016 | AD15: 6 | AE15: Benton | AF15: 6 | AH15: 1
A16: Design ESALs | D16: =CALC!A11 -> 0.6 | E16: 0 | H16: 0 | I16: 0 | J16: =IFERROR(CALC!U11," ") ->  | L16: =IFERROR(CALC!X11," ") ->  | M16: =IFERROR(CALC!Y11," ") ->  | N16: =IFERROR(CALC!AE11," ") -> 16.42704354 | O16: =IF(AND(E16<>"",F16<>"",G16<>"",B$8<>0),IFERROR(CALC!AF11," "),"") ->  | V16: 7.330000262 | AD16: 7 | AE16: Big Stone | AF16: 7 | AH16: 1
D17: =CALC!A12 -> 0.7 | E17: 0 | H17: 0 | I17: 0 | J17: =IFERROR(CALC!U12," ") ->  | L17: =IFERROR(CALC!X12," ") ->  | M17: =IFERROR(CALC!Y12," ") ->  | N17: =IFERROR(CALC!AE12," ") -> 13.01193676 | O17: =IF(AND(E17<>"",F17<>"",G17<>"",B$8<>0),IFERROR(CALC!AF12," "),"") ->  | V17: 9.070000226 | AB17: count | AD17: 8 | AE17: Blue Earth | AF17: 8 | AH17: 1
D18: =CALC!A13 -> 0.8 | E18: 0 | H18: 0 | I18: 0 | J18: =IFERROR(CALC!U13," ") ->  | L18: =IFERROR(CALC!X13," ") ->  | M18: =IFERROR(CALC!Y13," ") ->  | N18: =IFERROR(CALC!AE13," ") -> 20.69213999 | O18: =IF(AND(E18<>"",F18<>"",G18<>"",B$8<>0),IFERROR(CALC!AF13," "),"") ->  | V18: 6.739999959 | AA18: TONN | AB18: =COUNT($P$11:$P$2011) -> 0 | AD18: 9 | AE18: Brown | AF18: 9 | AH18: 1
A19: County | D19: =CALC!A14 -> 0.9 | E19: 0 | H19: 0 | I19: 0 | J19: =IFERROR(CALC!U14," ") ->  | L19: =IFERROR(CALC!X14," ") ->  | M19: =IFERROR(CALC!Y14," ") ->  | N19: =IFERROR(CALC!AE14," ") -> 17.31613786 | O19: =IF(AND(E19<>"",F19<>"",G19<>"",B$8<>0),IFERROR(CALC!AF14," "),"") ->  | V19: 7.120000276 | AA19: HMA | AB19: =COUNT($R$11:$R$2011) -> 0 | AD19: 10 | AE19: Carlton | AF19: 10 | AH19: 1
D20: =CALC!A15 -> 0.99 | E20: 0 | H20: 0 | I20: 0 | J20: =IFERROR(CALC!U15," ") ->  | L20: =IFERROR(CALC!X15," ") ->  | M20: =IFERROR(CALC!Y15," ") ->  | N20: =IFERROR(CALC!AE15," ") -> 10.16922495 | O20: =IF(AND(E20<>"",F20<>"",G20<>"",B$8<>0),IFERROR(CALC!AF15," "),"") ->  | V20: 20.46000081 | AA20: BASE | AB20: =COUNT($S$11:$S$2011) -> 0 | AD20: 11 | AE20: Carver | AF20: 11 | AH20: 1
D21: =CALC!A16 -> 1.1 | E21: 0 | H21: 0 | I21: 0 | J21: =IFERROR(CALC!U16," ") ->  | L21: =IFERROR(CALC!X16," ") ->  | M21: =IFERROR(CALC!Y16," ") ->  | N21: =IFERROR(CALC!AE16," ") -> 22.52913172 | O21: =IF(AND(E21<>"",F21<>"",G21<>"",B$8<>0),IFERROR(CALC!AF16," "),"") ->  | V21: 6.220000253 | AA21: SUB | AB21: =COUNT($T$11:$T$2011) -> 0 | AD21: 12 | AE21: Cass | AF21: 12 | AH21: 1
D22: =CALC!A17 -> 1.2 | E22: 0 | H22: 0 | I22: 0 | J22: =IFERROR(CALC!U17," ") ->  | L22: =IFERROR(CALC!X17," ") ->  | M22: =IFERROR(CALC!Y17," ") ->  | N22: =IFERROR(CALC!AE17," ") -> 38.38728761 | O22: =IF(AND(E22<>"",F22<>"",G22<>"",B$8<>0),IFERROR(CALC!AF17," "),"") ->  | V22: 4.239999962 | AA22: R-Value | AB22: =COUNT($V$11:$V$2011) -> 12 | AD22: 13 | AE22: Chippewa | AF22: 13 | AH22: 1
AD23: 14 | AE23: Chisago | AF23: 14 | AH23: 1
AD24: 15 | AE24: Clay | AF24: 15 | AH24: 1
A25: 1 | AD25: 16 | AE25: Clearwater | AF25: 16 | AH25: 1
A26: =AVERAGE(I11:I101) -> 0 | AB26: 85% Percentile | AC26: =PERCENTILE(P11:P2000,0.15) ->  | AD26: 17 | AE26: Cook | AF26: 17 | AH26: 1
AB27: 85% Reliability | AC27: =AVERAGE(INDIRECT("p" & 11):INDIRECT("p" & 10+B11))+STDEV(INDIRECT("p" & 11):INDIRECT("p" & 10+B11))*NORMSINV(1-85/100) ->  | AD27: 18 | AE27: Cottonwood | AF27: 18 | AH27: 1
AD28: 19 | AE28: Crow Wing | AF28: 19 | AH28: 1
AD29: 20 | AE29: Dakota | AF29: 20 | AH29: 1
AD30: 21 | AE30: Dodge | AF30: 21 | AH30: 1
A31: Soil Type | AD31: 22 | AE31: Douglas | AF31: 22 | AH31: 1
B32: =IF(AB5=1,"P",IF(AB5=2,"S","N")) -> N | AD32: 23 | AE32: Faribault | AF32: 23 | AH32: 1
AD33: 24 | AE33: Fillmore | AF33: 24 | AH33: 1
A34: Traffic Category | AD34: 25 | AE34: Freeborn | AF34: 25 | AH34: 1
AD35: 26 | AE35: Goodhue | AF35: 26 | AH35: 1
AD36: 27 | AE36: Grant | AF36: 27 | AH36: 1
B37: =IF(AD4=1,"C","F") -> C | AD37: 28 | AE37: Hennepin | AF37: 28 | AH37: 1
A38: Conv/Full Depth | AD38: 29 | AE38: Houston | AF38: 29 | AH38: 1
AD39: 30 | AE39: Hubbard | AF39: 30 | AH39: 1
AD40: 31 | AE40: Isanti | AF40: 31 | AH40: 1
AD41: 32 | AE41: Itasca | AF41: 32 | AH41: 1
AD42: 33 | AE42: Jackson | AF42: 33 | AH42: 1
A43: This button will estimate the | AD43: 34 | AE43: Kanabec | AF43: 34 | AH43: 1
A44: number of ESALs that will | AD44: 35 | AE44: Kandiyohi | AF44: 35 | AH44: 1
A45: result in a rating of 10-tons. | AD45: 36 | AE45: Kittson | AF45: 36 | AH45: 1
AD46: 37 | AE46: Koochiching | AF46: 37 | AH46: 1
AD47: 38 | AE47: Lac qui Parle | AF47: 38 | AH47: 1
AD48: 39 | AE48: Lake | AF48: 39 | AH48: 1
AD49: 40 | AE49: Lake of the Woods | AF49: 40 | AH49: 1
A50: This button will estimate the | AD50: 41 | AE50: Le Sueur | AF50: 41 | AH50: 1
A51: number of ESALs that will | AD51: 42 | AE51: Lincoln | AF51: 42 | AH51: 1
A52: result in a rating of 10-tons. | AD52: 43 | AE52: Lyon | AF52: 43 | AH52: 1
AD53: 44 | AE53: McLeod | AF53: 44 | AH53: 1
AD54: 45 | AE54: Mahnomen | AF54: 45 | AH54: 1
AD55: 46 | AE55: Marshall | AF55: 46 | AH55: 1
AD56: 47 | AE56: Martin | AF56: 47 | AH56: 1
AD57: 48 | AE57: Meeker | AF57: 48 | AH57: 1
AD58: 49 | AE58: Mille Lacs | AF58: 49 | AH58: 1
AD59: 50 | AE59: Morrison | AF59: 50 | AH59: 1
AD60: 51 | AE60: Mower | AF60: 51 | AH60: 1
AD61: 52 | AE61: Murray | AF61: 52 | AH61: 1
AD62: 53 | AE62: Nicollet | AF62: 53 | AH62: 1
AD63: 54 | AE63: Nobles | AF63: 54 | AH63: 1
AD64: 55 | AE64: Norman | AF64: 55 | AH64: 1
AD65: 56 | AE65: Olmsted | AF65: 56 | AH65: 1
AD66: 57 | AE66: Otter Tail | AF66: 57 | AH66: 1
AD67: 58 | AE67: Pennington | AF67: 58 | AH67: 1
AD68: 59 | AE68: Pine | AF68: 59 | AH68: 1
AD69: 60 | AE69: Pipestone | AF69: 60 | AH69: 1
AD70: 61 | AE70: Polk | AF70: 61 | AH70: 1
AD71: 62 | AE71: Pope | AF71: 62 | AH71: 1
AD72: 63 | AE72: Ramsey | AF72: 63 | AH72: 1
AD73: 64 | AE73: Red Lake | AF73: 64 | AH73: 1
AD74: 65 | AE74: Redwood | AF74: 65 | AH74: 1
AD75: 66 | AE75: Renville | AF75: 66 | AH75: 1
AD76: 67 | AE76: Rice | AF76: 67 | AH76: 1
AD77: 68 | AE77: Rock | AF77: 68 | AH77: =IF(AND(E77=E76,H77=H76),AH76,AH76+1) -> 1
AD78: 69 | AE78: Roseau | AF78: 69 | AH78: 1
AD79: 70 | AE79: Scott | AF79: 70 | AH79: 1
AD80: 71 | AE80: Sherbourne | AF80: 71 | AH80: 1
AD81: 72 | AE81: Sibley | AF81: 72 | AH81: 1
AD82: 73 | AE82: St. Louis | AF82: 73 | AH82: 1
AD83: 74 | AE83: Stearns | AF83: 74 | AH83: 1
AD84: 75 | AE84: Steele | AF84: 75 | AH84: 1
AD85: 76 | AE85: Stevens | AF85: 76 | AH85: 1
AD86: 77 | AE86: Swift | AF86: 77 | AH86: 1
AD87: 78 | AE87: Todd | AF87: 78 | AH87: 1
AD88: 79 | AE88: Traverse | AF88: 79 | AH88: 1
AD89: 80 | AE89: Wabasha | AF89: 80 | AH89: 1
AD90: 81 | AE90: Wadena | AF90: 81 | AH90: 1
AD91: 82 | AE91: Waseca | AF91: 82 | AH91: 1
AD92: 83 | AE92: Washington | AF92: 83 | AH92: 1
AD93: 84 | AE93: Watonwan | AF93: 84 | AH93: 1
AD94: 85 | AE94: Wilkin | AF94: 85 | AH94: 1
AD95: 86 | AE95: Winona | AF95: 86 | AH95: 1
AD96: 87 | AE96: Wright | AF96: 87 | AH96: 1
AD97: 88 | AE97: Yellow Medicine | AF97: 88 | AH97: 1
AH98: 1
AH99: 1
AH100: 1
AH101: 1
AH102: 1
AH103: 1
AH104: 1
AH105: 1
AH106: 1
AH107: 1
AH108: 1
AH109: 1
AH110: 1
AH111: 1
AH112: 1
AH113: 1
AH114: 1
AH115: 1
AH116: 1
AH117: 1
AH118: 1
AH119: 1
AH120: 1
AH121: 1
AH122: 1
AH123: 1
AH124: 1
AH125: 1
AH126: 1
AH127: 1
AH128: 1
AH129: 1
AH130: 1
AH131: 1
AH132: 1
AH133: 1
AH134: 1
AH135: 1
AH136: 1
AH137: 1
AH138: 1
AH139: 1
AH140: 1
AH141: =IF(AND(E141=E140,H141=H140),AH140,AH140+1) -> 1
AH142: 1
AH143: 1
AH144: 1
AH145: 1
AH146: 1
AH147: 1
AH148: 1
AH149: 1
AH150: 1
AH151: 1
AH152: 1
AH153: 1
AH154: 1
AH155: 1
AH156: 1
AH157: 1
AH158: 1
AH159: 1
AH160: 1
AH161: 1
AH162: 1
AH163: 1
AH164: 1
AH165: 1
AH166: 1
AH167: 1
AH168: 1
AH169: 1
AH170: 1
AH171: 1
AH172: 1
AH173: 1
AH174: 1
AH175: 1
AH176: 1
AH177: 1
AH178: 1
AH179: 1
AH180: 1
AH181: 1
AH182: 1
AH183: 1
AH184: 1
AH185: 1
AH186: 1
AH187: 1
AH188: 1
AH189: 1
AH190: 1
AH191: 1
AH192: 1
AH193: 1
AH194: 1
AH195: 1
AH196: 1
AH197: 1
AH198: 1
AH199: 1
AH200: 1
... 811 more rows

Sheet Chart
F2: 26
K31: spin | L31: count | M31: Offset
K32: 5 | L32: =COUNT(CALC!G6:G2200)-1 -> 11 | M32: =IF(L32-K32<0,0,L32-K32) -> 6
J53: TONN2010 | K53: Moduli | O53: Depth to | P53: #1 Defl.
J54: Capacity, Tons | K54: EAC | L54: HMA (72° F) | M54: Base | N54: Subgrade | O54: Stiff Layer | P54: (mils)
J55: =OFFSET(SUMMARY!P11:P224,Chart!$M$32,0,1,1) -> 0 | K55: =OFFSET(SUMMARY!Q11:Q224,Chart!$M$32,0,1,1) -> 0 | L55: =OFFSET(SUMMARY!R11:R224,Chart!$M$32,0,1,1) -> 0 | M55: =OFFSET(SUMMARY!S11:S224,Chart!$M$32,0,1,1) -> 0 | N55: =OFFSET(SUMMARY!T11:T224,Chart!$M$32,0,1,1) -> 0 | O55: =OFFSET(SUMMARY!U11:U224,Chart!$M$32,0,1,1) -> 0 | P55: =OFFSET(SUMMARY!V11:V224,Chart!$M$32,0,1,1) -> 9.070000226

Sheet Overlay Design (hidden)
B1: ="TONN2010 Overlay Worksheet - " & SUMMARY!A1 -> TONN2010 Overlay Worksheet - Version TONN2010 - 1.06
F3: User-Defined Overlay Goals
E4: Overlay increment | F4: 0.27
E5: Desired rating, tons | F5: 10
E6: Expected Future Design ESALs | F6: 500000
E7: Desired Perecentile Level | F7: 95
F10: User-Defined Overlay Segments
E12: Number of Segments | F12: 1
E14: Begin Segment 1 | F14: 0.1
E15: Begin Segment 2
E16: Begin Segment 3
E17: Begin Segment 4
E18: Begin Segment 5
E19: End Station | F19: 7.3
B23: Segment | C23: Existing Bit. Thickness (inches) | D23: Base Thickness (inches) | E23: Design ESALs | F23: ="Existing Ton Rating at " & F7 & "% Percentile" -> Existing Ton Rating at 95% Percentile | G23: ="Overlay Thickness for " & F5 & "-Ton Rating at " & F7 & "% Perecentile (inches)" -> Overlay Thickness for 10-Ton Rating at 95% Perecentile (inches)
B24: 1 | C24: 8 | D24: 14 | E24: 500000 | F24: =B996 -> 6.914236361 | G24: =H950 -> >5
B25: 2 | F25: =C996 ->  | G25: =I950 -> 
B26: 3 | F26: =D996 ->  | G26: =J950 -> 
B27: 4 | F27: =E996 ->  | G27: =K950 -> 
B28: 5 | F28: =F996 ->  | G28: =L950 -> 
B29: *Note: A red cell indicates that not all of the locations within a segment have the same value. In this case, the analysis may not be correct.
I34: difference
C35: Segment | D35: From | E35: 79.3 | I35: From | J35: To | K35: From-To
C36: 1 | D36: 0.1 | E36: 7.3 | I36: TRUE | J36: TRUE | K36: =IF(E36-D36>0,TRUE,FALSE) -> TRUE
C37: 2 | I37: =IF(D37-D36>0,TRUE,FALSE) -> FALSE | J37: =IF(E37-E36>0,TRUE,FALSE) -> FALSE | K37: =IF(E37-D37>0,TRUE,FALSE) -> FALSE
C38: 3 | I38: =IF(D38-D37>0,TRUE,FALSE) -> FALSE | J38: FALSE | K38: =IF(E38-D38>0,TRUE,FALSE) -> FALSE
C39: 4 | I39: FALSE | J39: FALSE | K39: =IF(E39-D39>0,TRUE,FALSE) -> FALSE
C40: 5 | I40: FALSE | J40: FALSE | K40: =IF(E40-D40>0,TRUE,FALSE) -> FALSE
G947: label | H947: >5 | I947: >5 | J947: >5 | K947: >5 | L947: >5
H948: 1 | I948: 2 | J948: 3 | K948: 4 | L948: 5
H949: =($F$5-H954)/(C954-H954)*(C955-H955)+H955 ->  | I949: =($F$5-I954)/(D954-I954)*(D955-I955)+I955 -> 
H950: =IF(H951=H947,H947,IFERROR(H949,"")) -> >5 | I950: =IF(I951=I947,I947,IFERROR(I949,"")) -> 
H951: =IF(AND(MAX(H954)>0,MAX(C954)=0),H947,"") -> >5 | I951: =IF(AND(MAX(I954)>0,MAX(D954)=0),I947,"") -> 
C953: 1 | D953: 2 | E953: 3 | F953: 4 | G953: 5 | H953: 1 | I953: 2 | J953: 3 | K953: 4 | L953: 5
C954: =IF(MIN(C959:C978)>0,MIN(C959:C978),"") ->  | D954: =IF(MIN(D959:D978)>0,MIN(D959:D978),"") ->  | H954: =IF(MAX(H959:H978)>0,MAX(H959:H978),"") -> 9.432339675 | I954: =IF(MAX(I959:I978)>0,MAX(I959:I978),"") -> 
C955: =VLOOKUP(C954,C959:$T$978,18) -> 5.13 | D955: =VLOOKUP(D954,D959:$T$978,17) -> 5.13 | E955: =VLOOKUP(E954,E959:$T$978,16) -> 5.13 | F955: =VLOOKUP(F954,F959:$T$978,15) -> 5.13 | G955: =VLOOKUP(G954,G959:$T$978,14) -> 5.13 | H955: =VLOOKUP(H954,H959:$T$978,13) -> 5.13 | I955: =VLOOKUP(I954,I959:$T$978,12) -> 5.13 | J955: =VLOOKUP(J954,J959:$T$978,11) -> 5.13 | K955: =VLOOKUP(K954,K959:$T$978,10) -> 5.13 | L955: =VLOOKUP(L954,L959:$T$978,9) -> 5.13 | S955: Count: | U955: =COUNT(U959:U978) -> 20 | V955: =COUNT(V959:V978) -> 0 | W955: 0 | X955: 0 | Y955: 0 | AA955: max
D956: upper limit | I956: Lower limit | T956: Data for OLthick vs TONN | AA956: =MAX(U955:Y955) -> 20 | AD956: Coming from dll
C957: 1 | D957: 2 | E957: 3 | F957: 4 | G957: 5 | H957: 1 | I957: 2 | J957: 3 | K957: 4 | L957: 5 | M957: 1 | N957: 2 | O957: 3 | P957: 4 | Q957: 5 | T957: OL Thickness | U957: Segment 1 | V957: Segment 2 | W957: Segment 3 | X957: Segment 4 | Y957: Segment 5 | AD957: Segment 1 | AE957: Segment 2 | AF957: Segment 3 | AG957: Segment 4 | AH957: Segment 5
T958: 0 | U958: =I986 -> 6.914236361 | V958: =I987 ->  | W958: =I988 ->  | X958: =I989 ->  | Y958: =I990 -> 
C959: =IF(M959>10,M959,"") ->  | D959: =IF(N959>10,N959,"") ->  | E959: =IF(O959>10,O959,"") ->  | F959: =IF(P959>10,P959,"") ->  | G959: =IF(Q959>10,Q959,"") ->  | H959: =IF(M959>$F$5,"",M959) -> 6.914236361 | I959: =IF(N959>$F$5,"",N959) ->  | J959: =IF(O959>$F$5,"",O959) ->  | K959: =IF(P959>$F$5,"",P959) ->  | L959: =IF(Q959>$F$5,"",Q959) ->  | M959: =IFERROR(IF(U959<MAX(U$958:U958),"",U959),"") -> 6.914236361 | N959: =IFERROR(IF(V959<MAX(V$958:V958),"",V959),"") ->  | O959: =IFERROR(IF(W959<MAX(W$958:W958),"",W959),"") ->  | P959: =IFERROR(IF(X959<MAX(X$958:X958),"",X959),"") ->  | Q959: =IFERROR(IF(Y959<Y958,"",Y959),"") ->  | S959: 1 | T959: =(S959-1)*$F$4 -> 0 | U959: =AD959-(AD$959-U$958) -> 6.914236361 | V959: =AE959-(AE$959-V$958) ->  | AD959: 7.132645041
C960: =IF(M960>10,M960,"") ->  | H960: =IF(M960>$F$5,"",M960) -> 7.088047781 | M960: =IFERROR(IF(U960<MAX(U$958:U959),"",U960),"") -> 7.088047781 | N960: =IFERROR(IF(V960<MAX(V$958:V959),"",V960),"") ->  | O960: =IFERROR(IF(W960<MAX(W$958:W959),"",W960),"") ->  | P960: =IFERROR(IF(X960<MAX(X$958:X959),"",X960),"") ->  | S960: 2 | T960: 0.27 | U960: =AD960-(AD$959-U$958) -> 7.088047781 | AD960: 7.306456462
H961: 7.265034669 | M961: =IFERROR(IF(U961<MAX(U$958:U960),"",U961),"") -> 7.265034669 | N961: =IFERROR(IF(V961<MAX(V$958:V960),"",V961),"") ->  | O961: =IFERROR(IF(W961<MAX(W$958:W960),"",W961),"") ->  | P961: =IFERROR(IF(X961<MAX(X$958:X960),"",X961),"") ->  | S961: 3 | T961: 0.54 | U961: 7.265034669 | AD961: 7.48344335
H962: 7.44353588 | M962: =IFERROR(IF(U962<MAX(U$958:U961),"",U962),"") -> 7.44353588 | N962: =IFERROR(IF(V962<MAX(V$958:V961),"",V962),"") ->  | O962: =IFERROR(IF(W962<MAX(W$958:W961),"",W962),"") ->  | P962: =IFERROR(IF(X962<MAX(X$958:X961),"",X962),"") ->  | S962: 4 | T962: 0.81 | U962: 7.44353588 | AD962: 7.661944561
H963: 7.76570757 | M963: =IFERROR(IF(U963<MAX(U$958:U962),"",U963),"") -> 7.76570757 | N963: =IFERROR(IF(V963<MAX(V$958:V962),"",V963),"") ->  | O963: =IFERROR(IF(W963<MAX(W$958:W962),"",W963),"") ->  | P963: =IFERROR(IF(X963<MAX(X$958:X962),"",X963),"") ->  | S963: 5 | T963: 1.08 | U963: 7.76570757 | AD963: 7.98411625
H964: 7.95688122 | M964: =IFERROR(IF(U964<MAX(U$958:U963),"",U964),"") -> 7.95688122 | N964: =IFERROR(IF(V964<MAX(V$958:V963),"",V964),"") ->  | O964: =IFERROR(IF(W964<MAX(W$958:W963),"",W964),"") ->  | P964: =IFERROR(IF(X964<MAX(X$958:X963),"",X964),"") ->  | S964: 6 | T964: 1.35 | U964: 7.95688122 | AD964: 8.1752899
H965: 8.157713337 | M965: =IFERROR(IF(U965<MAX(U$958:U964),"",U965),"") -> 8.157713337 | N965: =IFERROR(IF(V965<MAX(V$958:V964),"",V965),"") ->  | O965: =IFERROR(IF(W965<MAX(W$958:W964),"",W965),"") ->  | P965: =IFERROR(IF(X965<MAX(X$958:X964),"",X965),"") ->  | S965: 7 | T965: 1.62 | U965: 8.157713337 | AD965: 8.376122018
H966: 8.351088744 | M966: =IFERROR(IF(U966<MAX(U$958:U965),"",U966),"") -> 8.351088744 | N966: =IFERROR(IF(V966<MAX(V$958:V965),"",V966),"") ->  | O966: =IFERROR(IF(W966<MAX(W$958:W965),"",W966),"") ->  | P966: =IFERROR(IF(X966<MAX(X$958:X965),"",X966),"") ->  | S966: 8 | T966: 1.89 | U966: 8.351088744 | AD966: 8.569497425
H967: 8.542246882 | M967: =IFERROR(IF(U967<MAX(U$958:U966),"",U967),"") -> 8.542246882 | N967: =IFERROR(IF(V967<MAX(V$958:V966),"",V967),"") ->  | O967: =IFERROR(IF(W967<MAX(W$958:W966),"",W967),"") ->  | P967: =IFERROR(IF(X967<MAX(X$958:X966),"",X967),"") ->  | S967: 9 | T967: 2.16 | U967: 8.542246882 | AD967: 8.760655562
H968: 8.72257116 | M968: =IFERROR(IF(U968<MAX(U$958:U967),"",U968),"") -> 8.72257116 | N968: =IFERROR(IF(V968<MAX(V$958:V967),"",V968),"") ->  | O968: =IFERROR(IF(W968<MAX(W$958:W967),"",W968),"") ->  | P968: =IFERROR(IF(X968<MAX(X$958:X967),"",X968),"") ->  | S968: 10 | T968: 2.43 | U968: 8.72257116 | AD968: 8.940979841
H969: 8.894691347 | M969: =IFERROR(IF(U969<MAX(U$958:U968),"",U969),"") -> 8.894691347 | N969: =IFERROR(IF(V969<MAX(V$958:V968),"",V969),"") ->  | O969: =IFERROR(IF(W969<MAX(W$958:W968),"",W969),"") ->  | P969: =IFERROR(IF(X969<MAX(X$958:X968),"",X969),"") ->  | S969: 11 | T969: 2.7 | U969: 8.894691347 | AD969: 9.113100027
M970: =IFERROR(IF(U970<MAX(U$958:U969),"",U970),"") ->  | N970: =IFERROR(IF(V970<MAX(V$958:V969),"",V970),"") ->  | O970: =IFERROR(IF(W970<MAX(W$958:W969),"",W970),"") ->  | P970: =IFERROR(IF(X970<MAX(X$958:X969),"",X970),"") ->  | S970: 12 | T970: 2.97 | U970: 8.839679417 | AD970: 9.058088098
H971: 9.008540715 | M971: =IFERROR(IF(U971<MAX(U$958:U970),"",U971),"") -> 9.008540715 | N971: =IFERROR(IF(V971<MAX(V$958:V970),"",V971),"") ->  | O971: =IFERROR(IF(W971<MAX(W$958:W970),"",W971),"") ->  | P971: =IFERROR(IF(X971<MAX(X$958:X970),"",X971),"") ->  | S971: 13 | T971: 3.24 | U971: 9.008540715 | AD971: 9.226949395
H972: 9.188087598 | M972: =IFERROR(IF(U972<MAX(U$958:U971),"",U972),"") -> 9.188087598 | N972: =IFERROR(IF(V972<MAX(V$958:V971),"",V972),"") ->  | O972: =IFERROR(IF(W972<MAX(W$958:W971),"",W972),"") ->  | P972: =IFERROR(IF(X972<MAX(X$958:X971),"",X972),"") ->  | S972: 14 | T972: 3.51 | U972: 9.188087598 | AD972: 9.406496279
H973: 9.362449186 | M973: =IFERROR(IF(U973<MAX(U$958:U972),"",U973),"") -> 9.362449186 | N973: =IFERROR(IF(V973<MAX(V$958:V972),"",V973),"") ->  | O973: =IFERROR(IF(W973<MAX(W$958:W972),"",W973),"") ->  | P973: =IFERROR(IF(X973<MAX(X$958:X972),"",X973),"") ->  | S973: 15 | T973: 3.78 | U973: 9.362449186 | AD973: 9.580857866
H974: 9.432339675 | M974: =IFERROR(IF(U974<MAX(U$958:U973),"",U974),"") -> 9.432339675 | N974: =IFERROR(IF(V974<MAX(V$958:V973),"",V974),"") ->  | O974: =IFERROR(IF(W974<MAX(W$958:W973),"",W974),"") ->  | P974: =IFERROR(IF(X974<MAX(X$958:X973),"",X974),"") ->  | S974: 16 | T974: 4.05 | U974: 9.432339675 | AD974: 9.650748355
H975: 9.432339675 | M975: =IFERROR(IF(U975<MAX(U$958:U974),"",U975),"") -> 9.432339675 | N975: =IFERROR(IF(V975<MAX(V$958:V974),"",V975),"") ->  | O975: =IFERROR(IF(W975<MAX(W$958:W974),"",W975),"") ->  | P975: =IFERROR(IF(X975<MAX(X$958:X974),"",X975),"") ->  | Q975: =IFERROR(IF(Y975<Y974,"",Y975),"") ->  | S975: 17 | T975: 4.32 | U975: 9.432339675 | AD975: 9.650748355
H976: 9.432339675 | M976: =IFERROR(IF(U976<MAX(U$958:U975),"",U976),"") -> 9.432339675 | N976: =IFERROR(IF(V976<MAX(V$958:V975),"",V976),"") ->  | O976: =IFERROR(IF(W976<MAX(W$958:W975),"",W976),"") ->  | P976: =IFERROR(IF(X976<MAX(X$958:X975),"",X976),"") ->  | S976: 18 | T976: 4.59 | U976: =AD976-(AD$959-U$958) -> 9.432339675 | AD976: 9.650748355
H977: 9.432339675 | M977: =IFERROR(IF(U977<MAX(U$958:U976),"",U977),"") -> 9.432339675 | N977: =IFERROR(IF(V977<MAX(V$958:V976),"",V977),"") ->  | O977: =IFERROR(IF(W977<MAX(W$958:W976),"",W977),"") ->  | P977: =IFERROR(IF(X977<MAX(X$958:X976),"",X977),"") ->  | S977: 19 | T977: 4.86 | U977: 9.432339675 | AD977: 9.650748355
H978: 9.432339675 | M978: =IFERROR(IF(U978<MAX(U$958:U977),"",U978),"") -> 9.432339675 | N978: =IFERROR(IF(V978<MAX(V$958:V977),"",V978),"") ->  | O978: =IFERROR(IF(W978<MAX(W$958:W977),"",W978),"") ->  | P978: =IFERROR(IF(X978<MAX(X$958:X977),"",X978),"") ->  | S978: 20 | T978: 5.13 | U978: 9.432339675 | AD978: 9.650748355
A979: Segmentation Method | E979: Reliability Levels | H979: Begin Seg 1 | I979: Begin Seg 2 | J979: Begin Seg 3 | K979: Begin Seg 4 | L979: Begin Seg 5 | M979: End Station
A980: Single Segment | E980: 50 | G980: 0 | H980: 0.1 | M980: 7.3
A981: User Defined | E981: 80 | G981: 1000 | H981: 0.1 | M981: 7.3
A982: Multiple (Auto Segment) | E982: 85
E983: 90
A984: Selected Segmentation Method | E984: 95 | P984: Average | T984: Std. Dev. | X984: ="Values for " & F7 & "% Reliability" -> Values for 95% Reliability
A985: User Defined | B985: 1 | E985: 99 | I985: x%ile Current TONN | K985: Segment | L985: Start | M985: End | N985: StartRow | O985: EndRow | P985: Eac | Q985: Ebase | R985: Esubgrade | S985: Hsubgrade | T985: Eac | U985: Ebase | V985: Esubgrade | W985: Hsubgrade | X985: Eac | Y985: Ebase | Z985: Esubgrade | AA985: Hsubgrade
I986: =PERCENTILE(INDIRECT("B" & N986):INDIRECT("B" & O986),(1-F7/100)) -> 6.914236361 | J986: =I986 -> 6.914236361 | K986: 1 | L986: =D36 -> 0.1 | M986: =IF(E36=D37,E36-0.0001,E36) -> 7.3 | N986: 1000 | O986: 1099 | P986: 310911.7201 | Q986: 22748.82361 | R986: 12279.91817 | S986: 114.84 | T986: 158576.5086 | U986: 11572.68028 | V986: 4626.106862 | W986: 65.10980934 | X986: 124364.6881 | Y986: 9099.529445 | Z986: 4911.967266 | AA986: 60
A987: Min Station | B987: =MIN(A1000:A3000) -> 0.1 | E987: =B996 -> 6.914236361 | I987: =IF(O987>=1000,PERCENTILE(INDIRECT("B" & N987):INDIRECT("B" & O987),(1-F7/100)),"") ->  | J987: =I987 ->  | K987: 2 | L987: 0 | M987: =IF(E37=D38,E37-0.0001,E37) -> -0.0001 | N987: 0 | O987: 0
A988: Max Station | B988: =MAX(A1000:A3000) -> 7.3 | E988: =B996 -> 6.914236361 | I988: =IF(O988>=1000,PERCENTILE(INDIRECT("B" & N988):INDIRECT("B" & O988),(1-F7/100)),"") ->  | J988: =I988 ->  | K988: 3 | L988: 0 | M988: -0.0001 | N988: 0 | O988: 0
I989: =IF(O989>=1000,PERCENTILE(INDIRECT("B" & N989):INDIRECT("B" & O989),(1-F7/100)),"") ->  | J989: =I989 ->  | K989: 4 | L989: 0 | M989: -0.0001 | N989: 0 | O989: 0
A990: Current Last Row | B990: 16 | I990: =IF(O990>=1000,PERCENTILE(INDIRECT("B" & N990):INDIRECT("B" & O990),(1-F7/100)),"") ->  | J990: =I990 ->  | K990: 5 | L990: 0 | M990: 0 | N990: 0 | O990: 0
A991: Num Drops | B991: =COUNT(C1000:C2000) -> 100
B994: ="Existing Ton Rating (" & F7 & "% Percentile)" -> Existing Ton Rating (95% Percentile)
B995: 1 | C995: 2 | D995: 3 | E995: 4 | F995: 5
B996: =PERCENTILE(INDIRECT("B" & N986):INDIRECT("B" & O986),(1-F7/100)) -> 6.914236361 | C996: =IF(O987>=1000,PERCENTILE(INDIRECT("B" & N987):INDIRECT("B" & O987),(1-F7/100)),"") ->  | D996: =IF(O988>=1000,PERCENTILE(INDIRECT("B" & N988):INDIRECT("B" & O988),(1-F7/100)),"") ->  | E996: =IF(O989>=1000,PERCENTILE(INDIRECT("B" & N989):INDIRECT("B" & O989),(1-F7/100)),"") ->  | F996: =IF(O990>=1000,PERCENTILE(INDIRECT("B" & N990):INDIRECT("B" & O990),(1-F7/100)),"") -> 
AO997: For Segment Consistency Viewer
AV998: 48 | AW998: 49 | AX998: 50 | AY998: 51
A999: Station | B999: Computed TONN2010 | C999: Spring E | E999: Air °F | F999: Actual Bit Thickness | G999: BASE THICKNESS | H999: Time | I999: Load | J999: DesignEsals | K999: Bit °F | L999: EAC | M999: Ebase | N999: Esubgrade | O999: H3 | P999: Count | Q999: Projected TONN2010 | AO999: Bituminous Thickness | AP999: Base Thickness | AQ999: Design ESALs | AR999: air | AS999: time | AT999: load | AU999: bit T | AV999: Eac | AW999: Ebase | AX999: Esub | AY999: Hsub
A1000: 0.1 | B1000: 9.605330763 | C1000: 12382.3102 | E1000: 75.56 | F1000: 8 | G1000: 14 | H1000: 0.3371990741 | I1000: 9255.016 | J1000: 500000 | K1000: 71.42 | Q1000: 7.132645041 | R1000: 7.306456462 | S1000: 7.48344335 | T1000: 7.661944561 | U1000: 7.98411625 | V1000: 8.1752899 | W1000: 8.376122018 | X1000: 8.569497425 | Y1000: 8.760655562 | Z1000: 8.940979841 | AA1000: 9.113100027 | AB1000: 9.058088098 | AC1000: 9.226949395 | AD1000: 9.406496279 | AE1000: 9.580857866 | AF1000: 9.650748355 | AG1000: 9.650748355 | AH1000: 9.650748355 | AI1000: 9.650748355 | AJ1000: 9.650748355 | AN1000: =A1000 -> 0.1 | AO1000: 8 | AP1000: 14 | AQ1000: 500000 | AR1000: =SUMMARY!AP1002 -> 0 | AS1000: 08:05:34 | AT1000: 9255.016 | AU1000: 71.42 | AV1000: 220466.4062 | AW1000: 13808.08789 | AX1000: 13808.08789 | AY1000: 240
A1001: 0.2 | B1001: 11.83217725 | C1001: 12146.43381 | AN1001: =A1001 -> 0.2 | AO1001: 8 | AP1001: 14 | AQ1001: 500000 | AR1001: =SUMMARY!AP1002 -> 0 | AS1001: 08:06:43 | AT1001: 9281.992 | AU1001: 71.06 | AV1001: 158459.5156 | AW1001: 34171.47266 | AX1001: 5509.17041 | AY1001: 60
A1002: 0.3 | B1002: 7.762992929 | C1002: 15726.7319 | AN1002: 0.3 | AO1002: 8 | AP1002: 14 | AQ1002: 500000 | AR1002: =SUMMARY!AP1002 -> 0 | AS1002: 08:09:06 | AT1002: 8983.008 | AU1002: 70.34 | AV1002: 58452.36328 | AW1002: 18303.5293 | AX1002: 6133.10791 | AY1002: 36
A1003: 0.35 | B1003: 5.310750534 | C1003: 7399.348507 | AN1003: 0.35 | AO1003: 8 | AP1003: 14 | AQ1003: 500000 | AR1003: =SUMMARY!AP1002 -> 0 | AS1003: 08:11:12 | AT1003: 9084.168 | AU1003: 68.18 | AV1003: 77013.17969 | AW1003: 5345.560547 | AX1003: 5345.560547 | AY1003: 48
A1004: 0.4 | B1004: 8.056718876 | C1004: 8490.807888 | AN1004: 0.4 | AO1004: 8 | AP1004: 14 | AQ1004: 500000 | AR1004: =SUMMARY!AP1002 -> 0 | AS1004: 08:12:47 | AT1004: 9277.496 | AU1004: 70.88 | AV1004: 193113.0781 | AW1004: 9071.625 | AX1004: 9071.625 | AY1004: 180
A1005: 0.45 | B1005: 14.04842237 | C1005: 8046.632842 | AN1005: 0.45 | AO1005: 8 | AP1005: 14 | AQ1005: 500000 | AR1005: =SUMMARY!AP1002 -> 0 | AS1005: 08:14:23 | AT1005: 9277.496 | AU1005: 70.7 | AV1005: 685851.0625 | AW1005: 18813.4707 | AX1005: 7770.78125 | AY1005: 180
A1006: 0.5 | B1006: 13.84549281 | C1006: 10308.92182 | AN1006: 0.5 | AO1006: 8 | AP1006: 14 | AQ1006: 500000 | AR1006: =SUMMARY!AP1002 -> 0 | AS1006: 08:15:36 | AT1006: 9212.304 | AU1006: 69.98 | AV1006: 466909.1875 | AW1006: 24524.70312 | AX1006: 10129.8291 | AY1006: 240
A1007: 0.55 | B1007: 10.10481322 | C1007: 9615.414604 | AN1007: 0.55 | AO1007: 8 | AP1007: 14 | AQ1007: 500000 | AR1007: =SUMMARY!AP1002 -> 0 | AS1007: 08:20:19 | AT1007: 9068.432 | AU1007: 70.34 | AV1007: 100905.2812 | AW1007: 29564.31445 | AX1007: 3341.535645 | AY1007: 48
A1008: 0.6 | B1008: 7.958570618 | C1008: 9562.993019 | AN1008: 0.6 | AO1008: 8 | AP1008: 14 | AQ1008: 500000 | AR1008: =SUMMARY!AP1002 -> 0 | AS1008: 08:21:36 | AT1008: 9007.736 | AU1008: 70.52 | AV1008: 91376.21094 | AW1008: 14722.27637 | AX1008: 7741.530273 | AY1008: 120
A1009: 0.65 | B1009: 9.288338161 | C1009: 8246.05169 | AN1009: 0.65 | AO1009: 8 | AP1009: 14 | AQ1009: 500000 | AR1009: =SUMMARY!AP1002 -> 0 | AS1009: 08:23:08 | AT1009: 9167.344 | AU1009: 70.16 | AV1009: 392990.625 | AW1009: 7921.77002 | AX1009: 7890.708496 | AY1009: 120
A1010: 0.7 | B1010: 11.39717127 | C1010: 13136.70212 | AN1010: 0.7 | AO1010: 8 | AP1010: 14 | AQ1010: 500000 | AR1010: =SUMMARY!AP1002 -> 0 | AS1010: 08:24:12 | AT1010: 9167.344 | AU1010: 70.52 | AV1010: 337028.3438 | AW1010: 17723.5957 | AX1010: 7796.803223 | AY1010: 60
A1011: 0.75 | B1011: 9.350850934 | C1011: 11383.28338 | AN1011: 0.75 | AO1011: 8 | AP1011: 14 | AQ1011: 500000 | AR1011: =SUMMARY!AP1002 -> 0 | AS1011: 08:25:54 | AT1011: 9072.928 | AU1011: 70.52 | AV1011: 240184.6406 | AW1011: 12001.45898 | AX1011: 12001.45898 | AY1011: 180
A1012: 0.8 | B1012: 7.553687492 | C1012: 11671.58764 | AN1012: 0.8 | AO1012: 8 | AP1012: 14 | AQ1012: 500000 | AR1012: =SUMMARY!AP1002 -> 0 | AS1012: 08:27:13 | AT1012: 8870.608 | AU1012: 70.34 | AV1012: 89978.70312 | AW1012: 12691.52539 | AX1012: 9441.005859 | AY1012: 120
A1013: 0.85 | B1013: 11.1571187 | C1013: 7610.171769 | AN1013: 0.85 | AO1013: 8 | AP1013: 14 | AQ1013: 500000 | AR1013: =SUMMARY!AP1002 -> 0 | AS1013: 08:29:02 | AT1013: 9061.688 | AU1013: 70.34 | AV1013: 258202.0938 | AW1013: 22240.94531 | AX1013: 3453.3125 | AY1013: 60
A1014: 0.9 | B1014: 5.009129767 | C1014: 7246.029983 | AN1014: 0.9 | AO1014: 8 | AP1014: 14 | AQ1014: 500000 | AR1014: =SUMMARY!AP1002 -> 0 | AS1014: 08:30:31 | AT1014: 8800.92 | AU1014: 71.06 | AV1014: 55247.07031 | AW1014: 5561.075684 | AX1014: 5561.075684 | AY1014: 60
A1015: 0.95 | B1015: 7.777557012 | C1015: 10041.71126 | AN1015: 0.95 | AO1015: 8 | AP1015: 14 | AQ1015: 500000 | AR1015: =SUMMARY!AP1002 -> 0 | AS1015: 08:31:50 | AT1015: 8983.008 | AU1015: 70.34 | AV1015: 154615 | AW1015: 9644.951172 | AX1015: 9644.951172 | AY1015: 120
A1016: 1 | B1016: 9.226626926 | C1016: 9549.387038 | AN1016: 1 | AO1016: 8 | AP1016: 14 | AQ1016: 500000 | AR1016: =SUMMARY!AP1002 -> 0 | AS1016: 08:32:41 | AT1016: 9075.176 | AU1016: 70.34 | AV1016: 256867.2969 | AW1016: 11481.5332 | AX1016: 5864.180664 | AY1016: 60
A1017: 1.05 | B1017: 9.692375816 | C1017: 10791.70695 | AN1017: 1.05 | AO1017: 8 | AP1017: 14 | AQ1017: 500000 | AR1017: =SUMMARY!AP1002 -> 0 | AS1017: 08:33:38 | AT1017: 9021.224 | AU1017: 70.88 | AV1017: 266989.6875 | AW1017: 12922.00684 | AX1017: 6635.600586 | AY1017: 60
A1018: 1.1 | B1018: 7.743088006 | C1018: 11717.72316 | AN1018: 1.1 | AO1018: 8 | AP1018: 14 | AQ1018: 500000 | AR1018: =SUMMARY!AP1002 -> 0 | AS1018: 08:34:48 | AT1018: 8832.392 | AU1018: 70.52 | AV1018: 95397.83594 | AW1018: 13112.21973 | AX1018: 9982.457031 | AY1018: 120
A1019: 1.15 | B1019: 9.113428619 | C1019: 9386.341516 | AN1019: 1.15 | AO1019: 8 | AP1019: 14 | AQ1019: 500000 | AR1019: =SUMMARY!AP1002 -> 0 | AS1019: 08:36:17 | AT1019: 9063.936 | AU1019: 70.34 | AV1019: 241202.2344 | AW1019: 11622.3916 | AX1019: 5819.255371 | AY1019: 60
A1020: 1.2 | B1020: 10.31627146 | C1020: 13124.38264 | AN1020: 1.2 | AO1020: 8 | AP1020: 14 | AQ1020: 500000 | AR1020: =SUMMARY!AP1002 -> 0 | AS1020: 08:37:41 | AT1020: 8949.288 | AU1020: 70.34 | AV1020: 94783.05469 | AW1020: 29239.08203 | AX1020: 9154.647461 | AY1020: 120
A1021: 1.25 | B1021: 8.756364673 | C1021: 15665.8673 | AN1021: 1.25 | AO1021: 8 | AP1021: 14 | AQ1021: 500000 | AR1021: =SUMMARY!AP1002 -> 0 | AS1021: 08:39:03 | AT1021: 9005.488 | AU1021: 70.52 | AV1021: 138661.8438 | AW1021: 14509.61523 | AX1021: 14509.61523 | AY1021: 120
A1022: 1.3 | B1022: 11.0752328 | C1022: 14387.90561 | AN1022: 1.3 | AO1022: 8 | AP1022: 14 | AQ1022: 500000 | AR1022: =SUMMARY!AP1002 -> 0 | AS1022: 08:40:01 | AT1022: 9072.928 | AU1022: 70.7 | AV1022: 314161.4062 | AW1022: 16282.44727 | AX1022: 15148.97949 | AY1022: 180
A1023: 1.35 | B1023: 9.824697277 | C1023: 10729.52632 | AN1023: 1.35 | AO1023: 8 | AP1023: 14 | AQ1023: 500000 | AR1023: =SUMMARY!AP1002 -> 0 | AS1023: 08:40:56 | AT1023: 8965.024 | AU1023: 71.06 | AV1023: 354305.375 | AW1023: 10922.92969 | AX1023: 5609.050781 | AY1023: 48
A1024: 1.4 | B1024: 11.10475536 | C1024: 11043.60332 | AN1024: 1.4 | AO1024: 8 | AP1024: 14 | AQ1024: 500000 | AR1024: =SUMMARY!AP1002 -> 0 | AS1024: 08:41:57 | AT1024: 9111.144 | AU1024: 70.7 | AV1024: 466073.9375 | AW1024: 12038.26074 | AX1024: 11795.50879 | AY1024: 180
A1025: 1.45 | B1025: 12.43094341 | C1025: 14924.87334 | AN1025: 1.45 | AO1025: 8 | AP1025: 14 | AQ1025: 500000 | AR1025: =SUMMARY!AP1002 -> 0 | AS1025: 08:43:01 | AT1025: 9052.696 | AU1025: 70.7 | AV1025: 398712.4375 | AW1025: 19215.99805 | AX1025: 16323.91211 | AY1025: 240
A1026: 1.5 | B1026: 11.68698999 | C1026: 15480.05318 | AN1026: 1.5 | AO1026: 8 | AP1026: 14 | AQ1026: 500000 | AR1026: =SUMMARY!AP1002 -> 0 | AS1026: 08:43:59 | AT1026: 9032.464 | AU1026: 70.88 | AV1026: 437039.8438 | AW1026: 14900.00391 | AX1026: 14900.00391 | AY1026: 120
A1027: 1.6 | B1027: 9.773734121 | C1027: 18568.7033 | AN1027: 1.6 | AO1027: 8 | AP1027: 14 | AQ1027: 500000 | AR1027: =SUMMARY!AP1002 -> 0 | AS1027: 08:45:06 | AT1027: 8960.528 | AU1027: 70.52 | AV1027: 136054.1562 | AW1027: 20410.28711 | AX1027: 12019.6582 | AY1027: 60
A1028: 1.7 | B1028: 9.520158886 | C1028: 14078.36121 | AN1028: 1.7 | AO1028: 8 | AP1028: 14 | AQ1028: 500000 | AR1028: =SUMMARY!AP1002 -> 0 | AS1028: 08:46:26 | AT1028: 9079.672 | AU1028: 70.34 | AV1028: 284973.1562 | AW1028: 11440.37695 | AX1028: 10402.96289 | AY1028: 60
A1029: 1.8 | B1029: 13.38134832 | C1029: 17782.93887 | AN1029: 1.8 | AO1029: 8 | AP1029: 14 | AQ1029: 500000 | AR1029: =SUMMARY!AP1002 -> 0 | AS1029: 08:48:14 | AT1029: 9196.568 | AU1029: 70.88 | AV1029: 404475.3438 | AW1029: 25611.23633 | AX1029: 8648.413086 | AY1029: 48
A1030: 1.9 | B1030: 9.558323501 | C1030: 16344.22687 | AN1030: 1.9 | AO1030: 8 | AP1030: 14 | AQ1030: 500000 | AR1030: =SUMMARY!AP1002 -> 0 | AS1030: 08:49:26 | AT1030: 9072.928 | AU1030: 70.88 | AV1030: 177946.2031 | AW1030: 15780.22363 | AX1030: 15780.22363 | AY1030: 120
A1031: 2 | B1031: 10.07209405 | C1031: 15071.13214 | AN1031: 2 | AO1031: 8 | AP1031: 14 | AQ1031: 500000 | AR1031: =SUMMARY!AP1002 -> 0 | AS1031: 08:50:30 | AT1031: 9045.952 | AU1031: 70.16 | AV1031: 241734.9688 | AW1031: 15328.00586 | AX1031: 10401.14746 | AY1031: 60
A1032: 2.1 | B1032: 8.630092111 | C1032: 16189.11529 | AN1032: 2.1 | AO1032: 8 | AP1032: 14 | AQ1032: 500000 | AR1032: =SUMMARY!AP1002 -> 0 | AS1032: 08:51:38 | AT1032: 8992 | AU1032: 70.16 | AV1032: 87781.91406 | AW1032: 18875.38086 | AX1032: 9235.556641 | AY1032: 60
A1033: 2.2 | B1033: 8.405807329 | C1033: 15221.35288 | AN1033: 2.2 | AO1033: 8 | AP1033: 14 | AQ1033: 500000 | AR1033: =SUMMARY!AP1002 -> 0 | AS1033: 08:53:16 | AT1033: 8888.592 | AU1033: 70.52 | AV1033: 69888.61719 | AW1033: 20258.07422 | AX1033: 7313.165039 | AY1033: 48
A1034: 2.3 | B1034: 11.52138895 | C1034: 18068.37978 | AN1034: 2.3 | AO1034: 8 | AP1034: 14 | AQ1034: 500000 | AR1034: =SUMMARY!AP1002 -> 0 | AS1034: 08:54:21 | AT1034: 9072.928 | AU1034: 70.88 | AV1034: 253992.4375 | AW1034: 22045.70703 | AX1034: 11320.76855 | AY1034: 60
A1035: 2.4 | B1035: 9.687412016 | C1035: 12526.2587 | AN1035: 2.4 | AO1035: 8 | AP1035: 14 | AQ1035: 500000 | AR1035: =SUMMARY!AP1002 -> 0 | AS1035: 08:55:27 | AT1035: 9021.224 | AU1035: 70.88 | AV1035: 275327.0312 | AW1035: 12096.73242 | AX1035: 12096.73242 | AY1035: 120
A1036: 2.5 | B1036: 9.694685929 | C1036: 14929.19603 | AN1036: 2.5 | AO1036: 8 | AP1036: 14 | AQ1036: 500000 | AR1036: =SUMMARY!AP1002 -> 0 | AS1036: 08:56:31 | AT1036: 9054.944 | AU1036: 71.42 | AV1036: 323283.5938 | AW1036: 10932.26562 | AX1036: 10932.26562 | AY1036: 60
A1037: 2.6 | B1037: 9.47687814 | C1037: 14122.94941 | AN1037: 2.6 | AO1037: 8 | AP1037: 14 | AQ1037: 500000 | AR1037: =SUMMARY!AP1002 -> 0 | AS1037: 08:58:08 | AT1037: 9005.488 | AU1037: 72.14 | AV1037: 209105.6875 | AW1037: 14212.09668 | AX1037: 9643.922852 | AY1037: 60
A1038: 2.7 | B1038: 6.920169711 | C1038: 9160.929958 | AN1038: 2.7 | AO1038: 8 | AP1038: 14 | AQ1038: 500000 | AR1038: =SUMMARY!AP1002 -> 0 | AS1038: 08:59:37 | AT1038: 8713.248 | AU1038: 71.96 | AV1038: 112674.9844 | AW1038: 8555.982422 | AX1038: 8555.982422 | AY1038: 120
A1039: 2.8 | B1039: 8.4240593 | C1039: 14537.84479 | AN1039: 2.8 | AO1039: 8 | AP1039: 14 | AQ1039: 500000 | AR1039: =SUMMARY!AP1002 -> 0 | AS1039: 09:00:40 | AT1039: 8886.344 | AU1039: 71.78 | AV1039: 96959.35938 | AW1039: 16734.36523 | AX1039: 8858.637695 | AY1039: 60
A1040: 2.9 | B1040: 11.60030238 | C1040: 13781.87036 | AN1040: 2.9 | AO1040: 8 | AP1040: 14 | AQ1040: 500000 | AR1040: =SUMMARY!AP1002 -> 0 | AS1040: 09:01:49 | AT1040: 9061.688 | AU1040: 73.22 | AV1040: 421005.0625 | AW1040: 14919.77637 | AX1040: 14919.77637 | AY1040: 180
A1041: 3 | B1041: 10.28078983 | C1041: 21379.8364 | AN1041: 3 | AO1041: 8 | AP1041: 14 | AQ1041: 500000 | AR1041: =SUMMARY!AP1002 -> 0 | AS1041: 09:02:58 | AT1041: 9167.344 | AU1041: 73.76 | AV1041: 97328.33594 | AW1041: 28800.03125 | AX1041: 9698.517578 | AY1041: 48
A1042: 3.1 | B1042: 8.557711415 | C1042: 15592.65809 | AN1042: 3.1 | AO1042: 8 | AP1042: 14 | AQ1042: 500000 | AR1042: =SUMMARY!AP1002 -> 0 | AS1042: 09:20:41 | AT1042: 9027.968 | AU1042: 73.58 | AV1042: 135920.9844 | AW1042: 13768.59473 | AX1042: 13581.0127 | AY1042: 120
A1043: 3.2 | B1043: 15.67125368 | C1043: 20155.07687 | AN1043: 3.2 | AO1043: 8 | AP1043: 14 | AQ1043: 500000 | AR1043: =SUMMARY!AP1002 -> 0 | AS1043: 09:21:44 | AT1043: 9131.376 | AU1043: 73.76 | AV1043: 456579.125 | AW1043: 37326.32031 | AX1043: 10762.62012 | AY1043: 60
A1044: 3.25 | B1044: 16.60941334 | C1044: 19937.49681 | AN1044: 3.25 | AO1044: 8 | AP1044: 14 | AQ1044: 500000 | AR1044: =SUMMARY!AP1002 -> 0 | AS1044: 10:11:57 | AT1044: 9266.256 | AU1044: 75.2 | AV1044: 557772.875 | AW1044: 38615.47266 | AX1044: 10513.7959 | AY1044: 60
A1045: 3.3 | B1045: 17.3769325 | C1045: 26407.49942 | AN1045: 3.3 | AO1045: 8 | AP1045: 14 | AQ1045: 500000 | AR1045: =SUMMARY!AP1002 -> 0 | AS1045: 10:12:59 | AT1045: 9230.288 | AU1045: 75.74 | AV1045: 824182.1875 | AW1045: 49576.59375 | AX1045: 14110.56738 | AY1045: 240
A1046: 3.35 | B1046: 15.3726659 | C1046: 20540.9842 | AN1046: 3.35 | AO1046: 8 | AP1046: 14 | AQ1046: 500000 | AR1046: =SUMMARY!AP1002 -> 0 | AS1046: 10:15:00 | AT1046: 9124.632 | AU1046: 75.38 | AV1046: 548399.9375 | AW1046: 28946.07227 | AX1046: 17971.98047 | AY1046: 120
A1047: 3.42 | B1047: 13.05555835 | C1047: 23804.86483 | AN1047: 3.42 | AO1047: 8 | AP1047: 14 | AQ1047: 500000 | AR1047: =SUMMARY!AP1002 -> 0 | AS1047: 10:16:14 | AT1047: 9084.168 | AU1047: 75.38 | AV1047: 343549.0312 | AW1047: 24615.42578 | AX1047: 17027.16992 | AY1047: 180
A1048: 3.45 | B1048: 14.62581003 | C1048: 22292.0034 | AN1048: 3.45 | AO1048: 8 | AP1048: 14 | AQ1048: 500000 | AR1048: =SUMMARY!AP1002 -> 0 | AS1048: 10:17:13 | AT1048: 9230.288 | AU1048: 75.56 | AV1048: 490375.9062 | AW1048: 37850.21484 | AX1048: 15015.30469 | AY1048: 48
A1049: 3.5 | B1049: 14.7477115 | C1049: 19864.25868 | AN1049: 3.5 | AO1049: 8 | AP1049: 14 | AQ1049: 500000 | AR1049: =SUMMARY!AP1002 -> 0 | AS1049: 10:18:13 | AT1049: 9135.872 | AU1049: 75.74 | AV1049: 674394.1875 | AW1049: 23064.54688 | AX1049: 15031.68359 | AY1049: 180
A1050: 3.55 | B1050: 18.00232292 | C1050: 19380.92928 | AN1050: 3.55 | AO1050: 8 | AP1050: 14 | AQ1050: 500000 | AR1050: =SUMMARY!AP1002 -> 0 | AS1050: 10:19:34 | AT1050: 9126.88 | AU1050: 75.56 | AV1050: 756722 | AW1050: 21443.71094 | AX1050: 19030.6582 | AY1050: 120
A1051: 3.6 | B1051: 13.18968644 | C1051: 5198.015886 | AN1051: 3.6 | AO1051: 8 | AP1051: 14 | AQ1051: 500000 | AR1051: =SUMMARY!AP1002 -> 0 | AS1051: 10:20:32 | AT1051: 8904.328 | AU1051: 75.92 | AV1051: 291913.0312 | AW1051: 36578.85156 | AX1051: 18783.73438 | AY1051: 180
A1052: 3.65 | B1052: 18.64936784 | C1052: 4774.604275 | AN1052: 3.65 | AO1052: 8 | AP1052: 14 | AQ1052: 500000 | AR1052: =SUMMARY!AP1002 -> 0 | AS1052: 10:21:30 | AT1052: 8976.264 | AU1052: 75.74 | AV1052: 342140.5938 | AW1052: 21085.73047 | AX1052: 21085.73047 | AY1052: 240
A1053: 3.7 | B1053: 12.75894279 | C1053: 9410.445641 | AN1053: 3.7 | AO1053: 8 | AP1053: 14 | AQ1053: 500000 | AR1053: =SUMMARY!AP1002 -> 0 | AS1053: 10:22:34 | AT1053: 8929.056 | AU1053: 74.48 | AV1053: 488269.4375 | AW1053: 20342.42383 | AX1053: 19847.74805 | AY1053: 60
A1054: 3.75 | B1054: 19.14834315 | C1054: 5246.912636 | AN1054: 3.75 | AO1054: 8 | AP1054: 14 | AQ1054: 500000 | AR1054: =SUMMARY!AP1002 -> 0 | AS1054: 10:23:47 | AT1054: 8967.272 | AU1054: 74.84 | AV1054: 448677.1562 | AW1054: 30385.55273 | AX1054: 21893.52148 | AY1054: 180
A1055: 3.8 | B1055: 18.95797348 | C1055: 5962.193881 | AN1055: 3.8 | AO1055: 8 | AP1055: 14 | AQ1055: 500000 | AR1055: =SUMMARY!AP1002 -> 0 | AS1055: 10:25:15 | AT1055: 9032.464 | AU1055: 75.38 | AV1055: 391095.625 | AW1055: 29428.57227 | AX1055: 15928.48535 | AY1055: 180
A1056: 3.85 | B1056: 8.710204848 | C1056: 3011.042795 | AN1056: 3.85 | AO1056: 8 | AP1056: 14 | AQ1056: 500000 | AR1056: =SUMMARY!AP1002 -> 0 | AS1056: 10:27:49 | AT1056: 8702.008 | AU1056: 76.46 | AV1056: 271913.875 | AW1056: 38647.87109 | AX1056: 9053.345703 | AY1056: 240
A1057: 3.9 | B1057: 9.328233604 | C1057: 3181.507218 | AO1057: 8 | AP1057: 14 | AQ1057: 500000 | AR1057: =SUMMARY!AP1002 -> 0 | AS1057: 10:28:48 | AT1057: 8713.248 | AU1057: 76.64 | AV1057: 311395.8125 | AW1057: 53542.41797 | AX1057: 9333.082031 | AY1057: 180
A1058: 3.95 | B1058: 10.46852193 | C1058: 4277.682404 | AO1058: 8 | AP1058: 14 | AQ1058: 500000 | AR1058: =SUMMARY!AP1002 -> 0 | AS1058: 10:29:45 | AT1058: 8769.448 | AU1058: 75.38 | AV1058: 315411.2188 | AW1058: 30292.88477 | AX1058: 15757.53809 | AY1058: 120
A1059: 4 | B1059: 11.07184644 | C1059: 4090.012376 | AO1059: 8 | AP1059: 14 | AQ1059: 500000 | AR1059: =SUMMARY!AP1002 -> 0 | AS1059: 10:30:40 | AT1059: 8841.384 | AU1059: 76.28 | AV1059: 238175.5312 | AW1059: 39224.80078 | AX1059: 13434.68066 | AY1059: 180
A1060: 4.05 | B1060: 17.29625487 | C1060: 6136.235303 | AO1060: 8 | AP1060: 14 | AQ1060: 500000 | AR1060: =SUMMARY!AP1002 -> 0 | AS1060: 10:31:39 | AT1060: 8992 | AU1060: 74.84 | AV1060: 297218.2812 | AW1060: 27813.56836 | AX1060: 14282.64355 | AY1060: 180
A1061: 4.1 | B1061: 17.2419616 | C1061: 11257.2956 | AO1061: 8 | AP1061: 14 | AQ1061: 500000 | AR1061: =SUMMARY!AP1002 -> 0 | AS1061: 10:32:38 | AT1061: 9045.952 | AU1061: 75.02 | AV1061: 376700.9062 | AW1061: 16232.60449 | AX1061: 16232.60449 | AY1061: 240
A1062: 4.15 | B1062: 12.56356144 | C1062: 5534.339853 | AO1062: 8 | AP1062: 14 | AQ1062: 500000 | AR1062: =SUMMARY!AP1002 -> 0 | AS1062: 10:33:37 | AT1062: 8897.584 | AU1062: 75.2 | AV1062: 357833.8125 | AW1062: 21064.02734 | AX1062: 17561.67578 | AY1062: 240
A1063: 4.2 | B1063: 17.52125874 | C1063: 5623.863175 | AO1063: 8 | AP1063: 14 | AQ1063: 500000 | AR1063: =SUMMARY!AP1002 -> 0 | AS1063: 10:34:36 | AT1063: 8974.016 | AU1063: 75.56 | AV1063: 344402 | AW1063: 71232.75781 | AX1063: 9951.634766 | AY1063: 180
A1064: 4.25 | B1064: 18.70503902 | C1064: 6167.084284 | AO1064: 8 | AP1064: 14 | AQ1064: 500000 | AR1064: =SUMMARY!AP1002 -> 0 | AS1064: 10:35:30 | AT1064: 9007.736 | AU1064: 77.18 | AV1064: 415368.6562 | AW1064: 27102.25781 | AX1064: 12272.25977 | AY1064: 240
A1065: 4.3 | B1065: 16.33214624 | C1065: 9968.085357 | AO1065: 8 | AP1065: 14 | AQ1065: 500000 | AR1065: =SUMMARY!AP1002 -> 0 | AS1065: 10:38:29 | AT1065: 8992 | AU1065: 76.64 | AV1065: 356617.5625 | AW1065: 40508.05859 | AX1065: 7883.216797 | AY1065: 60
A1066: 4.35 | B1066: 15.77106719 | C1066: 10455.90085 | AO1066: 8 | AP1066: 14 | AQ1066: 500000 | AR1066: =SUMMARY!AP1002 -> 0 | AS1066: 10:39:27 | AT1066: 8996.496 | AU1066: 75.92 | AV1066: 331213.2188 | AW1066: 20083.96289 | AX1066: 13628.40332 | AY1066: 120
A1067: 4.4 | B1067: 12.15685916 | C1067: 10557.58277 | AO1067: 8 | AP1067: 14 | AQ1067: 500000 | AR1067: =SUMMARY!AP1002 -> 0 | AS1067: 10:40:31 | AT1067: 8893.088 | AU1067: 75.92 | AV1067: 284595.625 | AW1067: 18924.63672 | AX1067: 18464.4375 | AY1067: 60
A1068: 4.45 | B1068: 11.99983331 | C1068: 9921.590347 | AO1068: 8 | AP1068: 14 | AQ1068: 500000 | AR1068: =SUMMARY!AP1002 -> 0 | AS1068: 10:41:26 | AT1068: 8913.32 | AU1068: 76.28 | AV1068: 313361.125 | AW1068: 15178.35938 | AX1068: 15178.25 | AY1068: 120
A1069: 4.5 | B1069: 16.27515118 | C1069: 7731.719959 | AO1069: 8 | AP1069: 14 | AQ1069: 500000 | AR1069: =SUMMARY!AP1002 -> 0 | AS1069: 10:42:25 | AT1069: 9012.232 | AU1069: 75.74 | AV1069: 273759.7188 | AW1069: 17598.00586 | AX1069: 11941.38672 | AY1069: 120
A1070: 4.55 | B1070: 18.45945967 | C1070: 8251.17758 | AO1070: 8 | AP1070: 14 | AQ1070: 500000 | AR1070: =SUMMARY!AP1002 -> 0 | AS1070: 10:43:20 | AT1070: 8989.752 | AU1070: 75.56 | AV1070: 321879.2188 | AW1070: 25526.10352 | AX1070: 11506.53418 | AY1070: 120
A1071: 4.6 | B1071: 12.93756368 | C1071: 7474.365234 | AO1071: 8 | AP1071: 14 | AQ1071: 500000 | AR1071: =SUMMARY!AP1002 -> 0 | AS1071: 10:46:13 | AT1071: 8953.784 | AU1071: 76.46 | AV1071: 360038.75 | AW1071: 13933.56348 | AX1071: 12389.20312 | AY1071: 60
A1072: 4.65 | B1072: 12.44386897 | C1072: 16288.16513 | AO1072: 8 | AP1072: 14 | AQ1072: 500000 | AR1072: =SUMMARY!AP1002 -> 0 | AS1072: 10:47:41 | AT1072: 8953.784 | AU1072: 76.64 | AV1072: 375903.5625 | AW1072: 24344.81641 | AX1072: 12922.22559 | AY1072: 120
A1073: 4.7 | B1073: 10.96115613 | C1073: 28251.39677 | AO1073: 8 | AP1073: 14 | AQ1073: 500000 | AR1073: =SUMMARY!AP1002 -> 0 | AS1073: 10:49:37 | AT1073: 8877.352 | AU1073: 75.92 | AV1073: 276731.75 | AW1073: 24918.6582 | AX1073: 14494.81738 | AY1073: 36
A1074: 4.8 | B1074: 11.43844633 | C1074: 15966.68462 | AO1074: 8 | AP1074: 14 | AQ1074: 500000 | AR1074: =SUMMARY!AP1002 -> 0 | AS1074: 10:50:42 | AT1074: 9007.736 | AU1074: 75.74 | AV1074: 330655.375 | AW1074: 31999.25781 | AX1074: 13217.08594 | AY1074: 120
A1075: 4.9 | B1075: 9.74083779 | C1075: 18812.22328 | AO1075: 8 | AP1075: 14 | AQ1075: 500000 | AR1075: =SUMMARY!AP1002 -> 0 | AS1075: 10:51:51 | AT1075: 9005.488 | AU1075: 75.92 | AV1075: 373820.9688 | AW1075: 20408.96875 | AX1075: 13848.94238 | AY1075: 60
A1076: 5 | B1076: 13.3148732 | C1076: 22277.47293 | AO1076: 8 | AP1076: 14 | AQ1076: 500000 | AR1076: =SUMMARY!AP1002 -> 0 | AS1076: 10:53:30 | AT1076: 9032.464 | AU1076: 75.74 | AV1076: 443031.375 | AW1076: 33404.02734 | AX1076: 14712.7002 | AY1076: 240
A1077: 5.1 | B1077: 10.76715227 | C1077: 21949.39086 | AO1077: 8 | AP1077: 14 | AQ1077: 500000 | AR1077: =SUMMARY!AP1002 -> 0 | AS1077: 10:55:25 | AT1077: 8926.808 | AU1077: 75.92 | AV1077: 338913.7188 | AW1077: 29837.01953 | AX1077: 15321.71191 | AY1077: 48
A1078: 5.2 | B1078: 10.0493505 | C1078: 14999.58085 | AO1078: 8 | AP1078: 14 | AQ1078: 500000 | AR1078: =SUMMARY!AP1002 -> 0 | AS1078: 10:56:46 | AT1078: 8967.272 | AU1078: 75.74 | AV1078: 421409.25 | AW1078: 28929.33398 | AX1078: 23351.96484 | AY1078: 60
A1079: 5.3 | B1079: 10.10804249 | C1079: 15974.81339 | AO1079: 8 | AP1079: 14 | AQ1079: 500000 | AR1079: =SUMMARY!AP1002 -> 0 | AS1079: 10:58:40 | AT1079: 8870.608 | AU1079: 75.38 | AV1079: 367962.3125 | AW1079: 23787.14453 | AX1079: 23787.14453 | AY1079: 120
A1080: 5.4 | B1080: 12.67929399 | C1080: 15577.10193 | AO1080: 8 | AP1080: 14 | AQ1080: 500000 | AR1080: =SUMMARY!AP1002 -> 0 | AS1080: 10:59:42 | AT1080: 9052.696 | AU1080: 75.2 | AV1080: 364540.6562 | AW1080: 36141.22656 | AX1080: 12485.15137 | AY1080: 180
A1081: 5.5 | B1081: 8.475752361 | C1081: 12095.53692 | AO1081: 8 | AP1081: 14 | AQ1081: 500000 | AR1081: =SUMMARY!AP1002 -> 0 | AS1081: 11:00:45 | AT1081: 8832.392 | AU1081: 74.84 | AV1081: 444396.125 | AW1081: 43341.72656 | AX1081: 23145.15039 | AY1081: 120
A1082: 5.6 | B1082: 9.945334332 | C1082: 16402.38397 | AO1082: 8 | AP1082: 14 | AQ1082: 500000 | AR1082: =SUMMARY!AP1002 -> 0 | AS1082: 11:01:45 | AT1082: 8976.264 | AU1082: 75.56 | AY1082: 240
A1083: 5.7 | B1083: 6.787536325 | C1083: 11374.07111 | AO1083: 8 | AP1083: 14 | AQ1083: 500000 | AR1083: =SUMMARY!AP1002 -> 0 | AS1083: 11:02:52 | AT1083: 8857.12 | AU1083: 75.74 | AY1083: 60
A1084: 5.8 | B1084: 8.751749729 | C1084: 12247.04102 | AO1084: 8 | AP1084: 14 | AQ1084: 500000 | AR1084: =SUMMARY!AP1002 -> 0 | AS1084: 11:04:34 | AT1084: 8996.496 | AU1084: 76.46 | AY1084: 60
A1085: 5.9 | B1085: 8.870298842 | C1085: 13512.80138 | AO1085: 8 | AP1085: 14 | AQ1085: 500000 | AR1085: =SUMMARY!AP1002 -> 0 | AS1085: 11:05:45 | AT1085: 8967.272 | AU1085: 76.46 | AY1085: 36
A1086: 6 | B1086: 8.395627814 | C1086: 11353.13515 | AO1086: 8 | AP1086: 14 | AQ1086: 500000 | AR1086: =SUMMARY!AP1002 -> 0 | AS1086: 11:06:45 | AT1086: 8872.856 | AU1086: 76.82 | AY1086: 36
A1087: 6.1 | B1087: 7.650084375 | C1087: 11670.19367 | AO1087: 8 | AP1087: 14 | AQ1087: 500000 | AR1087: =SUMMARY!AP1002 -> 0 | AS1087: 11:08:06 | AT1087: 8902.08 | AU1087: 76.82 | AY1087: 120
A1088: 6.2 | B1088: 6.487952996 | C1088: 9994.719746 | AO1088: 8 | AP1088: 14 | AQ1088: 500000 | AR1088: =SUMMARY!AP1002 -> 0 | AS1088: 11:09:43 | AT1088: 8861.616 | AU1088: 76.64 | AY1088: 60
A1089: 6.3 | B1089: 7.644925826 | C1089: 11059.05264 | AO1089: 8 | AP1089: 14 | AQ1089: 500000 | AR1089: =SUMMARY!AP1002 -> 0 | AS1089: 11:11:16 | AT1089: 8866.112 | AU1089: 76.28 | AY1089: 120
A1090: 6.4 | B1090: 6.877855738 | C1090: 10993.04707 | AO1090: 8 | AP1090: 14 | AQ1090: 500000 | AR1090: =SUMMARY!AP1002 -> 0 | AS1090: 11:15:13 | AT1090: 8881.848 | AU1090: 76.64 | AY1090: 60
A1091: 6.5 | B1091: 7.45726567 | C1091: 12761.12324 | AO1091: 8 | AP1091: 14 | AQ1091: 500000 | AR1091: =SUMMARY!AP1002 -> 0 | AS1091: 11:16:20 | AT1091: 8886.344 | AU1091: 76.82 | AY1091: 60
A1092: 6.6 | B1092: 8.497128735 | C1092: 9742.299853 | AO1092: 8 | AP1092: 14 | AQ1092: 500000 | AR1092: =SUMMARY!AP1002 -> 0 | AS1092: 11:17:23 | AT1092: 8944.792 | AU1092: 77 | AY1092: 120
A1093: 6.7 | B1093: 6.91615113 | C1093: 12186.05575 | AO1093: 8 | AP1093: 14 | AQ1093: 500000 | AR1093: =SUMMARY!AP1002 -> 0 | AS1093: 11:18:25 | AT1093: 8881.848 | AU1093: 76.82 | AY1093: 60
A1094: 6.8 | B1094: 7.646970043 | C1094: 10262.63986 | AO1094: 8 | AP1094: 14 | AQ1094: 500000 | AR1094: =SUMMARY!AP1002 -> 0 | AS1094: 11:19:27 | AT1094: 8886.344 | AU1094: 77.18 | AY1094: 36
A1095: 6.9 | B1095: 8.847050863 | C1095: 9973.110061 | AO1095: 8 | AP1095: 14 | AQ1095: 500000 | AR1095: =SUMMARY!AP1002 -> 0 | AS1095: 11:20:27 | AT1095: 8967.272 | AU1095: 76.46 | AY1095: 240
A1096: 7 | B1096: 8.567114252 | C1096: 11782.06325 | AO1096: 8 | AP1096: 14 | AQ1096: 500000 | AR1096: =SUMMARY!AP1002 -> 0 | AS1096: 11:21:33 | AT1096: 9005.488 | AU1096: 76.46 | AY1096: 120
A1097: 7.1 | B1097: 7.407684439 | C1097: 13310.01953 | AO1097: 8 | AP1097: 14 | AQ1097: 500000 | AR1097: =SUMMARY!AP1002 -> 0 | AS1097: 11:22:36 | AT1097: 8897.584 | AU1097: 76.64 | AY1097: 60
A1098: 7.2 | B1098: 7.441728082 | C1098: 12305.64937 | AO1098: 8 | AP1098: 14 | AQ1098: 500000 | AR1098: =SUMMARY!AP1002 -> 0 | AS1098: 11:24:05 | AT1098: 8830.144 | AU1098: 75.74 | AY1098: 60
A1099: 7.3 | B1099: 11.20019341 | C1099: 16851.21983 | AO1099: 8 | AP1099: 14 | AQ1099: 500000 | AR1099: =SUMMARY!AP1002 -> 0 | AS1099: 11:25:43 | AT1099: 9021.224 | AU1099: 77.36 | AY1099: 60

Sheet Introduction

Sheet FWD Data
A1: Facility Name | B1: Control Section | C1: Pavement Type | D1: Trailer ID | E1: Test Date | F1: X1 | G1: X2 | H1: X3 | I1: X4 | J1: X5 | K1: X6 | L1: X7 | M1: X8 | N1: X9 | O1: X10 | P1: Units | Q1: # of sensors
A2: JACKSON CSAH 23 | B2: 903223 | C2: Asphalt | D2: 8002-377 | E2: 2013-05-28T13:16:24 | F2: 0 | G2: 8 | H2: 12 | I2: 18 | J2: 24 | K2: 36 | L2: 48 | M2: 60 | N2: 72 | O2: -12 | P2: Metric | Q2: =COUNTIF(F2:O2,">0")+1 -> 9
A3: LV CELL 31 | B3: 31 | D3: 8002-005 | E3: 2004-10-07T11:03:17 | F3: 0 | G3: 203.1999969 | H3: 304.7999878 | I3: 457.2000122 | J3: 609.5999756 | K3: 914.4000244 | L3: 1219.199951 | M3: 1524 | N3: 1828.800049 | O3: 0 | P3: Metric
A4: =AB6 -> 43.64393 | B4: =AC6 -> -94.97449 | C4: =TRUNC(E2) -> 2013-05-28 | D4: =INT(C4)-DATE(YEAR(C4)-1,12,31) -> 148 | F4: =F3-F2 -> 0 | G4: =G3-G2 -> 195.1999969 | H4: 292.7999878 | I4: 439.2000122 | J4: 585.5999756 | K4: 878.4000244 | L4: 1171.199951 | M4: 1464 | N4: 1756.800049 | O4: =SUM(F4:N4) -> 6783.199997
A5: FacilityName | B5: SectionName | C5: District | D5: StationDirection | E5: Lane | F5: Station | G5: StationID | H5: DropID | I5: DropNumber | J5: SurfaceTemperature | K5: AirTemperature | L5: PreviousDayAirTemp | M5: Time | N5: Stress | O5: Force | P5: D1 | Q5: D2 | R5: D3 | S5: D4 | T5: D5 | U5: D6 | V5: D7 | W5: D8 | X5: D9 | Y5: D10 | Z5: Radius | AA5: GPSStatus | AB5: Latitude | AC5: Longitude | AD5: Comment
A6: JACKSON CSAH 23 | B6: 903223 | C6: 7B | D6: 1 | E6: Driving | F6: 0.1 | G6: 1 | H6: 1 | I6: 1 | J6: 65.20000038 | K6: 60.70000038 | L6: 0 | M6: 2013-05-28T12:59:52 | N6: 56.70224418 | O6: 6211.999889 | P6: 8.800000159 | Q6: 7.610000242 | R6: 6.899999777 | S6: 6.090000176 | T6: 4.969999954 | U6: 3.379999893 | V6: 2.279999948 | W6: 1.499999938 | X6: 1.090000031 | Y6: 8.650000256 | Z6: 5.904999975 | AA6: 2 | AB6: 43.64393 | AC6: -94.97449 | AD6: JCT CSAH 23 & CSAH 34 = M.P. 0.000
A7: JACKSON CSAH 23 | B7: 903223 | C7: 7B | D7: 1 | E7: Driving | F7: 0.1 | G7: 1 | H7: 2 | I7: 2 | J7: 65.20000038 | K7: 60.70000038 | L7: 0 | M7: 2013-05-28T12:59:52 | N7: 54.00213795 | O7: 5917.999951 | P7: 8.639999741 | Q7: 7.429999997 | R7: 6.739999959 | S7: 5.929999758 | T7: 4.839999877 | U7: 3.299999985 | V7: 2.220000017 | W7: 1.450000071 | X7: 1.030000025 | Y7: 8.499999751 | Z7: 5.904999975 | AA7: 2 | AB7: 43.64393 | AC7: -94.97449 | AD7: JCT CSAH 23 & CSAH 34 = M.P. 0.000
A8: JACKSON CSAH 23 | B8: 903223 | C8: 7B | D8: 1 | E8: Driving | F8: 0.1 | G8: 1 | H8: 3 | I8: 3 | J8: 65.20000038 | K8: 60.70000038 | L8: 0 | M8: 2013-05-28T12:59:52 | N8: 52.40207089 | O8: 5739.999983 | P8: 8.44000027 | Q8: 7.239999839 | R8: 6.559999715 | S8: 5.769999941 | T8: 4.720000014 | U8: 3.209999862 | V8: 2.169999999 | W8: 1.429999943 | X8: 1.020000036 | Y8: 8.320000107 | Z8: 5.904999975 | AA8: 2 | AB8: 43.64393 | AC8: -94.97449 | AD8: JCT CSAH 23 & CSAH 34 = M.P. 0.000
A9: JACKSON CSAH 23 | B9: 903223 | C9: 7B | D9: 1 | E9: Driving | F9: 0.1 | G9: 1 | H9: 4 | I9: 4 | J9: 65.20000038 | K9: 60.70000038 | L9: 0 | M9: 2013-05-28T12:59:52 | N9: 79.10312536 | O9: 8662.999835 | P9: 12.91000004 | Q9: 11.09000017 | R9: 10.04000024 | S9: 8.779999732 | T9: 7.179999757 | U9: 4.860000005 | V9: 3.26000003 | W9: 2.139999958 | X9: 1.56000002 | Y9: 12.92999987 | Z9: 5.904999975 | AA9: 2 | AB9: 43.64393 | AC9: -94.97449 | AD9: JCT CSAH 23 & CSAH 34 = M.P. 0.000
A10: JACKSON CSAH 23 | B10: 903223 | C10: 7B | D10: 1 | E10: Driving | F10: 0.1 | G10: 1 | H10: 5 | I10: 5 | J10: 65.20000038 | K10: 60.70000038 | L10: 0 | M10: 2013-05-28T12:59:52 | N10: 79.00312864 | O10: 8651.000223 | P10: 12.85000056 | Q10: 11.07000034 | R10: 10.01999982 | S10: 8.779999732 | T10: 7.169999844 | U10: 4.860000005 | V10: 3.239999903 | W10: 2.130000045 | X10: 1.56000002 | Y10: 12.89000022 | Z10: 5.904999975 | AA10: 2 | AB10: 43.64393 | AC10: -94.97449 | AD10: JCT CSAH 23 & CSAH 34 = M.P. 0.000
A11: JACKSON CSAH 23 | B11: 903223 | C11: 7B | D11: 1 | E11: Driving | F11: 0.1 | G11: 1 | H11: 6 | I11: 6 | J11: 65.20000038 | K11: 60.70000038 | L11: 0 | M11: 2013-05-28T12:59:52 | N11: 79.00312864 | O11: 8651.000223 | P11: 12.85000056 | Q11: 11.06000043 | R11: 9.949999822 | S11: 8.709999736 | T11: 7.15999993 | U11: 4.839999877 | V11: 3.239999903 | W11: 2.100000004 | X11: 1.590000061 | Y11: 12.91999996 | Z11: 5.904999975 | AA11: 2 | AB11: 43.64393 | AC11: -94.97449 | AD11: JCT CSAH 23 & CSAH 34 = M.P. 0.000
A12: JACKSON CSAH 23 | B12: 903223 | C12: 7B | D12: 1 | E12: Driving | F12: 0.18 | G12: 2 | H12: 7 | I12: 1 | J12: 65.90000114 | K12: 60.70000038 | L12: 0 | M12: 2013-05-28T13:01:21 | N12: 55.00217598 | O12: 6029.000011 | P12: 6.790000128 | Q12: 6.119999917 | R12: 5.670000206 | S12: 5.06999999 | T12: 4.209999921 | U12: 2.929999882 | V12: 1.960000014 | W12: 1.28000004 | X12: 0.9299999888 | Y12: 5.589999696 | Z12: 5.904999975 | AA12: 2 | AB12: 43.64278 | AC12: -94.974485 | AD12: JCT CSAH 23 & CSAH 34 = M.P. 0.000
A13: JACKSON CSAH 23 | B13: 903223 | C13: 7B | D13: 1 | E13: Driving | F13: 0.18 | G13: 2 | H13: 8 | I13: 2 | J13: 65.90000114 | K13: 60.70000038 | L13: 0 | M13: 2013-05-28T13:01:21 | N13: 54.90217041 | O13: 6012.999956 | P13: 6.689999791 | Q13: 6.069999749 | R13: 5.559999956 | S13: 4.960000041 | T13: 4.139999926 | U13: 2.859999887 | V13: 1.940000036 | W13: 1.260000062 | X13: 0.9399999774 | Y13: 5.509999788 | Z13: 5.904999975 | AA13: 2 | AB13: 43.64278 | AC13: -94.974485 | AD13: JCT CSAH 23 & CSAH 34 = M.P. 0.000
A14: JACKSON CSAH 23 | B14: 903223 | C14: 7B | D14: 1 | E14: Driving | F14: 0.18 | G14: 2 | H14: 9 | I14: 3 | J14: 65.90000114 | K14: 60.70000038 | L14: 0 | M14: 2013-05-28T13:01:21 | N14: 54.00213795 | O14: 5914.999834 | P14: 6.570000229 | Q14: 5.919999845 | R14: 5.449999706 | S14: 4.850000091 | T14: 4.060000017 | U14: 2.810000019 | V14: 1.929999973 | W14: 1.260000062 | X14: 0.9200000003 | Y14: 5.390000225 | Z14: 5.904999975 | AA14: 2 | AB14: 43.64278 | AC14: -94.974485 | AD14: JCT CSAH 23 & CSAH 34 = M.P. 0.000
A15: JACKSON CSAH 23 | B15: 903223 | C15: 7B | D15: 1 | E15: Driving | F15: 0.18 | G15: 2 | H15: 10 | I15: 4 | J15: 65.90000114 | K15: 60.70000038 | L15: 0 | M15: 2013-05-28T13:01:21 | N15: 80.30317454 | O15: 8801.999991 | P15: 9.809999831 | Q15: 8.959999976 | R15: 8.240000198 | S15: 7.360000002 | T15: 6.170000085 | U15: 4.270000003 | V15: 2.910000055 | W15: 1.909999996 | X15: 1.339999971 | Y15: 8.149999775 | Z15: 5.904999975 | AA15: 2 | AB15: 43.64278 | AC15: -94.974485 | AD15: JCT CSAH 23 & CSAH 34 = M.P. 0.000
A16: JACKSON CSAH 23 | B16: 903223 | C16: 7B | D16: 1 | E16: Driving | F16: 0.18 | G16: 2 | H16: 11 | I16: 5 | J16: 65.90000114 | K16: 60.70000038 | L16: 0 | M16: 2013-05-28T13:01:21 | N16: 80.50318569 | O16: 8821.999631 | P16: 9.910000168 | Q16: 8.979999803 | R16: 8.250000112 | S16: 7.350000089 | T16: 6.150000258 | U16: 4.260000089 | V16: 2.900000141 | W16: 1.870000041 | X16: 1.350000035 | Y16: 8.16000029 | Z16: 5.904999975 | AA16: 2 | AB16: 43.64278 | AC16: -94.974485 | AD16: JCT CSAH 23 & CSAH 34 = M.P. 0.000
A17: JACKSON CSAH 23 | B17: 903223 | C17: 7B | D17: 1 | E17: Driving | F17: 0.18 | G17: 2 | H17: 12 | I17: 6 | J17: 65.90000114 | K17: 60.70000038 | L17: 0 | M17: 2013-05-28T13:01:21 | N17: 80.60319126 | O17: 8825.000177 | P17: 9.920000081 | Q17: 8.989999717 | R17: 8.260000025 | S17: 7.369999916 | T17: 6.170000085 | U17: 4.270000003 | V17: 2.929999882 | W17: 1.920000059 | X17: 1.370000012 | Y17: 8.19000003 | Z17: 5.904999975 | AA17: 2 | AB17: 43.64278 | AC17: -94.974485 | AD17: JCT CSAH 23 & CSAH 34 = M.P. 0.000
A18: JACKSON CSAH 23 | B18: 903223 | C18: 7B | D18: 1 | E18: Driving | F18: 0.3 | G18: 3 | H18: 13 | I18: 1 | J18: 65.00000114 | K18: 60.70000038 | L18: 0 | M18: 2013-05-28T13:02:30 | N18: 55.90221287 | O18: 6120.999898 | P18: 7.010000026 | Q18: 6.329999902 | R18: 5.84999985 | S18: 5.219999894 | T18: 4.370000039 | U18: 3.080000086 | V18: 2.08999994 | W18: 1.42000003 | X18: 0.9700000182 | Y18: 5.769999941 | Z18: 5.904999975 | AA18: 2 | AB18: 43.6410483 | AC18: -94.9744767 | AD18: JCT CSAH 23 & CSAH 34 = M.P. 0.000
A19: JACKSON CSAH 23 | B19: 903223 | C19: 7B | D19: 1 | E19: Driving | F19: 0.3 | G19: 3 | H19: 14 | I19: 2 | J19: 65.00000114 | K19: 60.70000038 | L19: 0 | M19: 2013-05-28T13:02:30 | N19: 55.70220172 | O19: 6100.999829 | P19: 6.819999868 | Q19: 6.220000253 | R19: 5.769999941 | S19: 5.110000245 | T19: 4.29000013 | U19: 3.020000004 | V19: 2.069999963 | W19: 1.370000012 | X19: 0.9700000182 | Y19: 5.690000033 | Z19: 5.904999975 | AA19: 2 | AB19: 43.6410483 | AC19: -94.9744767 | AD19: JCT CSAH 23 & CSAH 34 = M.P. 0.000
A20: JACKSON CSAH 23 | B20: 903223 | C20: 7B | D20: 1 | E20: Driving | F20: 0.3 | G20: 3 | H20: 15 | I20: 3 | J20: 65.00000114 | K20: 60.70000038 | L20: 0 | M20: 2013-05-28T13:02:30 | N20: 55.70220172 | O20: 6106.000168 | P20: 6.850000209 | Q20: 6.209999739 | R20: 5.750000114 | S20: 5.130000072 | T20: 4.300000044 | U20: 3.029999918 | V20: 2.06000005 | W20: 1.389999989 | X20: 0.9600000297 | Y20: 5.690000033 | Z20: 5.904999975 | AA20: 2 | AB20: 43.6410483 | AC20: -94.9744767 | AD20: JCT CSAH 23 & CSAH 34 = M.P. 0.000
A21: JACKSON CSAH 23 | B21: 903223 | C21: 7B | D21: 1 | E21: Driving | F21: 0.3 | G21: 3 | H21: 16 | I21: 4 | J21: 65.00000114 | K21: 60.70000038 | L21: 0 | M21: 2013-05-28T13:02:30 | N21: 81.80324044 | O21: 8959.99989 | P21: 10.19999946 | Q21: 9.230000043 | R21: 8.540000006 | S21: 7.599999728 | T21: 6.389999984 | U21: 4.479999988 | V21: 3.029999918 | W21: 1.990000054 | X21: 1.370000012 | Y21: 8.44000027 | Z21: 5.904999975 | AA21: 2 | AB21: 43.6410483 | AC21: -94.9744767 | AD21: JCT CSAH 23 & CSAH 34 = M.P. 0.000
A22: JACKSON CSAH 23 | B22: 903223 | C22: 7B | D22: 1 | E22: Driving | F22: 0.3 | G22: 3 | H22: 17 | I22: 5 | J22: 65.00000114 | K22: 60.70000038 | L22: 0 | M22: 2013-05-28T13:02:30 | N22: 81.6032293 | O22: 8936.999704 | P22: 10.12000015 | Q22: 9.22000013 | R22: 8.499999751 | S22: 7.569999987 | T22: 6.370000157 | U22: 4.449999947 | V22: 3.020000004 | W22: 1.969999927 | X22: 1.350000035 | Y22: 8.429999756 | Z22: 5.904999975 | AA22: 2 | AB22: 43.6410483 | AC22: -94.9744767 | AD22: JCT CSAH 23 & CSAH 34 = M.P. 0.000
A23: JACKSON CSAH 23 | B23: 903223 | C23: 7B | D23: 1 | E23: Driving | F23: 0.3 | G23: 3 | H23: 18 | I23: 6 | J23: 65.00000114 | K23: 60.70000038 | L23: 0 | M23: 2013-05-28T13:02:30 | N23: 81.30321257 | O23: 8901.999905 | P23: 10.13000007 | Q23: 9.210000216 | R23: 8.499999751 | S23: 7.569999987 | T23: 6.370000157 | U23: 4.459999861 | V23: 3.029999918 | W23: 1.999999968 | X23: 1.389999989 | Y23: 8.429999756 | Z23: 5.904999975 | AA23: 2 | AB23: 43.6410483 | AC23: -94.9744767 | AD23: JCT CSAH 23 & CSAH 34 = M.P. 0.000
A24: JACKSON CSAH 23 | B24: 903223 | C24: 7B | D24: 1 | E24: Driving | F24: 0.4 | G24: 4 | H24: 19 | I24: 1 | J24: 65.3 | K24: 60.70000038 | L24: 0 | M24: 2013-05-28T13:03:55 | N24: 55.30218827 | O24: 6058.000003 | P24: 6.199999825 | Q24: 5.769999941 | R24: 5.480000047 | S24: 5.06999999 | T24: 4.459999861 | U24: 3.500000057 | V24: 2.700000069 | W24: 2.040000072 | X24: 1.56000002 | Y24: 5.46000022 | Z24: 5.904999975 | AA24: 2 | AB24: 43.6395933 | AC24: -94.9744717 | AD24: JCT CSAH 23 & CSAH 38 = M.P. 0.380
A25: JACKSON CSAH 23 | B25: 903223 | C25: 7B | D25: 1 | E25: Driving | F25: 0.4 | G25: 4 | H25: 20 | I25: 2 | J25: 65.3 | K25: 60.70000038 | L25: 0 | M25: 2013-05-28T13:03:55 | N25: 55.40219385 | O25: 6066.000031 | P25: 6.179999999 | Q25: 5.730000287 | R25: 5.429999879 | S25: 5.04000025 | T25: 4.43000012 | U25: 3.470000016 | V25: 2.700000069 | W25: 2.030000009 | X25: 1.569999934 | Y25: 5.429999879 | Z25: 5.904999975 | AA25: 2 | AB25: 43.6395933 | AC25: -94.9744717 | AD25: JCT CSAH 23 & CSAH 38 = M.P. 0.380
A26: JACKSON CSAH 23 | B26: 903223 | C26: 7B | D26: 1 | E26: Driving | F26: 0.4 | G26: 4 | H26: 21 | I26: 3 | J26: 65.3 | K26: 60.70000038 | L26: 0 | M26: 2013-05-28T13:03:55 | N26: 55.80220729 | O26: 6112.99987 | P26: 6.179999999 | Q26: 5.740000201 | R26: 5.439999793 | S26: 5.030000036 | T26: 4.419999907 | U26: 3.479999929 | V26: 2.700000069 | W26: 2.049999986 | X26: 1.569999934 | Y26: 5.46000022 | Z26: 5.904999975 | AA26: 2 | AB26: 43.6395933 | AC26: -94.9744717 | AD26: JCT CSAH 23 & CSAH 38 = M.P. 0.380
A27: JACKSON CSAH 23 | B27: 903223 | C27: 7B | D27: 1 | E27: Driving | F27: 0.4 | G27: 4 | H27: 22 | I27: 4 | J27: 65.3 | K27: 60.70000038 | L27: 0 | M27: 2013-05-28T13:03:55 | N27: 81.0032047 | O27: 8877.999823 | P27: 8.959999976 | Q27: 8.310000193 | R27: 7.859999881 | S27: 7.260000267 | T27: 6.389999984 | U27: 5.009999908 | V27: 3.859999946 | W27: 2.900000141 | X27: 2.189999976 | Y27: 7.890000223 | Z27: 5.904999975 | AA27: 2 | AB27: 43.6395933 | AC27: -94.9744717 | AD27: JCT CSAH 23 & CSAH 38 = M.P. 0.380
A28: JACKSON CSAH 23 | B28: 903223 | C28: 7B | D28: 1 | E28: Driving | F28: 0.4 | G28: 4 | H28: 23 | I28: 5 | J28: 65.3 | K28: 60.70000038 | L28: 0 | M28: 2013-05-28T13:03:55 | N28: 81.30321257 | O28: 8901.999905 | P28: 8.979999803 | Q28: 8.33000002 | R28: 7.859999881 | S28: 7.260000267 | T28: 6.399999897 | U28: 5.009999908 | V28: 3.850000032 | W28: 2.900000141 | X28: 2.209999953 | Y28: 7.919999963 | Z28: 5.904999975 | AA28: 2 | AB28: 43.6395933 | AC28: -94.9744717 | AD28: JCT CSAH 23 & CSAH 38 = M.P. 0.380
A29: JACKSON CSAH 23 | B29: 903223 | C29: 7B | D29: 1 | E29: Driving | F29: 0.4 | G29: 4 | H29: 24 | I29: 6 | J29: 65.3 | K29: 60.70000038 | L29: 0 | M29: 2013-05-28T13:03:55 | N29: 81.10321028 | O29: 8885.99985 | P29: 8.96999989 | Q29: 8.310000193 | R29: 7.849999968 | S29: 7.229999925 | T29: 6.370000157 | U29: 4.969999954 | V29: 3.829999905 | W29: 2.8700001 | X29: 2.189999976 | Y29: 7.890000223 | Z29: 5.904999975 | AA29: 2 | AB29: 43.6395933 | AC29: -94.9744717 | AD29: JCT CSAH 23 & CSAH 38 = M.P. 0.380
A30: JACKSON CSAH 23 | B30: 903223 | C30: 7B | D30: 1 | E30: Driving | F30: 0.5 | G30: 5 | H30: 25 | I30: 1 | J30: 65.20000038 | K30: 60.8 | L30: 0 | M30: 2013-05-28T13:05:05 | N30: 54.20214467 | O30: 5938.999916 | P30: 7.760000146 | Q30: 7.179999757 | R30: 6.749999873 | S30: 6.189999912 | T30: 5.379999711 | U30: 4.17999988 | V30: 3.220000076 | W30: 2.430000002 | X30: 1.899999932 | Y30: 6.669999964 | Z30: 5.904999975 | AA30: 2 | AB30: 43.63815 | AC30: -94.9744666 | AD30: JCT CSAH 23 & CSAH 38 = M.P. 0.380
A31: JACKSON CSAH 23 | B31: 903223 | C31: 7B | D31: 1 | E31: Driving | F31: 0.5 | G31: 5 | H31: 26 | I31: 2 | J31: 65.20000038 | K31: 60.8 | L31: 0 | M31: 2013-05-28T13:05:05 | N31: 54.20214467 | O31: 5942.000034 | P31: 7.680000237 | Q31: 7.099999849 | R31: 6.640000224 | S31: 6.090000176 | T31: 5.309999716 | U31: 4.139999926 | V31: 3.199999949 | W31: 2.410000025 | X31: 1.870000041 | Y31: 6.650000137 | Z31: 5.904999975 | AA31: 2 | AB31: 43.63815 | AC31: -94.9744666 | AD31: JCT CSAH 23 & CSAH 38 = M.P. 0.380
A32: JACKSON CSAH 23 | B32: 903223 | C32: 7B | D32: 1 | E32: Driving | F32: 0.5 | G32: 5 | H32: 27 | I32: 3 | J32: 65.20000038 | K32: 60.8 | L32: 0 | M32: 2013-05-28T13:05:05 | N32: 54.50215696 | O32: 5966.000116 | P32: 7.750000232 | Q32: 7.13000019 | R32: 6.689999791 | S32: 6.12999983 | T32: 5.330000144 | U32: 4.139999926 | V32: 3.199999949 | W32: 2.419999939 | X32: 1.850000064 | Y32: 6.699999705 | Z32: 5.904999975 | AA32: 2 | AB32: 43.63815 | AC32: -94.9744666 | AD32: JCT CSAH 23 & CSAH 38 = M.P. 0.380
A33: JACKSON CSAH 23 | B33: 903223 | C33: 7B | D33: 1 | E33: Driving | F33: 0.5 | G33: 5 | H33: 28 | I33: 4 | J33: 65.20000038 | K33: 60.8 | L33: 0 | M33: 2013-05-28T13:05:05 | N33: 80.20316897 | O33: 8785.999936 | P33: 11.2599999 | Q33: 10.32999954 | R33: 9.669999841 | S33: 8.8299999 | T33: 7.690000151 | U33: 5.950000186 | V33: 4.559999897 | W33: 3.439999975 | X33: 2.630000074 | Y33: 9.700000182 | Z33: 5.904999975 | AA33: 2 | AB33: 43.63815 | AC33: -94.9744666 | AD33: JCT CSAH 23 & CSAH 38 = M.P. 0.380
A34: JACKSON CSAH 23 | B34: 903223 | C34: 7B | D34: 1 | E34: Driving | F34: 0.5 | G34: 5 | H34: 29 | I34: 5 | J34: 65.20000038 | K34: 60.8 | L34: 0 | M34: 2013-05-28T13:05:05 | N34: 80.10317224 | O34: 8769.999881 | P34: 11.21000033 | Q34: 10.27999997 | R34: 9.620000274 | S34: 8.800000159 | T34: 7.680000237 | U34: 5.929999758 | V34: 4.580000024 | W34: 3.449999888 | X34: 2.639999988 | Y34: 9.690000269 | Z34: 5.904999975 | AA34: 2 | AB34: 43.63815 | AC34: -94.9744666 | AD34: JCT CSAH 23 & CSAH 38 = M.P. 0.380
A35: JACKSON CSAH 23 | B35: 903223 | C35: 7B | D35: 1 | E35: Driving | F35: 0.5 | G35: 5 | H35: 30 | I35: 6 | J35: 65.20000038 | K35: 60.8 | L35: 0 | M35: 2013-05-28T13:05:05 | N35: 79.80315552 | O35: 8745.999799 | P35: 11.23000016 | Q35: 10.30999971 | R35: 9.650000014 | S35: 8.810000073 | T35: 7.690000151 | U35: 5.940000273 | V35: 4.589999938 | W35: 3.439999975 | X35: 2.639999988 | Y35: 9.679999755 | Z35: 5.904999975 | AA35: 2 | AB35: 43.63815 | AC35: -94.9744666 | AD35: JCT CSAH 23 & CSAH 38 = M.P. 0.380
A36: JACKSON CSAH 23 | B36: 903223 | C36: 7B | D36: 1 | E36: Driving | F36: 0.6 | G36: 6 | H36: 31 | I36: 1 | J36: 65.00000114 | K36: 60.99999924 | L36: 0 | M36: 2013-05-28T13:06:32 | N36: 55.00217598 | O36: 6020.999983 | P36: 5.110000245 | Q36: 4.769999882 | R36: 4.500000116 | S36: 4.190000094 | T36: 3.740000083 | U36: 2.98000005 | V36: 2.399999962 | W36: 1.870000041 | X36: 1.520000066 | Y36: 4.519999943 | Z36: 5.904999975 | AA36: 2 | AB36: 43.636705 | AC36: -94.9744617 | AD36: JCT CSAH 23 & CSAH 38 = M.P. 0.380
A37: JACKSON CSAH 23 | B37: 903223 | C37: 7B | D37: 1 | E37: Driving | F37: 0.6 | G37: 6 | H37: 32 | I37: 2 | J37: 65.00000114 | K37: 60.99999924 | L37: 0 | M37: 2013-05-28T13:06:32 | N37: 54.90217041 | O37: 6012.999956 | P37: 5.06999999 | Q37: 4.689999974 | R37: 4.440000034 | S37: 4.120000099 | T37: 3.64999996 | U37: 2.929999882 | V37: 2.349999944 | W37: 1.80999996 | X37: 1.459999984 | Y37: 4.459999861 | Z37: 5.904999975 | AA37: 2 | AB37: 43.636705 | AC37: -94.9744617 | AD37: JCT CSAH 23 & CSAH 38 = M.P. 0.380
A38: JACKSON CSAH 23 | B38: 903223 | C38: 7B | D38: 1 | E38: Driving | F38: 0.6 | G38: 6 | H38: 33 | I38: 3 | J38: 65.00000114 | K38: 60.99999924 | L38: 0 | M38: 2013-05-28T13:06:32 | N38: 54.90217041 | O38: 6012.999956 | P38: 5.04000025 | Q38: 4.68000006 | R38: 4.440000034 | S38: 4.130000013 | T38: 3.670000088 | U38: 2.919999968 | V38: 2.329999966 | W38: 1.820000023 | X38: 1.479999961 | Y38: 4.470000075 | Z38: 5.904999975 | AA38: 2 | AB38: 43.636705 | AC38: -94.9744617 | AD38: JCT CSAH 23 & CSAH 38 = M.P. 0.380
A39: JACKSON CSAH 23 | B39: 903223 | C39: 7B | D39: 1 | E39: Driving | F39: 0.6 | G39: 6 | H39: 34 | I39: 4 | J39: 65.00000114 | K39: 60.99999924 | L39: 0 | M39: 2013-05-28T13:06:32 | N39: 80.70319684 | O39: 8841.000232 | P39: 7.330000262 | Q39: 6.739999959 | R39: 6.38000007 | S39: 5.890000105 | T39: 5.229999807 | U39: 4.160000053 | V39: 3.330000025 | W39: 2.560000079 | X39: 2.030000009 | Y39: 6.419999724 | Z39: 5.904999975 | AA39: 2 | AB39: 43.636705 | AC39: -94.9744617 | AD39: JCT CSAH 23 & CSAH 38 = M.P. 0.380
A40: JACKSON CSAH 23 | B40: 903223 | C40: 7B | D40: 1 | E40: Driving | F40: 0.6 | G40: 6 | H40: 35 | I40: 5 | J40: 65.00000114 | K40: 60.99999924 | L40: 0 | M40: 2013-05-28T13:06:32 | N40: 80.40318011 | O40: 8805.999576 | P40: 7.400000257 | Q40: 6.790000128 | R40: 6.419999724 | S40: 5.919999845 | T40: 5.260000148 | U40: 4.200000008 | V40: 3.349999852 | W40: 2.600000033 | X40: 2.069999963 | Y40: 6.469999892 | Z40: 5.904999975 | AA40: 2 | AB40: 43.636705 | AC40: -94.9744617 | AD40: JCT CSAH 23 & CSAH 38 = M.P. 0.380
A41: JACKSON CSAH 23 | B41: 903223 | C41: 7B | D41: 1 | E41: Driving | F41: 0.6 | G41: 6 | H41: 36 | I41: 6 | J41: 65.00000114 | K41: 60.99999924 | L41: 0 | M41: 2013-05-28T13:06:32 | N41: 80.70319684 | O41: 8837.999686 | P41: 7.330000262 | Q41: 6.7699997 | R41: 6.399999897 | S41: 5.900000018 | T41: 5.239999721 | U41: 4.169999967 | V41: 3.320000112 | W41: 2.569999993 | X41: 2.030000009 | Y41: 6.450000066 | Z41: 5.904999975 | AA41: 2 | AB41: 43.636705 | AC41: -94.9744617 | AD41: JCT CSAH 23 & CSAH 38 = M.P. 0.380
A42: JACKSON CSAH 23 | B42: 903223 | C42: 7B | D42: 1 | E42: Driving | F42: 0.7 | G42: 7 | H42: 37 | I42: 1 | J42: 65.00000114 | K42: 61.19999847 | L42: 0 | M42: 2013-05-28T13:07:39 | N42: 54.50215696 | O42: 5974.000143 | P42: 6.220000253 | Q42: 5.789999768 | R42: 5.489999961 | S42: 5.089999817 | T42: 4.500000116 | U42: 3.500000057 | V42: 2.709999983 | W42: 2.010000032 | X42: 1.499999938 | Y42: 5.439999793 | Z42: 5.904999975 | AA42: 2 | AB42: 43.63526 | AC42: -94.974455 | AD42: JCT CSAH 23 & CSAH 38 = M.P. 0.380
A43: JACKSON CSAH 23 | B43: 903223 | C43: 7B | D43: 1 | E43: Driving | F43: 0.7 | G43: 7 | H43: 38 | I43: 2 | J43: 65.00000114 | K43: 61.19999847 | L43: 0 | M43: 2013-05-28T13:07:39 | N43: 54.80216926 | O43: 6004.999928 | P43: 6.179999999 | Q43: 5.70999986 | R43: 5.419999966 | S43: 5.020000122 | T43: 4.43000012 | U43: 3.479999929 | V43: 2.689999855 | W43: 2.019999945 | X43: 1.520000066 | Y43: 5.400000139 | Z43: 5.904999975 | AA43: 2 | AB43: 43.63526 | AC43: -94.974455 | AD43: JCT CSAH 23 & CSAH 38 = M.P. 0.380
A44: JACKSON CSAH 23 | B44: 903223 | C44: 7B | D44: 1 | E44: Driving | F44: 0.7 | G44: 7 | H44: 39 | I44: 3 | J44: 65.00000114 | K44: 61.19999847 | L44: 0 | M44: 2013-05-28T13:07:39 | N44: 54.40215139 | O44: 5954.999971 | P44: 6.220000253 | Q44: 5.769999941 | R44: 5.46000022 | S44: 5.04000025 | T44: 4.449999947 | U44: 3.479999929 | V44: 2.689999855 | W44: 2.019999945 | X44: 1.510000002 | Y44: 5.419999966 | Z44: 5.904999975 | AA44: 2 | AB44: 43.63526 | AC44: -94.974455 | AD44: JCT CSAH 23 & CSAH 38 = M.P. 0.380
A45: JACKSON CSAH 23 | B45: 903223 | C45: 7B | D45: 1 | E45: Driving | F45: 0.7 | G45: 7 | H45: 40 | I45: 4 | J45: 65.00000114 | K45: 61.19999847 | L45: 0 | M45: 2013-05-28T13:07:39 | N45: 80.80319356 | O45: 8849.000259 | P45: 9.08000014 | Q45: 8.409999929 | R45: 7.93999979 | S45: 7.330000262 | T45: 6.489999719 | U45: 5.089999817 | V45: 3.959999982 | W45: 2.98000005 | X45: 2.250000058 | Y45: 7.949999704 | Z45: 5.904999975 | AA45: 2 | AB45: 43.63526 | AC45: -94.974455 | AD45: JCT CSAH 23 & CSAH 38 = M.P. 0.380
A46: JACKSON CSAH 23 | B46: 903223 | C46: 7B | D46: 1 | E46: Driving | F46: 0.7 | G46: 7 | H46: 41 | I46: 5 | J46: 65.00000114 | K46: 61.19999847 | L46: 0 | M46: 2013-05-28T13:07:39 | N46: 80.90319913 | O46: 8865.000314 | P46: 9.08000014 | Q46: 8.400000015 | R46: 7.93999979 | S46: 7.350000089 | T46: 6.489999719 | U46: 5.110000245 | V46: 3.950000068 | W46: 2.98000005 | X46: 2.239999994 | Y46: 7.949999704 | Z46: 5.904999975 | AA46: 2 | AB46: 43.63526 | AC46: -94.974455 | AD46: JCT CSAH 23 & CSAH 38 = M.P. 0.380
A47: JACKSON CSAH 23 | B47: 903223 | C47: 7B | D47: 1 | E47: Driving | F47: 0.7 | G47: 7 | H47: 42 | I47: 6 | J47: 65.00000114 | K47: 61.19999847 | L47: 0 | M47: 2013-05-28T13:07:39 | N47: 80.60319126 | O47: 8829.999658 | P47: 9.070000226 | Q47: 8.400000015 | R47: 7.960000218 | S47: 7.360000002 | T47: 6.520000061 | U47: 5.130000072 | V47: 3.969999895 | W47: 2.970000136 | X47: 2.220000017 | Y47: 7.929999877 | Z47: 5.904999975 | AA47: 2 | AB47: 43.63526 | AC47: -94.974455 | AD47: JCT CSAH 23 & CSAH 38 = M.P. 0.380
A48: JACKSON CSAH 23 | B48: 903223 | C48: 7B | D48: 1 | E48: Driving | F48: 0.8 | G48: 8 | H48: 43 | I48: 1 | J48: 64.90000153 | K48: 61.30000153 | L48: 0 | M48: 2013-05-28T13:08:44 | N48: 54.80216926 | O48: 6004.999928 | P48: 4.740000142 | Q48: 4.220000135 | R48: 3.950000068 | S48: 3.600000092 | T48: 3.139999867 | U48: 2.48000002 | V48: 1.94999995 | W48: 1.499999938 | X48: 1.180000004 | Y48: 3.910000114 | Z48: 5.904999975 | AA48: 2 | AB48: 43.633815 | AC48: -94.97445 | AD48: JCT CSAH 23 & CSAH 38 = M.P. 0.380
A49: JACKSON CSAH 23 | B49: 903223 | C49: 7B | D49: 1 | E49: Driving | F49: 0.8 | G49: 8 | H49: 44 | I49: 2 | J49: 64.90000153 | K49: 61.30000153 | L49: 0 | M49: 2013-05-28T13:08:44 | N49: 54.00213795 | O49: 5914.999834 | P49: 4.659999933 | Q49: 4.099999972 | R49: 3.829999905 | S49: 3.530000097 | T49: 3.069999872 | U49: 2.419999939 | V49: 1.909999996 | W49: 1.479999961 | X49: 1.199999981 | Y49: 3.850000032 | Z49: 5.904999975 | AA49: 2 | AB49: 43.633815 | AC49: -94.97445 | AD49: JCT CSAH 23 & CSAH 38 = M.P. 0.380
A50: JACKSON CSAH 23 | B50: 903223 | C50: 7B | D50: 1 | E50: Driving | F50: 0.8 | G50: 8 | H50: 45 | I50: 3 | J50: 64.90000153 | K50: 61.30000153 | L50: 0 | M50: 2013-05-28T13:08:44 | N50: 53.10210106 | O50: 5814.999919 | P50: 4.500000116 | Q50: 4.020000063 | R50: 3.770000124 | S50: 3.470000016 | T50: 3.029999918 | U50: 2.379999984 | V50: 1.890000018 | W50: 1.470000048 | X50: 1.170000015 | Y50: 3.78999995 | Z50: 5.904999975 | AA50: 2 | AB50: 43.633815 | AC50: -94.97445 | AD50: JCT CSAH 23 & CSAH 38 = M.P. 0.380
A51: JACKSON CSAH 23 | B51: 903223 | C51: 7B | D51: 1 | E51: Driving | F51: 0.8 | G51: 8 | H51: 46 | I51: 4 | J51: 64.90000153 | K51: 61.30000153 | L51: 0 | M51: 2013-05-28T13:08:44 | N51: 79.60315323 | O51: 8713.999689 | P51: 6.650000137 | Q51: 5.9600001 | R51: 5.569999869 | S51: 5.09999973 | T51: 4.449999947 | U51: 3.490000143 | V51: 2.759999851 | W51: 2.139999958 | X51: 1.730000051 | Y51: 5.579999783 | Z51: 5.904999975 | AA51: 2 | AB51: 43.633815 | AC51: -94.97445 | AD51: JCT CSAH 23 & CSAH 38 = M.P. 0.380
A52: JACKSON CSAH 23 | B52: 903223 | C52: 7B | D52: 1 | E52: Driving | F52: 0.8 | G52: 8 | H52: 47 | I52: 5 | J52: 64.90000153 | K52: 61.30000153 | L52: 0 | M52: 2013-05-28T13:08:44 | N52: 80.30317454 | O52: 8801.999991 | P52: 6.730000046 | Q52: 6.040000008 | R52: 5.649999778 | S52: 5.190000153 | T52: 4.54000007 | U52: 3.579999965 | V52: 2.819999932 | W52: 2.20000004 | X52: 1.759999942 | Y52: 5.670000206 | Z52: 5.904999975 | AA52: 2 | AB52: 43.633815 | AC52: -94.97445 | AD52: JCT CSAH 23 & CSAH 38 = M.P. 0.380
A53: JACKSON CSAH 23 | B53: 903223 | C53: 7B | D53: 1 | E53: Driving | F53: 0.8 | G53: 8 | H53: 48 | I53: 6 | J53: 64.90000153 | K53: 61.30000153 | L53: 0 | M53: 2013-05-28T13:08:44 | N53: 80.80319356 | O53: 8849.000259 | P53: 6.739999959 | Q53: 6.030000095 | R53: 5.649999778 | S53: 5.149999899 | T53: 4.500000116 | U53: 3.530000097 | V53: 2.789999891 | W53: 2.20000004 | X53: 1.780000069 | Y53: 5.670000206 | Z53: 5.904999975 | AA53: 2 | AB53: 43.633815 | AC53: -94.97445 | AD53: JCT CSAH 23 & CSAH 38 = M.P. 0.380
A54: JACKSON CSAH 23 | B54: 903223 | C54: 7B | D54: 1 | E54: Driving | F54: 0.9 | G54: 9 | H54: 49 | I54: 1 | J54: 64.79999847 | K54: 61.30000153 | L54: 0 | M54: 2013-05-28T13:10:22 | N54: 54.60215811 | O54: 5982.000171 | P54: 4.890000045 | Q54: 4.570000111 | R54: 4.29000013 | S54: 3.999999936 | T54: 3.560000138 | U54: 2.810000019 | V54: 2.239999994 | W54: 1.680000033 | X54: 1.300000017 | Y54: 4.239999962 | Z54: 5.904999975 | AA54: 2 | AB54: 43.6323667 | AC54: -94.9744483 | AD54: JCT CSAH 23 & CSAH 38 = M.P. 0.380
A55: JACKSON CSAH 23 | B55: 903223 | C55: 7B | D55: 1 | E55: Driving | F55: 0.9 | G55: 9 | H55: 50 | I55: 2 | J55: 64.79999847 | K55: 61.30000153 | L55: 0 | M55: 2013-05-28T13:10:22 | N55: 54.60215811 | O55: 5986.000185 | P55: 4.880000132 | Q55: 4.529999856 | R55: 4.260000089 | S55: 3.959999982 | T55: 3.490000143 | U55: 2.779999978 | V55: 2.189999976 | W55: 1.649999992 | X55: 1.249999999 | Y55: 4.190000094 | Z55: 5.904999975 | AA55: 2 | AB55: 43.6323667 | AC55: -94.9744483 | AD55: JCT CSAH 23 & CSAH 38 = M.P. 0.380
A56: JACKSON CSAH 23 | B56: 903223 | C56: 7B | D56: 1 | E56: Driving | F56: 0.9 | G56: 9 | H56: 51 | I56: 3 | J56: 64.79999847 | K56: 61.30000153 | L56: 0 | M56: 2013-05-28T13:10:22 | N56: 54.40215139 | O56: 5958.000089 | P56: 4.829999964 | Q56: 4.529999856 | R56: 4.260000089 | S56: 3.959999982 | T56: 3.490000143 | U56: 2.789999891 | V56: 2.20000004 | W56: 1.649999992 | X56: 1.260000062 | Y56: 4.169999967 | Z56: 5.904999975 | AA56: 2 | AB56: 43.6323667 | AC56: -94.9744483 | AD56: JCT CSAH 23 & CSAH 38 = M.P. 0.380
A57: JACKSON CSAH 23 | B57: 903223 | C57: 7B | D57: 1 | E57: Driving | F57: 0.9 | G57: 9 | H57: 52 | I57: 4 | J57: 64.79999847 | K57: 61.30000153 | L57: 0 | M57: 2013-05-28T13:10:22 | N57: 80.80319356 | O57: 8853.999741 | P57: 7.109999762 | Q57: 6.599999969 | R57: 6.220000253 | S57: 5.730000287 | T57: 5.079999904 | U57: 4.03999989 | V57: 3.190000035 | W57: 2.419999939 | X57: 1.820000023 | Y57: 6.160000172 | Z57: 5.904999975 | AA57: 2 | AB57: 43.6323667 | AC57: -94.9744483 | AD57: JCT CSAH 23 & CSAH 38 = M.P. 0.380
A58: JACKSON CSAH 23 | B58: 903223 | C58: 7B | D58: 1 | E58: Driving | F58: 0.9 | G58: 9 | H58: 53 | I58: 5 | J58: 64.79999847 | K58: 61.30000153 | L58: 0 | M58: 2013-05-28T13:10:22 | N58: 80.40318011 | O58: 8805.999576 | P58: 7.080000022 | Q58: 6.590000056 | R58: 6.220000253 | S58: 5.760000028 | T58: 5.130000072 | U58: 4.069999931 | V58: 3.209999862 | W58: 2.430000002 | X58: 1.840000001 | Y58: 6.119999917 | Z58: 5.904999975 | AA58: 2 | AB58: 43.6323667 | AC58: -94.9744483 | AD58: JCT CSAH 23 & CSAH 38 = M.P. 0.380
A59: JACKSON CSAH 23 | B59: 903223 | C59: 7B | D59: 1 | E59: Driving | F59: 0.9 | G59: 9 | H59: 54 | I59: 6 | J59: 64.79999847 | K59: 61.30000153 | L59: 0 | M59: 2013-05-28T13:10:22 | N59: 81.0032047 | O59: 8877.999823 | P59: 7.120000276 | Q59: 6.599999969 | R59: 6.230000167 | S59: 5.730000287 | T59: 5.09999973 | U59: 4.050000104 | V59: 3.209999862 | W59: 2.460000043 | X59: 1.890000018 | Y59: 6.189999912 | Z59: 5.904999975 | AA59: 2 | AB59: 43.6323667 | AC59: -94.9744483 | AD59: JCT CSAH 23 & CSAH 38 = M.P. 0.380
A60: JACKSON CSAH 23 | B60: 903223 | C60: 7B | D60: 1 | E60: Driving | F60: 0.99 | G60: 10 | H60: 55 | I60: 1 | J60: 64.79999847 | K60: 61.40000114 | L60: 0 | M60: 2013-05-28T13:11:34 | N60: 53.40211335 | O60: 5851.000043 | P60: 14.15000013 | Q60: 11.93000011 | R60: 10.21000058 | S60: 8.58000026 | T60: 6.699999705 | U60: 4.40000008 | V60: 2.970000136 | W60: 2.130000045 | X60: 1.669999969 | Y60: 10.41999996 | Z60: 5.904999975 | AA60: 2 | AB60: 43.6310633 | AC60: -94.97444 | AD60: JCT CSAH 23 & CSAH 38 = M.P. 0.380
A61: JACKSON CSAH 23 | B61: 903223 | C61: 7B | D61: 1 | E61: Driving | F61: 0.99 | G61: 10 | H61: 56 | I61: 2 | J61: 64.79999847 | K61: 61.40000114 | L61: 0 | M61: 2013-05-28T13:11:34 | N61: 52.10206302 | O61: 5711.999887 | P61: 13.62999982 | Q61: 11.46000057 | R61: 9.840000173 | S61: 8.260000025 | T61: 6.479999806 | U61: 4.249999876 | V61: 2.910000055 | W61: 2.130000045 | X61: 1.689999947 | Y61: 10.10000033 | Z61: 5.904999975 | AA61: 2 | AB61: 43.6310633 | AC61: -94.97444 | AD61: JCT CSAH 23 & CSAH 38 = M.P. 0.380
A62: JACKSON CSAH 23 | B62: 903223 | C62: 7B | D62: 1 | E62: Driving | F62: 0.99 | G62: 10 | H62: 57 | I62: 3 | J62: 64.79999847 | K62: 61.40000114 | L62: 0 | M62: 2013-05-28T13:11:34 | N62: 52.10206302 | O62: 5711.999887 | P62: 13.51999957 | Q62: 11.34000041 | R62: 9.700000182 | S62: 8.129999948 | T62: 6.319999989 | U62: 4.069999931 | V62: 2.679999942 | W62: 1.870000041 | X62: 1.389999989 | Y62: 10.01999982 | Z62: 5.904999975 | AA62: 2 | AB62: 43.6310633 | AC62: -94.97444 | AD62: JCT CSAH 23 & CSAH 38 = M.P. 0.380
A63: JACKSON CSAH 23 | B63: 903223 | C63: 7B | D63: 1 | E63: Driving | F63: 0.99 | G63: 10 | H63: 58 | I63: 4 | J63: 64.79999847 | K63: 61.40000114 | L63: 0 | M63: 2013-05-28T13:11:34 | N63: 76.70303585 | O63: 8400.999579 | P63: 20.44000098 | Q63: 17.20000017 | R63: 14.75999966 | S63: 12.38999974 | T63: 9.720000009 | U63: 6.319999989 | V63: 4.270000003 | W63: 3.110000127 | X63: 2.440000066 | Y63: 15.17999963 | Z63: 5.904999975 | AA63: 2 | AB63: 43.6310633 | AC63: -94.97444 | AD63: JCT CSAH 23 & CSAH 38 = M.P. 0.380
A64: JACKSON CSAH 23 | B64: 903223 | C64: 7B | D64: 1 | E64: Driving | F64: 0.99 | G64: 10 | H64: 59 | I64: 5 | J64: 64.79999847 | K64: 61.40000114 | L64: 0 | M64: 2013-05-28T13:11:34 | N64: 77.10304929 | O64: 8448.999744 | P64: 20.46000081 | Q64: 17.2899994 | R64: 14.81000043 | S64: 12.45000042 | T64: 9.770000177 | U64: 6.349999729 | V64: 4.279999916 | W64: 3.080000086 | X64: 2.460000043 | Y64: 15.28999988 | Z64: 5.904999975 | AA64: 2 | AB64: 43.6310633 | AC64: -94.97444 | AD64: JCT CSAH 23 & CSAH 38 = M.P. 0.380
A65: JACKSON CSAH 23 | B65: 903223 | C65: 7B | D65: 1 | E65: Driving | F65: 0.99 | G65: 10 | H65: 60 | I65: 6 | J65: 64.79999847 | K65: 61.40000114 | L65: 0 | M65: 2013-05-28T13:11:34 | N65: 76.90303814 | O65: 8420.00018 | P65: 20.46000081 | Q65: 17.27999948 | R65: 14.82000034 | S65: 12.47000025 | T65: 9.799999918 | U65: 6.38000007 | V65: 4.300000044 | W65: 3.129999954 | X65: 2.48000002 | Y65: 15.26000014 | Z65: 5.904999975 | AA65: 2 | AB65: 43.6310633 | AC65: -94.97444 | AD65: JCT CSAH 23 & CSAH 38 = M.P. 0.380
A66: JACKSON CSAH 23 | B66: 903223 | C66: 7B | D66: 1 | E66: Driving | F66: 1.1 | G66: 11 | H66: 61 | I66: 1 | J66: 64.69999886 | K66: 61.40000114 | L66: 0 | M66: 2013-05-28T13:13:34 | N66: 53.8021268 | O66: 5891.00018 | P66: 4.239999962 | Q66: 3.850000032 | R66: 3.600000092 | S66: 3.299999985 | T66: 2.940000096 | U66: 2.22999993 | V66: 1.770000005 | W66: 1.319999994 | X66: 0.999999984 | Y66: 3.579999965 | Z66: 5.904999975 | AA66: 2 | AB66: 43.62948 | AC66: -94.9744467 | AD66: JCT CSAH 23 & CENTER ST = M.P. 1.023
A67: JACKSON CSAH 23 | B67: 903223 | C67: 7B | D67: 1 | E67: Driving | F67: 1.1 | G67: 11 | H67: 62 | I67: 2 | J67: 64.69999886 | K67: 61.40000114 | L67: 0 | M67: 2013-05-28T13:13:34 | N67: 54.10213909 | O67: 5930.999889 | P67: 4.120000099 | Q67: 3.799999864 | R67: 3.540000011 | S67: 3.26000003 | T67: 2.880000014 | U67: 2.189999976 | V67: 1.739999965 | W67: 1.28000004 | X67: 0.999999984 | Y67: 3.519999883 | Z67: 5.904999975 | AA67: 2 | AB67: 43.62948 | AC67: -94.9744467 | AD67: JCT CSAH 23 & CENTER ST = M.P. 1.023
A68: JACKSON CSAH 23 | B68: 903223 | C68: 7B | D68: 1 | E68: Driving | F68: 1.1 | G68: 11 | H68: 63 | I68: 3 | J68: 64.69999886 | K68: 61.40000114 | L68: 0 | M68: 2013-05-28T13:13:34 | N68: 53.40211335 | O68: 5855.000056 | P68: 4.120000099 | Q68: 3.770000124 | R68: 3.530000097 | S68: 3.220000076 | T68: 2.859999887 | U68: 2.189999976 | V68: 1.70000001 | W68: 1.269999976 | X68: 0.9600000297 | Y68: 3.50999997 | Z68: 5.904999975 | AA68: 2 | AB68: 43.62948 | AC68: -94.9744467 | AD68: JCT CSAH 23 & CENTER ST = M.P. 1.023
A69: JACKSON CSAH 23 | B69: 903223 | C69: 7B | D69: 1 | E69: Driving | F69: 1.1 | G69: 11 | H69: 64 | I69: 4 | J69: 64.69999886 | K69: 61.40000114 | L69: 0 | M69: 2013-05-28T13:13:34 | N69: 79.70314995 | O69: 8727.000055 | P69: 6.170000085 | Q69: 5.629999951 | R69: 5.260000148 | S69: 4.829999964 | T69: 4.260000089 | U69: 3.279999857 | V69: 2.539999952 | W69: 1.899999932 | X69: 1.459999984 | Y69: 5.279999975 | Z69: 5.904999975 | AA69: 2 | AB69: 43.62948 | AC69: -94.9744467 | AD69: JCT CSAH 23 & CENTER ST = M.P. 1.023
A70: JACKSON CSAH 23 | B70: 903223 | C70: 7B | D70: 1 | E70: Driving | F70: 1.1 | G70: 11 | H70: 65 | I70: 5 | J70: 64.69999886 | K70: 61.40000114 | L70: 0 | M70: 2013-05-28T13:13:34 | N70: 79.80315552 | O70: 8737.999771 | P70: 6.220000253 | Q70: 5.680000119 | R70: 5.309999716 | S70: 4.860000005 | T70: 4.29000013 | U70: 3.309999898 | V70: 2.579999906 | W70: 1.940000036 | X70: 1.510000002 | Y70: 5.32000023 | Z70: 5.904999975 | AA70: 2 | AB70: 43.62948 | AC70: -94.9744467 | AD70: JCT CSAH 23 & CENTER ST = M.P. 1.023
A71: JACKSON CSAH 23 | B71: 903223 | C71: 7B | D71: 1 | E71: Driving | F71: 1.1 | G71: 11 | H71: 66 | I71: 6 | J71: 64.69999886 | K71: 61.40000114 | L71: 0 | M71: 2013-05-28T13:13:34 | N71: 80.60319126 | O71: 8825.000177 | P71: 6.220000253 | Q71: 5.670000206 | R71: 5.309999716 | S71: 4.869999918 | T71: 4.279999916 | U71: 3.309999898 | V71: 2.560000079 | W71: 1.920000059 | X71: 1.479999961 | Y71: 5.32000023 | Z71: 5.904999975 | AA71: 2 | AB71: 43.62948 | AC71: -94.9744467 | AD71: JCT CSAH 23 & CENTER ST = M.P. 1.023
A72: JACKSON CSAH 23 | B72: 903223 | C72: 7B | D72: 1 | E72: Driving | F72: 1.2 | G72: 12 | H72: 67 | I72: 1 | J72: 65.3 | K72: 61.50000076 | L72: 0 | M72: 2013-05-28T13:14:52 | N72: 55.2021827 | O72: 6045.000066 | P72: 2.940000096 | Q72: 2.609999947 | R72: 2.440000066 | S72: 2.239999994 | T72: 1.929999973 | U72: 1.510000002 | V72: 1.170000015 | W72: 0.8799999709 | X72: 0.6799999741 | Y72: 2.440000066 | Z72: 5.904999975 | AA72: 2 | AB72: 43.6280116 | AC72: -94.9744567 | AD72: JCT CSAH 23 & CENTER ST = M.P. 1.023
A73: JACKSON CSAH 23 | B73: 903223 | C73: 7B | D73: 1 | E73: Driving | F73: 1.2 | G73: 12 | H73: 68 | I73: 2 | J73: 65.3 | K73: 61.50000076 | L73: 0 | M73: 2013-05-28T13:14:52 | N73: 55.10218155 | O73: 6033.999921 | P73: 2.889999927 | Q73: 2.569999993 | R73: 2.399999962 | S73: 2.180000063 | T73: 1.890000018 | U73: 1.470000048 | V73: 1.139999974 | W73: 0.8699999823 | X73: 0.6899999627 | Y73: 2.399999962 | Z73: 5.904999975 | AA73: 2 | AB73: 43.6280116 | AC73: -94.9744567 | AD73: JCT CSAH 23 & CENTER ST = M.P. 1.023
A74: JACKSON CSAH 23 | B74: 903223 | C74: 7B | D74: 1 | E74: Driving | F74: 1.2 | G74: 12 | H74: 69 | I74: 3 | J74: 65.3 | K74: 61.50000076 | L74: 0 | M74: 2013-05-28T13:14:52 | N74: 54.70216368 | O74: 5994.000212 | P74: 2.849999973 | Q74: 2.549999865 | R74: 2.379999984 | S74: 2.180000063 | T74: 1.890000018 | U74: 1.479999961 | V74: 1.149999963 | W74: 0.8699999823 | X74: 0.6899999627 | Y74: 2.370000071 | Z74: 5.904999975 | AA74: 2 | AB74: 43.6280116 | AC74: -94.9744567 | AD74: JCT CSAH 23 & CENTER ST = M.P. 1.023
A75: JACKSON CSAH 23 | B75: 903223 | C75: 7B | D75: 1 | E75: Driving | F75: 1.2 | G75: 12 | H75: 70 | I75: 4 | J75: 65.3 | K75: 61.50000076 | L75: 0 | M75: 2013-05-28T13:14:52 | N75: 81.10321028 | O75: 8885.99985 | P75: 4.260000089 | Q75: 3.78999995 | R75: 3.540000011 | S75: 3.26000003 | T75: 2.849999973 | U75: 2.220000017 | V75: 1.719999987 | W75: 1.319999994 | X75: 1.030000025 | Y75: 3.560000138 | Z75: 5.904999975 | AA75: 2 | AB75: 43.6280116 | AC75: -94.9744567 | AD75: JCT CSAH 23 & CENTER ST = M.P. 1.023
A76: JACKSON CSAH 23 | B76: 903223 | C76: 7B | D76: 1 | E76: Driving | F76: 1.2 | G76: 12 | H76: 71 | I76: 5 | J76: 65.3 | K76: 61.50000076 | L76: 0 | M76: 2013-05-28T13:14:52 | N76: 80.90319913 | O76: 8857.000287 | P76: 4.249999876 | Q76: 3.780000037 | R76: 3.530000097 | S76: 3.250000117 | T76: 2.84000006 | U76: 2.220000017 | V76: 1.719999987 | W76: 1.30999993 | X76: 1.020000036 | Y76: 3.560000138 | Z76: 5.904999975 | AA76: 2 | AB76: 43.6280116 | AC76: -94.9744567 | AD76: JCT CSAH 23 & CENTER ST = M.P. 1.023
A77: JACKSON CSAH 23 | B77: 903223 | C77: 7B | D77: 1 | E77: Driving | F77: 1.2 | G77: 12 | H77: 72 | I77: 6 | J77: 65.3 | K77: 61.50000076 | L77: 0 | M77: 2013-05-28T13:14:52 | N77: 80.80319356 | O77: 8849.000259 | P77: 4.239999962 | Q77: 3.780000037 | R77: 3.519999883 | S77: 3.209999862 | T77: 2.800000105 | U77: 2.189999976 | V77: 1.70000001 | W77: 1.300000017 | X77: 1.020000036 | Y77: 3.560000138 | Z77: 5.904999975 | AA77: 2 | AB77: 43.6280116 | AC77: -94.9744567 | AD77: JCT CSAH 23 & CENTER ST = M.P. 1.023

Sheet CALC
T1: TONN | AA1: Lukenan's Analyses
AB2: Peak | AD2: Spring
Q3: Pvm't. | AA3: Temp. | AB3: Spring | AC3: Radius to | AD3: Subgrade
Q4: Temp. | U4: Calculated | V4: Reported | W4: Calculated | X4: Reported | AA4: Adj | AB4: Defl. | AC4: 1/2 peak | AD4: Modulus | AE4: Effective Values
A5: Station | B5: DropNumber | C5: SurfaceTemperature | D5: PreviousDayAirTemp | E5: Time | F5: Force | G5: D1 | H5: D2 | I5: D3 | J5: D4 | K5: D5 | L5: D6 | M5: D7 | N5: D8 | O5: D9 | P5: D10 | Q5: °F | R5: BB 9000 | S5: Temp Adj | T5: BB80 | U5: Tonn | V5: Tonn | W5: overlay | X5: Overlay | Y5: Life | Z5: Allowable | AA5: Fact. | AB5: mils | AC5: Inches | AD5: psi | AE5: R-value | AF5: G.E., in. | AG5: Tons | AH5: seasonal | AI5: ESALs
A6: 0.1 | B6: 6 | C6: 65.20000038 | D6: =SUMMARY!B8 -> 0 | E6: 12:59:52 | F6: 8651.000223 | G6: 12.85000056 | H6: 11.06000043 | I6: 9.949999822 | J6: 8.709999736 | K6: 7.15999993 | L6: 4.839999877 | M6: 3.239999903 | N6: 2.100000004 | O6: 1.590000061 | P6: 12.91999996 | Q6: =BELLS3(C6,E6,SUMMARY!E11/2,SUMMARY!$B$8) -> -999 | R6: =IF(SUMMARY!$B$37="F",3.8+9000/F6*G6,9000/F6*G6*1.05+5.15) -> 19.18681681 | S6: =(R6^(-0.1)+(80^0.69-(Q6)^0.69)*(-0.00824082*SUMMARY!E11^0.23+0.00782112))^(1/(-0.1)) ->  | T6: =S6*AH6 ->  | U6: =10*(0.9*Z6)/T6 ->  | V6: =IF(U6>10,10,U6) ->  | W6: =IF(LN((T6/(0.9*Z6))^8.5812)<0,0,LN((T6/(0.9*(VLOOKUP(SUMMARY!E11+LN((T6/(0.9*Z6))^8.5812),TA!$A$7:'TA'!$G$9,HLOOKUP(AI6,TA!$D$1:'TA'!$G$2,2))*1000)))^8.5812)) ->  | X6: =IF(W6<0,0,W6) ->  | Y6: =114815362149.67/(T6^3.2499999) ->  | Z6: =VLOOKUP(SUMMARY!E11,TA!$A$7:'TA'!$G$9,HLOOKUP(AI6,TA!$D$1:'TA'!$G$2,2))*1000 ->  | AA6: =TAFDefl(80,Q6,SUMMARY!E11,IF('FWD Data'!K2=36,CALC!L6,CALC!$M$6)*9000/CALC!F6,45) ->  | AB6: =ssbb80(G6,F6,AA6,AH6) ->  | AC6: =radius5('FWD Data'!$Q$2,'FWD Data'!$F$2:$O$2,G6:P6) -> 27.58498686 | AD6: =hogg(F6,G6,G6/2,AC6,2)*1.3/((AH6-1)/2+1) -> 8723.731482 | AE6: =(0.41+0.873*AD6/1000)^1.28 -> 14.37958275 | AF6: =xEffSN(T6,AD6)/0.14 ->  | AG6: =9*Z6/T6 ->  | AH6: =IF(SUMMARY!$F11="P",INDEX('Seasonal Adj Factors'!$E$10:$M$15,IF(AND(SUMMARY!$B$37="f",VLOOKUP(SUMMARY!E11,'Seasonal Adj Factors'!$C$10:$D$14,2)=5),6,VLOOKUP(SUMMARY!E11,'Seasonal Adj Factors'!$C$10:$D$14,2)),HLOOKUP('FWD Data'!$D$4,'Seasonal Adj Factors'!$E$6:$M$7,2)),IF(SUMMARY!$F11="S",INDEX('Seasonal Adj Factors'!$E$20:$M$21,VLOOKUP(SUMMARY!E11,'Seasonal Adj Factors'!$C$20:$D$21,2),HLOOKUP('FWD Data'!$D$4,'Seasonal Adj Factors'!$E$6:$M$7,2)),INDEX('Seasonal Adj Factors'!$E$26:$M$28,VLOOKUP(SUMMARY!E11,'Seasonal Adj Factors'!$C$26:$D$28,2),HLOOKUP('FWD Data'!$D$4,'Seasonal Adj Factors'!$E$6:$M$7,2)))) -> 1.41 | AI6: =IF(SUMMARY!G11>0,IF(SUMMARY!G11=1,20,IF(SUMMARY!G11=2,35,IF(SUMMARY!G11=3,100,200))),"") -> 
A7: 0.18 | B7: 6 | C7: 65.90000114 | D7: =SUMMARY!B8 -> 0 | E7: 13:01:21 | F7: 8825.000177 | G7: 9.920000081 | H7: 8.989999717 | I7: 8.260000025 | J7: 7.369999916 | K7: 6.170000085 | L7: 4.270000003 | M7: 2.929999882 | N7: 1.920000059 | O7: 1.370000012 | P7: 8.19000003 | Q7: =BELLS3(C7,E7,SUMMARY!E12/2,SUMMARY!$B$8) -> -999 | R7: =IF(SUMMARY!$B$37="F",3.8+9000/F7*G7,9000/F7*G7*1.05+5.15) -> 15.77254945 | S7: =(R7^(-0.1)+(80^0.69-(Q7)^0.69)*(-0.00824082*SUMMARY!E12^0.23+0.00782112))^(1/(-0.1)) ->  | T7: =S7*AH7 ->  | U7: =10*(0.9*Z7)/T7 ->  | V7: =IF(U7>10,10,U7) ->  | W7: =IF(LN((T7/(0.9*Z7))^8.5812)<0,0,LN((T7/(0.9*(VLOOKUP(SUMMARY!E12+LN((T7/(0.9*Z7))^8.5812),TA!$A$7:'TA'!$G$9,HLOOKUP(AI7,TA!$D$1:'TA'!$G$2,2))*1000)))^8.5812)) ->  | X7: =IF(W7<0,0,W7) ->  | Y7: =114815362149.67/(T7^3.2499999) ->  | Z7: =VLOOKUP(SUMMARY!E12,TA!$A$7:'TA'!$G$9,HLOOKUP(AI7,TA!$D$1:'TA'!$G$2,2))*1000 ->  | AA7: =TAFDefl(80,Q7,SUMMARY!E12,IF('FWD Data'!K3=36,CALC!L7,CALC!$M$6)*9000/CALC!F7,45) ->  | AB7: =ssbb80(G7,F7,AA7,AH7) ->  | AC7: =radius5('FWD Data'!$Q$2,'FWD Data'!$F$2:$O$2,G7:P7) -> 31.76927207 | AD7: =hogg(F7,G7,G7/2,AC7,2)*1.3/((AH7-1)/2+1) -> 9948.282871 | AE7: =(0.41+0.873*AD7/1000)^1.28 -> 16.87556608 | AF7: =xEffSN(T7,AD7)/0.14 ->  | AG7: =9*Z7/T7 ->  | AH7: =IF(SUMMARY!$F12="P",INDEX('Seasonal Adj Factors'!$E$10:$M$15,IF(AND(SUMMARY!$B$37="f",VLOOKUP(SUMMARY!E12,'Seasonal Adj Factors'!$C$10:$D$14,2)=5),6,VLOOKUP(SUMMARY!E12,'Seasonal Adj Factors'!$C$10:$D$14,2)),HLOOKUP('FWD Data'!$D$4,'Seasonal Adj Factors'!$E$6:$M$7,2)),IF(SUMMARY!$F12="S",INDEX('Seasonal Adj Factors'!$E$20:$M$21,VLOOKUP(SUMMARY!E12,'Seasonal Adj Factors'!$C$20:$D$21,2),HLOOKUP('FWD Data'!$D$4,'Seasonal Adj Factors'!$E$6:$M$7,2)),INDEX('Seasonal Adj Factors'!$E$26:$M$28,VLOOKUP(SUMMARY!E12,'Seasonal Adj Factors'!$C$26:$D$28,2),HLOOKUP('FWD Data'!$D$4,'Seasonal Adj Factors'!$E$6:$M$7,2)))) -> 1.41 | AI7: =IF(SUMMARY!G12>0,IF(SUMMARY!G12=1,20,IF(SUMMARY!G12=2,35,IF(SUMMARY!G12=3,100,200))),"") -> 
A8: 0.3 | B8: 6 | C8: 65.00000114 | D8: =SUMMARY!B8 -> 0 | E8: 13:02:30 | F8: 8901.999905 | G8: 10.13000007 | H8: 9.210000216 | I8: 8.499999751 | J8: 7.569999987 | K8: 6.370000157 | L8: 4.459999861 | M8: 3.029999918 | N8: 1.999999968 | O8: 1.389999989 | P8: 8.429999756 | Q8: =BELLS3(C8,E8,SUMMARY!E13/2,SUMMARY!$B$8) -> -999 | R8: =IF(SUMMARY!$B$37="F",3.8+9000/F8*G8,9000/F8*G8*1.05+5.15) -> 15.90359488 | S8: =(R8^(-0.1)+(80^0.69-(Q8)^0.69)*(-0.00824082*SUMMARY!E13^0.23+0.00782112))^(1/(-0.1)) ->  | W8: =IF(LN((T8/(0.9*Z8))^8.5812)<0,0,LN((T8/(0.9*(VLOOKUP(SUMMARY!E13+LN((T8/(0.9*Z8))^8.5812),TA!$A$7:'TA'!$G$9,HLOOKUP(AI8,TA!$D$1:'TA'!$G$2,2))*1000)))^8.5812)) ->  | Z8: =VLOOKUP(SUMMARY!E13,TA!$A$7:'TA'!$G$9,HLOOKUP(AI8,TA!$D$1:'TA'!$G$2,2))*1000 ->  | AA8: =TAFDefl(80,Q8,SUMMARY!E13,IF('FWD Data'!K4=36,CALC!L8,CALC!$M$6)*9000/CALC!F8,45) ->  | AC8: =radius5('FWD Data'!$Q$2,'FWD Data'!$F$2:$O$2,G8:P8) -> 32.26966189 | AD8: 9668.724715 | AE8: 16.29811681 | AH8: =IF(SUMMARY!$F13="P",INDEX('Seasonal Adj Factors'!$E$10:$M$15,IF(AND(SUMMARY!$B$37="f",VLOOKUP(SUMMARY!E13,'Seasonal Adj Factors'!$C$10:$D$14,2)=5),6,VLOOKUP(SUMMARY!E13,'Seasonal Adj Factors'!$C$10:$D$14,2)),HLOOKUP('FWD Data'!$D$4,'Seasonal Adj Factors'!$E$6:$M$7,2)),IF(SUMMARY!$F13="S",INDEX('Seasonal Adj Factors'!$E$20:$M$21,VLOOKUP(SUMMARY!E13,'Seasonal Adj Factors'!$C$20:$D$21,2),HLOOKUP('FWD Data'!$D$4,'Seasonal Adj Factors'!$E$6:$M$7,2)),INDEX('Seasonal Adj Factors'!$E$26:$M$28,VLOOKUP(SUMMARY!E13,'Seasonal Adj Factors'!$C$26:$D$28,2),HLOOKUP('FWD Data'!$D$4,'Seasonal Adj Factors'!$E$6:$M$7,2)))) -> 1.41 | AI8: =IF(SUMMARY!G13>0,IF(SUMMARY!G13=1,20,IF(SUMMARY!G13=2,35,IF(SUMMARY!G13=3,100,200))),"") -> 
A9: 0.4 | B9: 6 | C9: 65.3 | D9: =SUMMARY!B8 -> 0 | E9: 13:03:55 | F9: 8885.99985 | G9: 8.96999989 | H9: 8.310000193 | I9: 7.849999968 | J9: 7.229999925 | K9: 6.370000157 | L9: 4.969999954 | M9: 3.829999905 | N9: 2.8700001 | O9: 2.189999976 | P9: 7.890000223 | Q9: =BELLS3(C9,E9,SUMMARY!E14/2,SUMMARY!$B$8) -> -999 | R9: =IF(SUMMARY!$B$37="F",3.8+9000/F9*G9,9000/F9*G9*1.05+5.15) -> 14.68933158 | S9: =(R9^(-0.1)+(80^0.69-(Q9)^0.69)*(-0.00824082*SUMMARY!E14^0.23+0.00782112))^(1/(-0.1)) ->  | W9: =IF(LN((T9/(0.9*Z9))^8.5812)<0,0,LN((T9/(0.9*(VLOOKUP(SUMMARY!E14+LN((T9/(0.9*Z9))^8.5812),TA!$A$7:'TA'!$G$9,HLOOKUP(AI9,TA!$D$1:'TA'!$G$2,2))*1000)))^8.5812)) ->  | Z9: =VLOOKUP(SUMMARY!E14,TA!$A$7:'TA'!$G$9,HLOOKUP(AI9,TA!$D$1:'TA'!$G$2,2))*1000 ->  | AA9: =TAFDefl(80,Q9,SUMMARY!E14,IF('FWD Data'!K5=36,CALC!L9,CALC!$M$6)*9000/CALC!F9,45) ->  | AC9: =radius5('FWD Data'!$Q$2,'FWD Data'!$F$2:$O$2,G9:P9) -> 41.34330015 | AD9: 8380.776833 | AE9: 13.69657905 | AH9: =IF(SUMMARY!$F14="P",INDEX('Seasonal Adj Factors'!$E$10:$M$15,IF(AND(SUMMARY!$B$37="f",VLOOKUP(SUMMARY!E14,'Seasonal Adj Factors'!$C$10:$D$14,2)=5),6,VLOOKUP(SUMMARY!E14,'Seasonal Adj Factors'!$C$10:$D$14,2)),HLOOKUP('FWD Data'!$D$4,'Seasonal Adj Factors'!$E$6:$M$7,2)),IF(SUMMARY!$F14="S",INDEX('Seasonal Adj Factors'!$E$20:$M$21,VLOOKUP(SUMMARY!E14,'Seasonal Adj Factors'!$C$20:$D$21,2),HLOOKUP('FWD Data'!$D$4,'Seasonal Adj Factors'!$E$6:$M$7,2)),INDEX('Seasonal Adj Factors'!$E$26:$M$28,VLOOKUP(SUMMARY!E14,'Seasonal Adj Factors'!$C$26:$D$28,2),HLOOKUP('FWD Data'!$D$4,'Seasonal Adj Factors'!$E$6:$M$7,2)))) -> 1.41 | AI9: =IF(SUMMARY!G14>0,IF(SUMMARY!G14=1,20,IF(SUMMARY!G14=2,35,IF(SUMMARY!G14=3,100,200))),"") -> 
A10: 0.5 | B10: 6 | C10: 65.20000038 | D10: =SUMMARY!B8 -> 0 | E10: 13:05:05 | F10: 8745.999799 | G10: 11.23000016 | H10: 10.30999971 | I10: 9.650000014 | J10: 8.810000073 | K10: 7.690000151 | L10: 5.940000273 | M10: 4.589999938 | N10: 3.439999975 | O10: 2.639999988 | P10: 9.679999755 | Q10: =BELLS3(C10,E10,SUMMARY!E15/2,SUMMARY!$B$8) -> -999 | R10: =IF(SUMMARY!$B$37="F",3.8+9000/F10*G10,9000/F10*G10*1.05+5.15) -> 17.2839474 | S10: =(R10^(-0.1)+(80^0.69-(Q10)^0.69)*(-0.00824082*SUMMARY!E15^0.23+0.00782112))^(1/(-0.1)) ->  | W10: =IF(LN((T10/(0.9*Z10))^8.5812)<0,0,LN((T10/(0.9*(VLOOKUP(SUMMARY!E15+LN((T10/(0.9*Z10))^8.5812),TA!$A$7:'TA'!$G$9,HLOOKUP(AI10,TA!$D$1:'TA'!$G$2,2))*1000)))^8.5812)) ->  | Z10: =VLOOKUP(SUMMARY!E15,TA!$A$7:'TA'!$G$9,HLOOKUP(AI10,TA!$D$1:'TA'!$G$2,2))*1000 ->  | AA10: =TAFDefl(80,Q10,SUMMARY!E15,IF('FWD Data'!K6=36,CALC!L10,CALC!$M$6)*9000/CALC!F10,45) ->  | AC10: =radius5('FWD Data'!$Q$2,'FWD Data'!$F$2:$O$2,G10:P10) -> 39.12491133 | AD10: 6988.533535 | AE10: 11.00191226 | AH10: =IF(SUMMARY!$F15="P",INDEX('Seasonal Adj Factors'!$E$10:$M$15,IF(AND(SUMMARY!$B$37="f",VLOOKUP(SUMMARY!E15,'Seasonal Adj Factors'!$C$10:$D$14,2)=5),6,VLOOKUP(SUMMARY!E15,'Seasonal Adj Factors'!$C$10:$D$14,2)),HLOOKUP('FWD Data'!$D$4,'Seasonal Adj Factors'!$E$6:$M$7,2)),IF(SUMMARY!$F15="S",INDEX('Seasonal Adj Factors'!$E$20:$M$21,VLOOKUP(SUMMARY!E15,'Seasonal Adj Factors'!$C$20:$D$21,2),HLOOKUP('FWD Data'!$D$4,'Seasonal Adj Factors'!$E$6:$M$7,2)),INDEX('Seasonal Adj Factors'!$E$26:$M$28,VLOOKUP(SUMMARY!E15,'Seasonal Adj Factors'!$C$26:$D$28,2),HLOOKUP('FWD Data'!$D$4,'Seasonal Adj Factors'!$E$6:$M$7,2)))) -> 1.41 | AI10: =IF(SUMMARY!G15>0,IF(SUMMARY!G15=1,20,IF(SUMMARY!G15=2,35,IF(SUMMARY!G15=3,100,200))),"") -> 
A11: 0.6 | B11: 6 | C11: 65.00000114 | D11: =SUMMARY!B8 -> 0 | E11: 13:06:32 | F11: 8837.999686 | G11: 7.330000262 | H11: 6.7699997 | I11: 6.399999897 | J11: 5.900000018 | K11: 5.239999721 | L11: 4.169999967 | M11: 3.320000112 | N11: 2.569999993 | O11: 2.030000009 | P11: 6.450000066 | Q11: =BELLS3(C11,E11,SUMMARY!E16/2,SUMMARY!$B$8) -> -999 | R11: =IF(SUMMARY!$B$37="F",3.8+9000/F11*G11,9000/F11*G11*1.05+5.15) -> 12.98757693 | S11: =(R11^(-0.1)+(80^0.69-(Q11)^0.69)*(-0.00824082*SUMMARY!E16^0.23+0.00782112))^(1/(-0.1)) ->  | W11: =IF(LN((T11/(0.9*Z11))^8.5812)<0,0,LN((T11/(0.9*(VLOOKUP(SUMMARY!E16+LN((T11/(0.9*Z11))^8.5812),TA!$A$7:'TA'!$G$9,HLOOKUP(AI11,TA!$D$1:'TA'!$G$2,2))*1000)))^8.5812)) ->  | Z11: =VLOOKUP(SUMMARY!E16,TA!$A$7:'TA'!$G$9,HLOOKUP(AI11,TA!$D$1:'TA'!$G$2,2))*1000 ->  | AA11: =TAFDefl(80,Q11,SUMMARY!E16,IF('FWD Data'!K7=36,CALC!L11,CALC!$M$6)*9000/CALC!F11,45) ->  | AC11: =radius5('FWD Data'!$Q$2,'FWD Data'!$F$2:$O$2,G11:P11) -> 43.21323549 | AD11: 9731.326828 | AE11: 16.42704354 | AH11: =IF(SUMMARY!$F16="P",INDEX('Seasonal Adj Factors'!$E$10:$M$15,IF(AND(SUMMARY!$B$37="f",VLOOKUP(SUMMARY!E16,'Seasonal Adj Factors'!$C$10:$D$14,2)=5),6,VLOOKUP(SUMMARY!E16,'Seasonal Adj Factors'!$C$10:$D$14,2)),HLOOKUP('FWD Data'!$D$4,'Seasonal Adj Factors'!$E$6:$M$7,2)),IF(SUMMARY!$F16="S",INDEX('Seasonal Adj Factors'!$E$20:$M$21,VLOOKUP(SUMMARY!E16,'Seasonal Adj Factors'!$C$20:$D$21,2),HLOOKUP('FWD Data'!$D$4,'Seasonal Adj Factors'!$E$6:$M$7,2)),INDEX('Seasonal Adj Factors'!$E$26:$M$28,VLOOKUP(SUMMARY!E16,'Seasonal Adj Factors'!$C$26:$D$28,2),HLOOKUP('FWD Data'!$D$4,'Seasonal Adj Factors'!$E$6:$M$7,2)))) -> 1.41 | AI11: =IF(SUMMARY!G16>0,IF(SUMMARY!G16=1,20,IF(SUMMARY!G16=2,35,IF(SUMMARY!G16=3,100,200))),"") -> 
A12: 0.7 | B12: 6 | C12: 65.00000114 | D12: =SUMMARY!B8 -> 0 | E12: 13:07:39 | F12: 8829.999658 | G12: 9.070000226 | H12: 8.400000015 | I12: 7.960000218 | J12: 7.360000002 | K12: 6.520000061 | L12: 5.130000072 | M12: 3.969999895 | N12: 2.970000136 | O12: 2.220000017 | P12: 7.929999877 | Q12: =BELLS3(C12,E12,SUMMARY!E17/2,SUMMARY!$B$8) -> -999 | R12: =IF(SUMMARY!$B$37="F",3.8+9000/F12*G12,9000/F12*G12*1.05+5.15) -> 14.85685226 | S12: =(R12^(-0.1)+(80^0.69-(Q12)^0.69)*(-0.00824082*SUMMARY!E17^0.23+0.00782112))^(1/(-0.1)) ->  | W12: =IF(LN((T12/(0.9*Z12))^8.5812)<0,0,LN((T12/(0.9*(VLOOKUP(SUMMARY!E17+LN((T12/(0.9*Z12))^8.5812),TA!$A$7:'TA'!$G$9,HLOOKUP(AI12,TA!$D$1:'TA'!$G$2,2))*1000)))^8.5812)) ->  | Z12: =VLOOKUP(SUMMARY!E17,TA!$A$7:'TA'!$G$9,HLOOKUP(AI12,TA!$D$1:'TA'!$G$2,2))*1000 ->  | AA12: =TAFDefl(80,Q12,SUMMARY!E17,IF('FWD Data'!K8=36,CALC!L12,CALC!$M$6)*9000/CALC!F12,45) ->  | AC12: =radius5('FWD Data'!$Q$2,'FWD Data'!$F$2:$O$2,G12:P12) -> 42.32299827 | AD12: 8033.222373 | AE12: 13.01193676 | AH12: =IF(SUMMARY!$F17="P",INDEX('Seasonal Adj Factors'!$E$10:$M$15,IF(AND(SUMMARY!$B$37="f",VLOOKUP(SUMMARY!E17,'Seasonal Adj Factors'!$C$10:$D$14,2)=5),6,VLOOKUP(SUMMARY!E17,'Seasonal Adj Factors'!$C$10:$D$14,2)),HLOOKUP('FWD Data'!$D$4,'Seasonal Adj Factors'!$E$6:$M$7,2)),IF(SUMMARY!$F17="S",INDEX('Seasonal Adj Factors'!$E$20:$M$21,VLOOKUP(SUMMARY!E17,'Seasonal Adj Factors'!$C$20:$D$21,2),HLOOKUP('FWD Data'!$D$4,'Seasonal Adj Factors'!$E$6:$M$7,2)),INDEX('Seasonal Adj Factors'!$E$26:$M$28,VLOOKUP(SUMMARY!E17,'Seasonal Adj Factors'!$C$26:$D$28,2),HLOOKUP('FWD Data'!$D$4,'Seasonal Adj Factors'!$E$6:$M$7,2)))) -> 1.41 | AI12: =IF(SUMMARY!G17>0,IF(SUMMARY!G17=1,20,IF(SUMMARY!G17=2,35,IF(SUMMARY!G17=3,100,200))),"") -> 
A13: 0.8 | B13: 6 | C13: 64.90000153 | D13: =SUMMARY!B8 -> 0 | E13: 13:08:44 | F13: 8849.000259 | G13: 6.739999959 | H13: 6.030000095 | I13: 5.649999778 | J13: 5.149999899 | K13: 4.500000116 | L13: 3.530000097 | M13: 2.789999891 | N13: 2.20000004 | O13: 1.780000069 | P13: 5.670000206 | Q13: =BELLS3(C13,E13,SUMMARY!E18/2,SUMMARY!$B$8) -> -999 | R13: =IF(SUMMARY!$B$37="F",3.8+9000/F13*G13,9000/F13*G13*1.05+5.15) -> 12.3477622 | S13: =(R13^(-0.1)+(80^0.69-(Q13)^0.69)*(-0.00824082*SUMMARY!E18^0.23+0.00782112))^(1/(-0.1)) ->  | W13: =IF(LN((T13/(0.9*Z13))^8.5812)<0,0,LN((T13/(0.9*(VLOOKUP(SUMMARY!E18+LN((T13/(0.9*Z13))^8.5812),TA!$A$7:'TA'!$G$9,HLOOKUP(AI13,TA!$D$1:'TA'!$G$2,2))*1000)))^8.5812)) ->  | Z13: =VLOOKUP(SUMMARY!E18,TA!$A$7:'TA'!$G$9,HLOOKUP(AI13,TA!$D$1:'TA'!$G$2,2))*1000 ->  | AA13: =TAFDefl(80,Q13,SUMMARY!E18,IF('FWD Data'!K9=36,CALC!L13,CALC!$M$6)*9000/CALC!F13,45) ->  | AC13: =radius5('FWD Data'!$Q$2,'FWD Data'!$F$2:$O$2,G13:P13) -> 39.23082228 | AD13: 11747.19074 | AE13: 20.69213999 | AH13: =IF(SUMMARY!$F18="P",INDEX('Seasonal Adj Factors'!$E$10:$M$15,IF(AND(SUMMARY!$B$37="f",VLOOKUP(SUMMARY!E18,'Seasonal Adj Factors'!$C$10:$D$14,2)=5),6,VLOOKUP(SUMMARY!E18,'Seasonal Adj Factors'!$C$10:$D$14,2)),HLOOKUP('FWD Data'!$D$4,'Seasonal Adj Factors'!$E$6:$M$7,2)),IF(SUMMARY!$F18="S",INDEX('Seasonal Adj Factors'!$E$20:$M$21,VLOOKUP(SUMMARY!E18,'Seasonal Adj Factors'!$C$20:$D$21,2),HLOOKUP('FWD Data'!$D$4,'Seasonal Adj Factors'!$E$6:$M$7,2)),INDEX('Seasonal Adj Factors'!$E$26:$M$28,VLOOKUP(SUMMARY!E18,'Seasonal Adj Factors'!$C$26:$D$28,2),HLOOKUP('FWD Data'!$D$4,'Seasonal Adj Factors'!$E$6:$M$7,2)))) -> 1.41 | AI13: =IF(SUMMARY!G18>0,IF(SUMMARY!G18=1,20,IF(SUMMARY!G18=2,35,IF(SUMMARY!G18=3,100,200))),"") -> 
A14: 0.9 | B14: 6 | C14: 64.79999847 | D14: =SUMMARY!B8 -> 0 | E14: 13:10:22 | F14: 8877.999823 | G14: 7.120000276 | H14: 6.599999969 | I14: 6.230000167 | J14: 5.730000287 | K14: 5.09999973 | L14: 4.050000104 | M14: 3.209999862 | N14: 2.460000043 | O14: 1.890000018 | P14: 6.189999912 | Q14: =BELLS3(C14,E14,SUMMARY!E19/2,SUMMARY!$B$8) -> -999 | R14: =IF(SUMMARY!$B$37="F",3.8+9000/F14*G14,9000/F14*G14*1.05+5.15) -> 12.72873439 | S14: =(R14^(-0.1)+(80^0.69-(Q14)^0.69)*(-0.00824082*SUMMARY!E19^0.23+0.00782112))^(1/(-0.1)) ->  | W14: =IF(LN((T14/(0.9*Z14))^8.5812)<0,0,LN((T14/(0.9*(VLOOKUP(SUMMARY!E19+LN((T14/(0.9*Z14))^8.5812),TA!$A$7:'TA'!$G$9,HLOOKUP(AI14,TA!$D$1:'TA'!$G$2,2))*1000)))^8.5812)) ->  | Z14: =VLOOKUP(SUMMARY!E19,TA!$A$7:'TA'!$G$9,HLOOKUP(AI14,TA!$D$1:'TA'!$G$2,2))*1000 ->  | AA14: =TAFDefl(80,Q14,SUMMARY!E19,IF('FWD Data'!K10=36,CALC!L14,CALC!$M$6)*9000/CALC!F14,45) ->  | AC14: =radius5('FWD Data'!$Q$2,'FWD Data'!$F$2:$O$2,G14:P14) -> 42.8271191 | AD14: 10160.16816 | AE14: 17.31613786 | AH14: =IF(SUMMARY!$F19="P",INDEX('Seasonal Adj Factors'!$E$10:$M$15,IF(AND(SUMMARY!$B$37="f",VLOOKUP(SUMMARY!E19,'Seasonal Adj Factors'!$C$10:$D$14,2)=5),6,VLOOKUP(SUMMARY!E19,'Seasonal Adj Factors'!$C$10:$D$14,2)),HLOOKUP('FWD Data'!$D$4,'Seasonal Adj Factors'!$E$6:$M$7,2)),IF(SUMMARY!$F19="S",INDEX('Seasonal Adj Factors'!$E$20:$M$21,VLOOKUP(SUMMARY!E19,'Seasonal Adj Factors'!$C$20:$D$21,2),HLOOKUP('FWD Data'!$D$4,'Seasonal Adj Factors'!$E$6:$M$7,2)),INDEX('Seasonal Adj Factors'!$E$26:$M$28,VLOOKUP(SUMMARY!E19,'Seasonal Adj Factors'!$C$26:$D$28,2),HLOOKUP('FWD Data'!$D$4,'Seasonal Adj Factors'!$E$6:$M$7,2)))) -> 1.41 | AI14: =IF(SUMMARY!G19>0,IF(SUMMARY!G19=1,20,IF(SUMMARY!G19=2,35,IF(SUMMARY!G19=3,100,200))),"") -> 
A15: 0.99 | B15: 6 | C15: 64.79999847 | D15: =SUMMARY!B8 -> 0 | E15: 13:11:34 | F15: 8420.00018 | G15: 20.46000081 | H15: 17.27999948 | I15: 14.82000034 | J15: 12.47000025 | K15: 9.799999918 | L15: 6.38000007 | M15: 4.300000044 | N15: 3.129999954 | O15: 2.48000002 | P15: 15.26000014 | Q15: =BELLS3(C15,E15,SUMMARY!E20/2,SUMMARY!$B$8) -> -999 | R15: =IF(SUMMARY!$B$37="F",3.8+9000/F15*G15,9000/F15*G15*1.05+5.15) -> 28.11282702 | S15: =(R15^(-0.1)+(80^0.69-(Q15)^0.69)*(-0.00824082*SUMMARY!E20^0.23+0.00782112))^(1/(-0.1)) ->  | W15: =IF(LN((T15/(0.9*Z15))^8.5812)<0,0,LN((T15/(0.9*(VLOOKUP(SUMMARY!E20+LN((T15/(0.9*Z15))^8.5812),TA!$A$7:'TA'!$G$9,HLOOKUP(AI15,TA!$D$1:'TA'!$G$2,2))*1000)))^8.5812)) ->  | Z15: =VLOOKUP(SUMMARY!E20,TA!$A$7:'TA'!$G$9,HLOOKUP(AI15,TA!$D$1:'TA'!$G$2,2))*1000 ->  | AA15: =TAFDefl(80,Q15,SUMMARY!E20,IF('FWD Data'!K11=36,CALC!L15,CALC!$M$6)*9000/CALC!F15,45) ->  | AC15: =radius5('FWD Data'!$Q$2,'FWD Data'!$F$2:$O$2,G15:P15) -> 22.7153974 | AD15: 6543.767748 | AE15: 10.16922495 | AH15: =IF(SUMMARY!$F20="P",INDEX('Seasonal Adj Factors'!$E$10:$M$15,IF(AND(SUMMARY!$B$37="f",VLOOKUP(SUMMARY!E20,'Seasonal Adj Factors'!$C$10:$D$14,2)=5),6,VLOOKUP(SUMMARY!E20,'Seasonal Adj Factors'!$C$10:$D$14,2)),HLOOKUP('FWD Data'!$D$4,'Seasonal Adj Factors'!$E$6:$M$7,2)),IF(SUMMARY!$F20="S",INDEX('Seasonal Adj Factors'!$E$20:$M$21,VLOOKUP(SUMMARY!E20,'Seasonal Adj Factors'!$C$20:$D$21,2),HLOOKUP('FWD Data'!$D$4,'Seasonal Adj Factors'!$E$6:$M$7,2)),INDEX('Seasonal Adj Factors'!$E$26:$M$28,VLOOKUP(SUMMARY!E20,'Seasonal Adj Factors'!$C$26:$D$28,2),HLOOKUP('FWD Data'!$D$4,'Seasonal Adj Factors'!$E$6:$M$7,2)))) -> 1.41 | AI15: =IF(SUMMARY!G20>0,IF(SUMMARY!G20=1,20,IF(SUMMARY!G20=2,35,IF(SUMMARY!G20=3,100,200))),"") -> 
A16: 1.1 | B16: 6 | C16: 64.69999886 | D16: =SUMMARY!B8 -> 0 | E16: 13:13:34 | F16: 8825.000177 | G16: 6.220000253 | H16: 5.670000206 | I16: 5.309999716 | J16: 4.869999918 | K16: 4.279999916 | L16: 3.309999898 | M16: 2.560000079 | N16: 1.920000059 | O16: 1.479999961 | P16: 5.32000023 | Q16: =BELLS3(C16,E16,SUMMARY!E21/2,SUMMARY!$B$8) -> -999 | R16: =IF(SUMMARY!$B$37="F",3.8+9000/F16*G16,9000/F16*G16*1.05+5.15) -> 11.81051005 | S16: =(R16^(-0.1)+(80^0.69-(Q16)^0.69)*(-0.00824082*SUMMARY!E21^0.23+0.00782112))^(1/(-0.1)) ->  | W16: =IF(LN((T16/(0.9*Z16))^8.5812)<0,0,LN((T16/(0.9*(VLOOKUP(SUMMARY!E21+LN((T16/(0.9*Z16))^8.5812),TA!$A$7:'TA'!$G$9,HLOOKUP(AI16,TA!$D$1:'TA'!$G$2,2))*1000)))^8.5812)) ->  | Z16: =VLOOKUP(SUMMARY!E21,TA!$A$7:'TA'!$G$9,HLOOKUP(AI16,TA!$D$1:'TA'!$G$2,2))*1000 ->  | AA16: =TAFDefl(80,Q16,SUMMARY!E21,IF('FWD Data'!K12=36,CALC!L16,CALC!$M$6)*9000/CALC!F16,45) ->  | AC16: =radius5('FWD Data'!$Q$2,'FWD Data'!$F$2:$O$2,G16:P16) -> 39.54586926 | AD16: 12586.57214 | AE16: 22.52913172 | AH16: =IF(SUMMARY!$F21="P",INDEX('Seasonal Adj Factors'!$E$10:$M$15,IF(AND(SUMMARY!$B$37="f",VLOOKUP(SUMMARY!E21,'Seasonal Adj Factors'!$C$10:$D$14,2)=5),6,VLOOKUP(SUMMARY!E21,'Seasonal Adj Factors'!$C$10:$D$14,2)),HLOOKUP('FWD Data'!$D$4,'Seasonal Adj Factors'!$E$6:$M$7,2)),IF(SUMMARY!$F21="S",INDEX('Seasonal Adj Factors'!$E$20:$M$21,VLOOKUP(SUMMARY!E21,'Seasonal Adj Factors'!$C$20:$D$21,2),HLOOKUP('FWD Data'!$D$4,'Seasonal Adj Factors'!$E$6:$M$7,2)),INDEX('Seasonal Adj Factors'!$E$26:$M$28,VLOOKUP(SUMMARY!E21,'Seasonal Adj Factors'!$C$26:$D$28,2),HLOOKUP('FWD Data'!$D$4,'Seasonal Adj Factors'!$E$6:$M$7,2)))) -> 1.41 | AI16: =IF(SUMMARY!G21>0,IF(SUMMARY!G21=1,20,IF(SUMMARY!G21=2,35,IF(SUMMARY!G21=3,100,200))),"") -> 
A17: 1.2 | B17: 6 | C17: 65.3 | D17: =SUMMARY!B8 -> 0 | E17: 13:14:52 | F17: 8849.000259 | G17: 4.239999962 | H17: 3.780000037 | I17: 3.519999883 | J17: 3.209999862 | K17: 2.800000105 | L17: 2.189999976 | M17: 1.70000001 | N17: 1.300000017 | O17: 1.020000036 | P17: 3.560000138 | Q17: =BELLS3(C17,E17,SUMMARY!E22/2,SUMMARY!$B$8) -> -999 | R17: =IF(SUMMARY!$B$37="F",3.8+9000/F17*G17,9000/F17*G17*1.05+5.15) -> 9.677969089 | S17: =(R17^(-0.1)+(80^0.69-(Q17)^0.69)*(-0.00824082*SUMMARY!E22^0.23+0.00782112))^(1/(-0.1)) ->  | W17: =IF(LN((T17/(0.9*Z17))^8.5812)<0,0,LN((T17/(0.9*(VLOOKUP(SUMMARY!E22+LN((T17/(0.9*Z17))^8.5812),TA!$A$7:'TA'!$G$9,HLOOKUP(AI17,TA!$D$1:'TA'!$G$2,2))*1000)))^8.5812)) ->  | Z17: =VLOOKUP(SUMMARY!E22,TA!$A$7:'TA'!$G$9,HLOOKUP(AI17,TA!$D$1:'TA'!$G$2,2))*1000 ->  | AA17: =TAFDefl(80,Q17,SUMMARY!E22,IF('FWD Data'!K13=36,CALC!L17,CALC!$M$6)*9000/CALC!F17,45) ->  | AC17: =radius5('FWD Data'!$Q$2,'FWD Data'!$F$2:$O$2,G17:P17) -> 37.98832664 | AD17: 19328.85033 | AE17: 38.38728761 | AH17: =IF(SUMMARY!$F22="P",INDEX('Seasonal Adj Factors'!$E$10:$M$15,IF(AND(SUMMARY!$B$37="f",VLOOKUP(SUMMARY!E22,'Seasonal Adj Factors'!$C$10:$D$14,2)=5),6,VLOOKUP(SUMMARY!E22,'Seasonal Adj Factors'!$C$10:$D$14,2)),HLOOKUP('FWD Data'!$D$4,'Seasonal Adj Factors'!$E$6:$M$7,2)),IF(SUMMARY!$F22="S",INDEX('Seasonal Adj Factors'!$E$20:$M$21,VLOOKUP(SUMMARY!E22,'Seasonal Adj Factors'!$C$20:$D$21,2),HLOOKUP('FWD Data'!$D$4,'Seasonal Adj Factors'!$E$6:$M$7,2)),INDEX('Seasonal Adj Factors'!$E$26:$M$28,VLOOKUP(SUMMARY!E22,'Seasonal Adj Factors'!$C$26:$D$28,2),HLOOKUP('FWD Data'!$D$4,'Seasonal Adj Factors'!$E$6:$M$7,2)))) -> 1.41 | AI17: =IF(SUMMARY!G22>0,IF(SUMMARY!G22=1,20,IF(SUMMARY!G22=2,35,IF(SUMMARY!G22=3,100,200))),"") -> 
AI18: =IF(SUMMARY!G23>0,IF(SUMMARY!G23=1,20,IF(SUMMARY!G23=2,35,IF(SUMMARY!G23=3,100,200))),"") -> 
AI19: =IF(SUMMARY!G24>0,IF(SUMMARY!G24=1,20,IF(SUMMARY!G24=2,35,IF(SUMMARY!G24=3,100,200))),"") -> 
AI20: =IF(SUMMARY!G25>0,IF(SUMMARY!G25=1,20,IF(SUMMARY!G25=2,35,IF(SUMMARY!G25=3,100,200))),"") -> 
AI21: =IF(SUMMARY!G26>0,IF(SUMMARY!G26=1,20,IF(SUMMARY!G26=2,35,IF(SUMMARY!G26=3,100,200))),"") -> 
AI22: =IF(SUMMARY!G27>0,IF(SUMMARY!G27=1,20,IF(SUMMARY!G27=2,35,IF(SUMMARY!G27=3,100,200))),"") -> 
AI23: =IF(SUMMARY!G28>0,IF(SUMMARY!G28=1,20,IF(SUMMARY!G28=2,35,IF(SUMMARY!G28=3,100,200))),"") -> 
AI24: =IF(SUMMARY!G29>0,IF(SUMMARY!G29=1,20,IF(SUMMARY!G29=2,35,IF(SUMMARY!G29=3,100,200))),"") -> 
AI25: =IF(SUMMARY!G30>0,IF(SUMMARY!G30=1,20,IF(SUMMARY!G30=2,35,IF(SUMMARY!G30=3,100,200))),"") -> 
AI26: =IF(SUMMARY!G31>0,IF(SUMMARY!G31=1,20,IF(SUMMARY!G31=2,35,IF(SUMMARY!G31=3,100,200))),"") -> 
AI27: =IF(SUMMARY!G32>0,IF(SUMMARY!G32=1,20,IF(SUMMARY!G32=2,35,IF(SUMMARY!G32=3,100,200))),"") -> 
AI28: =IF(SUMMARY!G33>0,IF(SUMMARY!G33=1,20,IF(SUMMARY!G33=2,35,IF(SUMMARY!G33=3,100,200))),"") -> 
AI29: =IF(SUMMARY!G34>0,IF(SUMMARY!G34=1,20,IF(SUMMARY!G34=2,35,IF(SUMMARY!G34=3,100,200))),"") -> 
AI30: =IF(SUMMARY!G35>0,IF(SUMMARY!G35=1,20,IF(SUMMARY!G35=2,35,IF(SUMMARY!G35=3,100,200))),"") -> 
AI31: =IF(SUMMARY!G36>0,IF(SUMMARY!G36=1,20,IF(SUMMARY!G36=2,35,IF(SUMMARY!G36=3,100,200))),"") -> 
AI32: =IF(SUMMARY!G37>0,IF(SUMMARY!G37=1,20,IF(SUMMARY!G37=2,35,IF(SUMMARY!G37=3,100,200))),"") -> 
AI33: =IF(SUMMARY!G38>0,IF(SUMMARY!G38=1,20,IF(SUMMARY!G38=2,35,IF(SUMMARY!G38=3,100,200))),"") -> 
AI34: =IF(SUMMARY!G39>0,IF(SUMMARY!G39=1,20,IF(SUMMARY!G39=2,35,IF(SUMMARY!G39=3,100,200))),"") -> 
AI35: =IF(SUMMARY!G40>0,IF(SUMMARY!G40=1,20,IF(SUMMARY!G40=2,35,IF(SUMMARY!G40=3,100,200))),"") -> 
AI36: =IF(SUMMARY!G41>0,IF(SUMMARY!G41=1,20,IF(SUMMARY!G41=2,35,IF(SUMMARY!G41=3,100,200))),"") -> 
AI37: =IF(SUMMARY!G42>0,IF(SUMMARY!G42=1,20,IF(SUMMARY!G42=2,35,IF(SUMMARY!G42=3,100,200))),"") -> 
AI38: =IF(SUMMARY!G43>0,IF(SUMMARY!G43=1,20,IF(SUMMARY!G43=2,35,IF(SUMMARY!G43=3,100,200))),"") -> 
AI39: =IF(SUMMARY!G44>0,IF(SUMMARY!G44=1,20,IF(SUMMARY!G44=2,35,IF(SUMMARY!G44=3,100,200))),"") -> 
AI40: =IF(SUMMARY!G45>0,IF(SUMMARY!G45=1,20,IF(SUMMARY!G45=2,35,IF(SUMMARY!G45=3,100,200))),"") -> 
AI41: =IF(SUMMARY!G46>0,IF(SUMMARY!G46=1,20,IF(SUMMARY!G46=2,35,IF(SUMMARY!G46=3,100,200))),"") -> 
AI42: =IF(SUMMARY!G47>0,IF(SUMMARY!G47=1,20,IF(SUMMARY!G47=2,35,IF(SUMMARY!G47=3,100,200))),"") -> 
AI43: =IF(SUMMARY!G48>0,IF(SUMMARY!G48=1,20,IF(SUMMARY!G48=2,35,IF(SUMMARY!G48=3,100,200))),"") -> 
AI44: =IF(SUMMARY!G49>0,IF(SUMMARY!G49=1,20,IF(SUMMARY!G49=2,35,IF(SUMMARY!G49=3,100,200))),"") -> 
AI45: =IF(SUMMARY!G50>0,IF(SUMMARY!G50=1,20,IF(SUMMARY!G50=2,35,IF(SUMMARY!G50=3,100,200))),"") -> 
AI46: =IF(SUMMARY!G51>0,IF(SUMMARY!G51=1,20,IF(SUMMARY!G51=2,35,IF(SUMMARY!G51=3,100,200))),"") -> 
AI47: =IF(SUMMARY!G52>0,IF(SUMMARY!G52=1,20,IF(SUMMARY!G52=2,35,IF(SUMMARY!G52=3,100,200))),"") -> 
AI48: =IF(SUMMARY!G53>0,IF(SUMMARY!G53=1,20,IF(SUMMARY!G53=2,35,IF(SUMMARY!G53=3,100,200))),"") -> 
AI49: =IF(SUMMARY!G54>0,IF(SUMMARY!G54=1,20,IF(SUMMARY!G54=2,35,IF(SUMMARY!G54=3,100,200))),"") -> 
AI50: =IF(SUMMARY!G55>0,IF(SUMMARY!G55=1,20,IF(SUMMARY!G55=2,35,IF(SUMMARY!G55=3,100,200))),"") -> 
AI51: =IF(SUMMARY!G56>0,IF(SUMMARY!G56=1,20,IF(SUMMARY!G56=2,35,IF(SUMMARY!G56=3,100,200))),"") -> 
AI52: =IF(SUMMARY!G57>0,IF(SUMMARY!G57=1,20,IF(SUMMARY!G57=2,35,IF(SUMMARY!G57=3,100,200))),"") -> 
AI53: =IF(SUMMARY!G58>0,IF(SUMMARY!G58=1,20,IF(SUMMARY!G58=2,35,IF(SUMMARY!G58=3,100,200))),"") -> 
AI54: =IF(SUMMARY!G59>0,IF(SUMMARY!G59=1,20,IF(SUMMARY!G59=2,35,IF(SUMMARY!G59=3,100,200))),"") -> 
AI55: =IF(SUMMARY!G60>0,IF(SUMMARY!G60=1,20,IF(SUMMARY!G60=2,35,IF(SUMMARY!G60=3,100,200))),"") -> 
AI56: =IF(SUMMARY!G61>0,IF(SUMMARY!G61=1,20,IF(SUMMARY!G61=2,35,IF(SUMMARY!G61=3,100,200))),"") -> 
AI57: =IF(SUMMARY!G62>0,IF(SUMMARY!G62=1,20,IF(SUMMARY!G62=2,35,IF(SUMMARY!G62=3,100,200))),"") -> 
AI58: =IF(SUMMARY!G63>0,IF(SUMMARY!G63=1,20,IF(SUMMARY!G63=2,35,IF(SUMMARY!G63=3,100,200))),"") -> 
AI59: =IF(SUMMARY!G64>0,IF(SUMMARY!G64=1,20,IF(SUMMARY!G64=2,35,IF(SUMMARY!G64=3,100,200))),"") -> 
AI60: =IF(SUMMARY!G65>0,IF(SUMMARY!G65=1,20,IF(SUMMARY!G65=2,35,IF(SUMMARY!G65=3,100,200))),"") -> 
AI61: =IF(SUMMARY!G66>0,IF(SUMMARY!G66=1,20,IF(SUMMARY!G66=2,35,IF(SUMMARY!G66=3,100,200))),"") -> 
AI62: =IF(SUMMARY!G67>0,IF(SUMMARY!G67=1,20,IF(SUMMARY!G67=2,35,IF(SUMMARY!G67=3,100,200))),"") -> 
AI63: =IF(SUMMARY!G68>0,IF(SUMMARY!G68=1,20,IF(SUMMARY!G68=2,35,IF(SUMMARY!G68=3,100,200))),"") -> 
AI64: =IF(SUMMARY!G69>0,IF(SUMMARY!G69=1,20,IF(SUMMARY!G69=2,35,IF(SUMMARY!G69=3,100,200))),"") -> 
AI65: =IF(SUMMARY!G70>0,IF(SUMMARY!G70=1,20,IF(SUMMARY!G70=2,35,IF(SUMMARY!G70=3,100,200))),"") -> 
AI66: =IF(SUMMARY!G71>0,IF(SUMMARY!G71=1,20,IF(SUMMARY!G71=2,35,IF(SUMMARY!G71=3,100,200))),"") -> 
AI67: =IF(SUMMARY!G72>0,IF(SUMMARY!G72=1,20,IF(SUMMARY!G72=2,35,IF(SUMMARY!G72=3,100,200))),"") -> 
AI68: =IF(SUMMARY!G73>0,IF(SUMMARY!G73=1,20,IF(SUMMARY!G73=2,35,IF(SUMMARY!G73=3,100,200))),"") -> 
AI69: =IF(SUMMARY!G74>0,IF(SUMMARY!G74=1,20,IF(SUMMARY!G74=2,35,IF(SUMMARY!G74=3,100,200))),"") -> 
AI70: =IF(SUMMARY!G75>0,IF(SUMMARY!G75=1,20,IF(SUMMARY!G75=2,35,IF(SUMMARY!G75=3,100,200))),"") -> 
AI71: =IF(SUMMARY!G76>0,IF(SUMMARY!G76=1,20,IF(SUMMARY!G76=2,35,IF(SUMMARY!G76=3,100,200))),"") -> 
AI72: =IF(SUMMARY!G77>0,IF(SUMMARY!G77=1,20,IF(SUMMARY!G77=2,35,IF(SUMMARY!G77=3,100,200))),"") -> 
AI73: =IF(SUMMARY!G78>0,IF(SUMMARY!G78=1,20,IF(SUMMARY!G78=2,35,IF(SUMMARY!G78=3,100,200))),"") -> 
AI74: =IF(SUMMARY!G79>0,IF(SUMMARY!G79=1,20,IF(SUMMARY!G79=2,35,IF(SUMMARY!G79=3,100,200))),"") -> 
AI75: =IF(SUMMARY!G80>0,IF(SUMMARY!G80=1,20,IF(SUMMARY!G80=2,35,IF(SUMMARY!G80=3,100,200))),"") -> 
AI76: =IF(SUMMARY!G81>0,IF(SUMMARY!G81=1,20,IF(SUMMARY!G81=2,35,IF(SUMMARY!G81=3,100,200))),"") -> 
AI77: =IF(SUMMARY!G82>0,IF(SUMMARY!G82=1,20,IF(SUMMARY!G82=2,35,IF(SUMMARY!G82=3,100,200))),"") -> 
AI78: =IF(SUMMARY!G83>0,IF(SUMMARY!G83=1,20,IF(SUMMARY!G83=2,35,IF(SUMMARY!G83=3,100,200))),"") -> 
AI79: =IF(SUMMARY!G84>0,IF(SUMMARY!G84=1,20,IF(SUMMARY!G84=2,35,IF(SUMMARY!G84=3,100,200))),"") -> 
AI80: =IF(SUMMARY!G85>0,IF(SUMMARY!G85=1,20,IF(SUMMARY!G85=2,35,IF(SUMMARY!G85=3,100,200))),"") -> 
AI81: =IF(SUMMARY!G86>0,IF(SUMMARY!G86=1,20,IF(SUMMARY!G86=2,35,IF(SUMMARY!G86=3,100,200))),"") -> 
AI82: =IF(SUMMARY!G87>0,IF(SUMMARY!G87=1,20,IF(SUMMARY!G87=2,35,IF(SUMMARY!G87=3,100,200))),"") -> 
AI83: =IF(SUMMARY!G88>0,IF(SUMMARY!G88=1,20,IF(SUMMARY!G88=2,35,IF(SUMMARY!G88=3,100,200))),"") -> 
AI84: =IF(SUMMARY!G89>0,IF(SUMMARY!G89=1,20,IF(SUMMARY!G89=2,35,IF(SUMMARY!G89=3,100,200))),"") -> 
AI85: =IF(SUMMARY!G90>0,IF(SUMMARY!G90=1,20,IF(SUMMARY!G90=2,35,IF(SUMMARY!G90=3,100,200))),"") -> 
AI86: =IF(SUMMARY!G91>0,IF(SUMMARY!G91=1,20,IF(SUMMARY!G91=2,35,IF(SUMMARY!G91=3,100,200))),"") -> 
AI87: =IF(SUMMARY!G92>0,IF(SUMMARY!G92=1,20,IF(SUMMARY!G92=2,35,IF(SUMMARY!G92=3,100,200))),"") -> 
AI88: =IF(SUMMARY!G93>0,IF(SUMMARY!G93=1,20,IF(SUMMARY!G93=2,35,IF(SUMMARY!G93=3,100,200))),"") -> 
AI89: =IF(SUMMARY!G94>0,IF(SUMMARY!G94=1,20,IF(SUMMARY!G94=2,35,IF(SUMMARY!G94=3,100,200))),"") -> 
AI90: =IF(SUMMARY!G95>0,IF(SUMMARY!G95=1,20,IF(SUMMARY!G95=2,35,IF(SUMMARY!G95=3,100,200))),"") -> 
AI91: =IF(SUMMARY!G96>0,IF(SUMMARY!G96=1,20,IF(SUMMARY!G96=2,35,IF(SUMMARY!G96=3,100,200))),"") -> 
AI92: =IF(SUMMARY!G97>0,IF(SUMMARY!G97=1,20,IF(SUMMARY!G97=2,35,IF(SUMMARY!G97=3,100,200))),"") -> 
AI93: =IF(SUMMARY!G98>0,IF(SUMMARY!G98=1,20,IF(SUMMARY!G98=2,35,IF(SUMMARY!G98=3,100,200))),"") -> 
AI94: =IF(SUMMARY!G99>0,IF(SUMMARY!G99=1,20,IF(SUMMARY!G99=2,35,IF(SUMMARY!G99=3,100,200))),"") -> 
AI95: =IF(SUMMARY!G100>0,IF(SUMMARY!G100=1,20,IF(SUMMARY!G100=2,35,IF(SUMMARY!G100=3,100,200))),"") -> 
AI96: =IF(SUMMARY!G101>0,IF(SUMMARY!G101=1,20,IF(SUMMARY!G101=2,35,IF(SUMMARY!G101=3,100,200))),"") -> 
AI97: =IF(SUMMARY!G102>0,IF(SUMMARY!G102=1,20,IF(SUMMARY!G102=2,35,IF(SUMMARY!G102=3,100,200))),"") -> 
AI98: =IF(SUMMARY!G103>0,IF(SUMMARY!G103=1,20,IF(SUMMARY!G103=2,35,IF(SUMMARY!G103=3,100,200))),"") -> 
AI99: =IF(SUMMARY!G104>0,IF(SUMMARY!G104=1,20,IF(SUMMARY!G104=2,35,IF(SUMMARY!G104=3,100,200))),"") -> 
AI100: =IF(SUMMARY!G105>0,IF(SUMMARY!G105=1,20,IF(SUMMARY!G105=2,35,IF(SUMMARY!G105=3,100,200))),"") -> 
AI101: =IF(SUMMARY!G106>0,IF(SUMMARY!G106=1,20,IF(SUMMARY!G106=2,35,IF(SUMMARY!G106=3,100,200))),"") -> 
AI102: =IF(SUMMARY!G107>0,IF(SUMMARY!G107=1,20,IF(SUMMARY!G107=2,35,IF(SUMMARY!G107=3,100,200))),"") -> 
AI103: =IF(SUMMARY!G108>0,IF(SUMMARY!G108=1,20,IF(SUMMARY!G108=2,35,IF(SUMMARY!G108=3,100,200))),"") -> 
AI104: =IF(SUMMARY!G109>0,IF(SUMMARY!G109=1,20,IF(SUMMARY!G109=2,35,IF(SUMMARY!G109=3,100,200))),"") -> 
AI105: =IF(SUMMARY!G110>0,IF(SUMMARY!G110=1,20,IF(SUMMARY!G110=2,35,IF(SUMMARY!G110=3,100,200))),"") -> 
AI106: =IF(SUMMARY!G111>0,IF(SUMMARY!G111=1,20,IF(SUMMARY!G111=2,35,IF(SUMMARY!G111=3,100,200))),"") -> 
AI107: =IF(SUMMARY!G112>0,IF(SUMMARY!G112=1,20,IF(SUMMARY!G112=2,35,IF(SUMMARY!G112=3,100,200))),"") -> 
AI108: =IF(SUMMARY!G113>0,IF(SUMMARY!G113=1,20,IF(SUMMARY!G113=2,35,IF(SUMMARY!G113=3,100,200))),"") -> 
AI109: =IF(SUMMARY!G114>0,IF(SUMMARY!G114=1,20,IF(SUMMARY!G114=2,35,IF(SUMMARY!G114=3,100,200))),"") -> 
AI110: =IF(SUMMARY!G115>0,IF(SUMMARY!G115=1,20,IF(SUMMARY!G115=2,35,IF(SUMMARY!G115=3,100,200))),"") -> 
AI111: =IF(SUMMARY!G116>0,IF(SUMMARY!G116=1,20,IF(SUMMARY!G116=2,35,IF(SUMMARY!G116=3,100,200))),"") -> 
AI112: =IF(SUMMARY!G117>0,IF(SUMMARY!G117=1,20,IF(SUMMARY!G117=2,35,IF(SUMMARY!G117=3,100,200))),"") -> 
AI113: =IF(SUMMARY!G118>0,IF(SUMMARY!G118=1,20,IF(SUMMARY!G118=2,35,IF(SUMMARY!G118=3,100,200))),"") -> 
AI114: =IF(SUMMARY!G119>0,IF(SUMMARY!G119=1,20,IF(SUMMARY!G119=2,35,IF(SUMMARY!G119=3,100,200))),"") -> 
AI115: =IF(SUMMARY!G120>0,IF(SUMMARY!G120=1,20,IF(SUMMARY!G120=2,35,IF(SUMMARY!G120=3,100,200))),"") -> 
AI116: =IF(SUMMARY!G121>0,IF(SUMMARY!G121=1,20,IF(SUMMARY!G121=2,35,IF(SUMMARY!G121=3,100,200))),"") -> 
AI117: =IF(SUMMARY!G122>0,IF(SUMMARY!G122=1,20,IF(SUMMARY!G122=2,35,IF(SUMMARY!G122=3,100,200))),"") -> 
AI118: =IF(SUMMARY!G123>0,IF(SUMMARY!G123=1,20,IF(SUMMARY!G123=2,35,IF(SUMMARY!G123=3,100,200))),"") -> 
AI119: =IF(SUMMARY!G124>0,IF(SUMMARY!G124=1,20,IF(SUMMARY!G124=2,35,IF(SUMMARY!G124=3,100,200))),"") -> 
AI120: =IF(SUMMARY!G125>0,IF(SUMMARY!G125=1,20,IF(SUMMARY!G125=2,35,IF(SUMMARY!G125=3,100,200))),"") -> 
AI121: =IF(SUMMARY!G126>0,IF(SUMMARY!G126=1,20,IF(SUMMARY!G126=2,35,IF(SUMMARY!G126=3,100,200))),"") -> 
AI122: =IF(SUMMARY!G127>0,IF(SUMMARY!G127=1,20,IF(SUMMARY!G127=2,35,IF(SUMMARY!G127=3,100,200))),"") -> 
AI123: =IF(SUMMARY!G128>0,IF(SUMMARY!G128=1,20,IF(SUMMARY!G128=2,35,IF(SUMMARY!G128=3,100,200))),"") -> 
AI124: =IF(SUMMARY!G129>0,IF(SUMMARY!G129=1,20,IF(SUMMARY!G129=2,35,IF(SUMMARY!G129=3,100,200))),"") -> 
AI125: =IF(SUMMARY!G130>0,IF(SUMMARY!G130=1,20,IF(SUMMARY!G130=2,35,IF(SUMMARY!G130=3,100,200))),"") -> 
AI126: =IF(SUMMARY!G131>0,IF(SUMMARY!G131=1,20,IF(SUMMARY!G131=2,35,IF(SUMMARY!G131=3,100,200))),"") -> 
AI127: =IF(SUMMARY!G132>0,IF(SUMMARY!G132=1,20,IF(SUMMARY!G132=2,35,IF(SUMMARY!G132=3,100,200))),"") -> 
AI128: =IF(SUMMARY!G133>0,IF(SUMMARY!G133=1,20,IF(SUMMARY!G133=2,35,IF(SUMMARY!G133=3,100,200))),"") -> 
AI129: =IF(SUMMARY!G134>0,IF(SUMMARY!G134=1,20,IF(SUMMARY!G134=2,35,IF(SUMMARY!G134=3,100,200))),"") -> 
AI130: =IF(SUMMARY!G135>0,IF(SUMMARY!G135=1,20,IF(SUMMARY!G135=2,35,IF(SUMMARY!G135=3,100,200))),"") -> 
AI131: =IF(SUMMARY!G136>0,IF(SUMMARY!G136=1,20,IF(SUMMARY!G136=2,35,IF(SUMMARY!G136=3,100,200))),"") -> 
AI132: =IF(SUMMARY!G137>0,IF(SUMMARY!G137=1,20,IF(SUMMARY!G137=2,35,IF(SUMMARY!G137=3,100,200))),"") -> 
AI133: =IF(SUMMARY!G138>0,IF(SUMMARY!G138=1,20,IF(SUMMARY!G138=2,35,IF(SUMMARY!G138=3,100,200))),"") -> 
AI134: =IF(SUMMARY!G139>0,IF(SUMMARY!G139=1,20,IF(SUMMARY!G139=2,35,IF(SUMMARY!G139=3,100,200))),"") -> 
AI135: =IF(SUMMARY!G140>0,IF(SUMMARY!G140=1,20,IF(SUMMARY!G140=2,35,IF(SUMMARY!G140=3,100,200))),"") -> 
AI136: =IF(SUMMARY!G141>0,IF(SUMMARY!G141=1,20,IF(SUMMARY!G141=2,35,IF(SUMMARY!G141=3,100,200))),"") -> 
AI137: =IF(SUMMARY!G142>0,IF(SUMMARY!G142=1,20,IF(SUMMARY!G142=2,35,IF(SUMMARY!G142=3,100,200))),"") -> 
AI138: =IF(SUMMARY!G143>0,IF(SUMMARY!G143=1,20,IF(SUMMARY!G143=2,35,IF(SUMMARY!G143=3,100,200))),"") -> 
AI139: =IF(SUMMARY!G144>0,IF(SUMMARY!G144=1,20,IF(SUMMARY!G144=2,35,IF(SUMMARY!G144=3,100,200))),"") -> 
AI140: =IF(SUMMARY!G145>0,IF(SUMMARY!G145=1,20,IF(SUMMARY!G145=2,35,IF(SUMMARY!G145=3,100,200))),"") -> 
AI141: =IF(SUMMARY!G146>0,IF(SUMMARY!G146=1,20,IF(SUMMARY!G146=2,35,IF(SUMMARY!G146=3,100,200))),"") -> 
AI142: =IF(SUMMARY!G147>0,IF(SUMMARY!G147=1,20,IF(SUMMARY!G147=2,35,IF(SUMMARY!G147=3,100,200))),"") -> 
AI143: =IF(SUMMARY!G148>0,IF(SUMMARY!G148=1,20,IF(SUMMARY!G148=2,35,IF(SUMMARY!G148=3,100,200))),"") -> 
AI144: =IF(SUMMARY!G149>0,IF(SUMMARY!G149=1,20,IF(SUMMARY!G149=2,35,IF(SUMMARY!G149=3,100,200))),"") -> 
AI145: =IF(SUMMARY!G150>0,IF(SUMMARY!G150=1,20,IF(SUMMARY!G150=2,35,IF(SUMMARY!G150=3,100,200))),"") -> 
AI146: =IF(SUMMARY!G151>0,IF(SUMMARY!G151=1,20,IF(SUMMARY!G151=2,35,IF(SUMMARY!G151=3,100,200))),"") -> 
AI147: =IF(SUMMARY!G152>0,IF(SUMMARY!G152=1,20,IF(SUMMARY!G152=2,35,IF(SUMMARY!G152=3,100,200))),"") -> 
AI148: =IF(SUMMARY!G153>0,IF(SUMMARY!G153=1,20,IF(SUMMARY!G153=2,35,IF(SUMMARY!G153=3,100,200))),"") -> 
AI149: =IF(SUMMARY!G154>0,IF(SUMMARY!G154=1,20,IF(SUMMARY!G154=2,35,IF(SUMMARY!G154=3,100,200))),"") -> 
AI150: =IF(SUMMARY!G155>0,IF(SUMMARY!G155=1,20,IF(SUMMARY!G155=2,35,IF(SUMMARY!G155=3,100,200))),"") -> 
AI151: =IF(SUMMARY!G156>0,IF(SUMMARY!G156=1,20,IF(SUMMARY!G156=2,35,IF(SUMMARY!G156=3,100,200))),"") -> 
AI152: =IF(SUMMARY!G157>0,IF(SUMMARY!G157=1,20,IF(SUMMARY!G157=2,35,IF(SUMMARY!G157=3,100,200))),"") -> 
AI153: =IF(SUMMARY!G158>0,IF(SUMMARY!G158=1,20,IF(SUMMARY!G158=2,35,IF(SUMMARY!G158=3,100,200))),"") -> 
AI154: =IF(SUMMARY!G159>0,IF(SUMMARY!G159=1,20,IF(SUMMARY!G159=2,35,IF(SUMMARY!G159=3,100,200))),"") -> 
AI155: =IF(SUMMARY!G160>0,IF(SUMMARY!G160=1,20,IF(SUMMARY!G160=2,35,IF(SUMMARY!G160=3,100,200))),"") -> 
AI156: =IF(SUMMARY!G161>0,IF(SUMMARY!G161=1,20,IF(SUMMARY!G161=2,35,IF(SUMMARY!G161=3,100,200))),"") -> 
AI157: =IF(SUMMARY!G162>0,IF(SUMMARY!G162=1,20,IF(SUMMARY!G162=2,35,IF(SUMMARY!G162=3,100,200))),"") -> 
AI158: =IF(SUMMARY!G163>0,IF(SUMMARY!G163=1,20,IF(SUMMARY!G163=2,35,IF(SUMMARY!G163=3,100,200))),"") -> 
AI159: =IF(SUMMARY!G164>0,IF(SUMMARY!G164=1,20,IF(SUMMARY!G164=2,35,IF(SUMMARY!G164=3,100,200))),"") -> 
AI160: =IF(SUMMARY!G165>0,IF(SUMMARY!G165=1,20,IF(SUMMARY!G165=2,35,IF(SUMMARY!G165=3,100,200))),"") -> 
AI161: =IF(SUMMARY!G166>0,IF(SUMMARY!G166=1,20,IF(SUMMARY!G166=2,35,IF(SUMMARY!G166=3,100,200))),"") -> 
AI162: =IF(SUMMARY!G167>0,IF(SUMMARY!G167=1,20,IF(SUMMARY!G167=2,35,IF(SUMMARY!G167=3,100,200))),"") -> 
AI163: =IF(SUMMARY!G168>0,IF(SUMMARY!G168=1,20,IF(SUMMARY!G168=2,35,IF(SUMMARY!G168=3,100,200))),"") -> 
AI164: =IF(SUMMARY!G169>0,IF(SUMMARY!G169=1,20,IF(SUMMARY!G169=2,35,IF(SUMMARY!G169=3,100,200))),"") -> 
AI165: =IF(SUMMARY!G170>0,IF(SUMMARY!G170=1,20,IF(SUMMARY!G170=2,35,IF(SUMMARY!G170=3,100,200))),"") -> 
AI166: =IF(SUMMARY!G171>0,IF(SUMMARY!G171=1,20,IF(SUMMARY!G171=2,35,IF(SUMMARY!G171=3,100,200))),"") -> 
AI167: =IF(SUMMARY!G172>0,IF(SUMMARY!G172=1,20,IF(SUMMARY!G172=2,35,IF(SUMMARY!G172=3,100,200))),"") -> 
AI168: =IF(SUMMARY!G173>0,IF(SUMMARY!G173=1,20,IF(SUMMARY!G173=2,35,IF(SUMMARY!G173=3,100,200))),"") -> 
AI169: =IF(SUMMARY!G174>0,IF(SUMMARY!G174=1,20,IF(SUMMARY!G174=2,35,IF(SUMMARY!G174=3,100,200))),"") -> 
AI170: =IF(SUMMARY!G175>0,IF(SUMMARY!G175=1,20,IF(SUMMARY!G175=2,35,IF(SUMMARY!G175=3,100,200))),"") -> 
AI171: =IF(SUMMARY!G176>0,IF(SUMMARY!G176=1,20,IF(SUMMARY!G176=2,35,IF(SUMMARY!G176=3,100,200))),"") -> 
AI172: =IF(SUMMARY!G177>0,IF(SUMMARY!G177=1,20,IF(SUMMARY!G177=2,35,IF(SUMMARY!G177=3,100,200))),"") -> 
AI173: =IF(SUMMARY!G178>0,IF(SUMMARY!G178=1,20,IF(SUMMARY!G178=2,35,IF(SUMMARY!G178=3,100,200))),"") -> 
AI174: =IF(SUMMARY!G179>0,IF(SUMMARY!G179=1,20,IF(SUMMARY!G179=2,35,IF(SUMMARY!G179=3,100,200))),"") -> 
AI175: =IF(SUMMARY!G180>0,IF(SUMMARY!G180=1,20,IF(SUMMARY!G180=2,35,IF(SUMMARY!G180=3,100,200))),"") -> 
AI176: =IF(SUMMARY!G181>0,IF(SUMMARY!G181=1,20,IF(SUMMARY!G181=2,35,IF(SUMMARY!G181=3,100,200))),"") -> 
AI177: =IF(SUMMARY!G182>0,IF(SUMMARY!G182=1,20,IF(SUMMARY!G182=2,35,IF(SUMMARY!G182=3,100,200))),"") -> 
AI178: =IF(SUMMARY!G183>0,IF(SUMMARY!G183=1,20,IF(SUMMARY!G183=2,35,IF(SUMMARY!G183=3,100,200))),"") -> 
AI179: =IF(SUMMARY!G184>0,IF(SUMMARY!G184=1,20,IF(SUMMARY!G184=2,35,IF(SUMMARY!G184=3,100,200))),"") -> 

Sheet MAPPING
A1: ID | B1: RP | C1: DATE | D1: LATITUDE | E1: LONGITUDE | F1: TONN | G1: HMA (72° F) | H1: BASE | I1: SUBGRADE | J1: #1 Defl | K1: HMA THICKNESS | L1: BASE THICKNESS | M1: ESALs | O1: err
A2: 1 | B2: =SUMMARY!D11 -> 0.1 | C2: =SUMMARY!$D$2 -> 2013-05-28 | D2: =INDEX('FWD Data'!$AB$6:$AB$2006,MATCH(B2,'FWD Data'!$F$6:$F$2006,0),1) -> 43.64393 | E2: =INDEX('FWD Data'!$AC$6:$AC$2006,MATCH(B2,'FWD Data'!$F$6:$F$2006,0),1) -> -94.97449 | F2: =SUMMARY!P11 -> 0 | G2: =SUMMARY!R11 -> 0 | H2: =SUMMARY!S11 -> 0 | I2: =SUMMARY!T11 -> 0 | J2: =SUMMARY!V11 -> 12.85000056 | K2: =SUMMARY!E11 -> 0 | L2: =SUMMARY!H11 -> 0 | M2: =SUMMARY!I11 -> 0 | O2: =IFERROR((E2*D2)/(E2*D2),2) -> 1
A3: 2 | B3: =SUMMARY!D12 -> 0.18 | C3: =SUMMARY!$D$2 -> 2013-05-28 | D3: =INDEX('FWD Data'!$AB$6:$AB$2006,MATCH(B3,'FWD Data'!$F$6:$F$2006,0),1) -> 43.64278 | E3: =INDEX('FWD Data'!$AC$6:$AC$2006,MATCH(B3,'FWD Data'!$F$6:$F$2006,0),1) -> -94.974485 | F3: =SUMMARY!P12 -> 0 | G3: =SUMMARY!R12 -> 0 | H3: =SUMMARY!S12 -> 0 | I3: =SUMMARY!T12 -> 0 | J3: =SUMMARY!V12 -> 9.920000081 | K3: =SUMMARY!E12 -> 0 | L3: =SUMMARY!H12 -> 0 | M3: =SUMMARY!I12 -> 0 | O3: =IFERROR((E3*D3)/(E3*D3),2) -> 1
A4: 3 | B4: =SUMMARY!D13 -> 0.3 | C4: =SUMMARY!$D$2 -> 2013-05-28 | D4: =INDEX('FWD Data'!$AB$6:$AB$2006,MATCH(B4,'FWD Data'!$F$6:$F$2006,0),1) -> 43.6410483 | E4: =INDEX('FWD Data'!$AC$6:$AC$2006,MATCH(B4,'FWD Data'!$F$6:$F$2006,0),1) -> -94.9744767 | F4: =SUMMARY!P13 -> 0 | G4: =SUMMARY!R13 -> 0 | H4: =SUMMARY!S13 -> 0 | I4: =SUMMARY!T13 -> 0 | J4: =SUMMARY!V13 -> 10.13000007 | K4: =SUMMARY!E13 -> 0 | L4: =SUMMARY!H13 -> 0 | M4: =SUMMARY!I13 -> 0 | O4: 1
A5: 4 | B5: =SUMMARY!D14 -> 0.4 | C5: =SUMMARY!$D$2 -> 2013-05-28 | D5: =INDEX('FWD Data'!$AB$6:$AB$2006,MATCH(B5,'FWD Data'!$F$6:$F$2006,0),1) -> 43.6395933 | E5: =INDEX('FWD Data'!$AC$6:$AC$2006,MATCH(B5,'FWD Data'!$F$6:$F$2006,0),1) -> -94.9744717 | F5: =SUMMARY!P14 -> 0 | G5: =SUMMARY!R14 -> 0 | H5: =SUMMARY!S14 -> 0 | I5: =SUMMARY!T14 -> 0 | J5: =SUMMARY!V14 -> 8.96999989 | K5: =SUMMARY!E14 -> 0 | L5: =SUMMARY!H14 -> 0 | M5: =SUMMARY!I14 -> 0 | O5: 1
A6: 5 | B6: =SUMMARY!D15 -> 0.5 | C6: =SUMMARY!$D$2 -> 2013-05-28 | D6: =INDEX('FWD Data'!$AB$6:$AB$2006,MATCH(B6,'FWD Data'!$F$6:$F$2006,0),1) -> 43.63815 | E6: =INDEX('FWD Data'!$AC$6:$AC$2006,MATCH(B6,'FWD Data'!$F$6:$F$2006,0),1) -> -94.9744666 | F6: =SUMMARY!P15 -> 0 | G6: =SUMMARY!R15 -> 0 | H6: =SUMMARY!S15 -> 0 | I6: =SUMMARY!T15 -> 0 | J6: =SUMMARY!V15 -> 11.23000016 | K6: =SUMMARY!E15 -> 0 | L6: =SUMMARY!H15 -> 0 | M6: =SUMMARY!I15 -> 0 | O6: 1
A7: 6 | B7: =SUMMARY!D16 -> 0.6 | C7: =SUMMARY!$D$2 -> 2013-05-28 | D7: =INDEX('FWD Data'!$AB$6:$AB$2006,MATCH(B7,'FWD Data'!$F$6:$F$2006,0),1) -> 43.636705 | E7: =INDEX('FWD Data'!$AC$6:$AC$2006,MATCH(B7,'FWD Data'!$F$6:$F$2006,0),1) -> -94.9744617 | F7: =SUMMARY!P16 -> 0 | G7: =SUMMARY!R16 -> 0 | H7: =SUMMARY!S16 -> 0 | I7: =SUMMARY!T16 -> 0 | J7: =SUMMARY!V16 -> 7.330000262 | K7: =SUMMARY!E16 -> 0 | L7: =SUMMARY!H16 -> 0 | M7: =SUMMARY!I16 -> 0 | O7: 1
A8: 7 | B8: =SUMMARY!D17 -> 0.7 | C8: =SUMMARY!$D$2 -> 2013-05-28 | D8: =INDEX('FWD Data'!$AB$6:$AB$2006,MATCH(B8,'FWD Data'!$F$6:$F$2006,0),1) -> 43.63526 | E8: =INDEX('FWD Data'!$AC$6:$AC$2006,MATCH(B8,'FWD Data'!$F$6:$F$2006,0),1) -> -94.974455 | F8: =SUMMARY!P17 -> 0 | G8: =SUMMARY!R17 -> 0 | H8: =SUMMARY!S17 -> 0 | I8: =SUMMARY!T17 -> 0 | J8: =SUMMARY!V17 -> 9.070000226 | K8: =SUMMARY!E17 -> 0 | L8: =SUMMARY!H17 -> 0 | M8: =SUMMARY!I17 -> 0 | O8: 1
A9: 8 | B9: =SUMMARY!D18 -> 0.8 | C9: =SUMMARY!$D$2 -> 2013-05-28 | D9: =INDEX('FWD Data'!$AB$6:$AB$2006,MATCH(B9,'FWD Data'!$F$6:$F$2006,0),1) -> 43.633815 | E9: =INDEX('FWD Data'!$AC$6:$AC$2006,MATCH(B9,'FWD Data'!$F$6:$F$2006,0),1) -> -94.97445 | F9: =SUMMARY!P18 -> 0 | G9: =SUMMARY!R18 -> 0 | H9: =SUMMARY!S18 -> 0 | I9: =SUMMARY!T18 -> 0 | J9: =SUMMARY!V18 -> 6.739999959 | K9: =SUMMARY!E18 -> 0 | L9: =SUMMARY!H18 -> 0 | M9: =SUMMARY!I18 -> 0 | O9: 1
A10: 9 | B10: =SUMMARY!D19 -> 0.9 | C10: =SUMMARY!$D$2 -> 2013-05-28 | D10: =INDEX('FWD Data'!$AB$6:$AB$2006,MATCH(B10,'FWD Data'!$F$6:$F$2006,0),1) -> 43.6323667 | E10: =INDEX('FWD Data'!$AC$6:$AC$2006,MATCH(B10,'FWD Data'!$F$6:$F$2006,0),1) -> -94.9744483 | F10: =SUMMARY!P19 -> 0 | G10: =SUMMARY!R19 -> 0 | H10: =SUMMARY!S19 -> 0 | I10: =SUMMARY!T19 -> 0 | J10: =SUMMARY!V19 -> 7.120000276 | K10: =SUMMARY!E19 -> 0 | L10: =SUMMARY!H19 -> 0 | M10: =SUMMARY!I19 -> 0 | O10: 1
A11: 10 | B11: =SUMMARY!D20 -> 0.99 | C11: =SUMMARY!$D$2 -> 2013-05-28 | D11: =INDEX('FWD Data'!$AB$6:$AB$2006,MATCH(B11,'FWD Data'!$F$6:$F$2006,0),1) -> 43.6310633 | E11: =INDEX('FWD Data'!$AC$6:$AC$2006,MATCH(B11,'FWD Data'!$F$6:$F$2006,0),1) -> -94.97444 | F11: =SUMMARY!P20 -> 0 | G11: =SUMMARY!R20 -> 0 | H11: =SUMMARY!S20 -> 0 | I11: =SUMMARY!T20 -> 0 | J11: =SUMMARY!V20 -> 20.46000081 | K11: =SUMMARY!E20 -> 0 | L11: =SUMMARY!H20 -> 0 | M11: =SUMMARY!I20 -> 0 | O11: 1
A12: 11 | B12: =SUMMARY!D21 -> 1.1 | C12: =SUMMARY!$D$2 -> 2013-05-28 | D12: =INDEX('FWD Data'!$AB$6:$AB$2006,MATCH(B12,'FWD Data'!$F$6:$F$2006,0),1) -> 43.62948 | E12: =INDEX('FWD Data'!$AC$6:$AC$2006,MATCH(B12,'FWD Data'!$F$6:$F$2006,0),1) -> -94.9744467 | F12: =SUMMARY!P21 -> 0 | G12: =SUMMARY!R21 -> 0 | H12: =SUMMARY!S21 -> 0 | I12: =SUMMARY!T21 -> 0 | J12: =SUMMARY!V21 -> 6.220000253 | K12: =SUMMARY!E21 -> 0 | L12: =SUMMARY!H21 -> 0 | M12: =SUMMARY!I21 -> 0 | O12: 1
A13: 12 | B13: =SUMMARY!D22 -> 1.2 | C13: =SUMMARY!$D$2 -> 2013-05-28 | D13: =INDEX('FWD Data'!$AB$6:$AB$2006,MATCH(B13,'FWD Data'!$F$6:$F$2006,0),1) -> 43.6280116 | E13: =INDEX('FWD Data'!$AC$6:$AC$2006,MATCH(B13,'FWD Data'!$F$6:$F$2006,0),1) -> -94.9744567 | F13: =SUMMARY!P22 -> 0 | G13: =SUMMARY!R22 -> 0 | H13: =SUMMARY!S22 -> 0 | I13: =SUMMARY!T22 -> 0 | J13: =SUMMARY!V22 -> 4.239999962 | K13: =SUMMARY!E22 -> 0 | L13: =SUMMARY!H22 -> 0 | M13: =SUMMARY!I22 -> 0 | O13: 1

Sheet Sheet2 (hidden)
O10: 50000
O11: =O10+200000 -> 250000 | P11: 11.34920246 | Q11: 213723.9688 | R11: 142599.375 | S11: 17146.66211 | T11: 2246.804199 | U11: 60
O12: =O11+200000 -> 450000 | P12: 9.798220468 | Q12: 213723.9688 | R12: 142599.375 | S12: 17146.66211 | T12: 2246.804199 | U12: 60
O13: 650000 | P13: 8.937622361 | Q13: 213723.9688 | R13: 142599.375 | S13: 17146.66211 | T13: 2246.804199 | U13: 60
O14: 850000 | P14: 8.357869898 | Q14: 213723.9688 | R14: 142599.375 | S14: 17146.66211 | T14: 2246.804199 | U14: 60
O15: 1050000 | P15: 7.927805962 | Q15: 213723.9688 | R15: 142599.375 | S15: 17146.66211 | T15: 2246.804199 | U15: 60
O16: 1250000 | P16: 7.589668945 | Q16: 213723.9688 | R16: 142599.375 | S16: 17146.66211 | T16: 2246.804199 | U16: 60
O17: 1450000 | P17: 7.31321497 | Q17: 213723.9688 | R17: 142599.375 | S17: 17146.66211 | T17: 2246.804199 | U17: 60
O18: 1650000 | P18: 7.080751568 | Q18: 213723.9688 | R18: 142599.375 | S18: 17146.66211 | T18: 2246.804199 | U18: 60
O19: 1850000 | P19: 6.881092663 | Q19: 213723.9688 | R19: 142599.375 | S19: 17146.66211 | T19: 2246.804199 | U19: 60
O20: 2050000 | P20: 6.706746157 | Q20: 213723.9688 | R20: 142599.375 | S20: 17146.66211 | T20: 2246.804199 | U20: 60
O21: 2250000 | P21: 6.552465059 | Q21: 213723.9688 | R21: 142599.375 | S21: 17146.66211 | T21: 2246.804199 | U21: 60
O22: 2450000 | P22: 6.414441053 | Q22: 213723.9688 | R22: 142599.375 | S22: 17146.66211 | T22: 2246.804199 | U22: 60
O23: 2650000 | P23: 6.289829425 | Q23: 213723.9688 | R23: 142599.375 | S23: 17146.66211 | T23: 2246.804199 | U23: 60
O24: 2850000 | P24: 6.176452683 | Q24: 213723.9688 | R24: 142599.375 | S24: 17146.66211 | T24: 2246.804199 | U24: 60
O25: 3050000 | P25: 6.07260986 | Q25: 213723.9688 | R25: 142599.375 | S25: 17146.66211 | T25: 2246.804199 | U25: 60
O26: 3250000 | P26: 5.976948275 | Q26: 213723.9688 | R26: 142599.375 | S26: 17146.66211 | T26: 2246.804199 | U26: 60
O27: 3450000 | P27: 5.888376482 | Q27: 213723.9688 | R27: 142599.375 | S27: 17146.66211 | T27: 2246.804199 | U27: 60
O28: 3650000 | P28: 5.806001245 | Q28: 213723.9688 | R28: 142599.375 | S28: 17146.66211 | T28: 2246.804199 | U28: 60
O29: 3850000 | P29: 5.729083648 | Q29: 213723.9688 | R29: 142599.375 | S29: 17146.66211 | T29: 2246.804199 | U29: 60
O30: 4050000 | P30: 5.657005324 | Q30: 213723.9688 | R30: 142599.375 | S30: 17146.66211 | T30: 2246.804199 | U30: 60
F31: For Vlookup of r-value
F32: Moduli | G32: R-value
F33: 1160.301951 | G33: 0
F34: 1662.527773 | G34: 0.5
F35: 2151.17081 | G35: 1
F36: 2626.426863 | G36: 1.5
F37: 3088.491734 | G37: 2
F38: 3537.561222 | G38: 2.5
F39: 3973.83113 | G39: 3
F40: 4397.497258 | G40: 3.5
F41: 4808.755406 | G41: 4
F42: 5207.801377 | G42: 4.5
F43: 5594.830971 | G43: 5
F44: 5970.039988 | G44: 5.5
F45: 6333.624231 | G45: 6
F46: 6685.779499 | G46: 6.5
F47: 7026.701594 | G47: 7
F48: 7356.586316 | G48: 7.5
F49: 7675.629467 | G49: 8
F50: 7984.026848 | G50: 8.5
F51: 8281.97426 | G51: 9
F52: 8569.667502 | G52: 9.5
F53: 8847.302378 | G53: 10
F54: 9115.074686 | G54: 10.5
F55: 9373.18023 | G55: 11
F56: 9621.814808 | G56: 11.5
F57: 9861.174223 | G57: 12
F58: 10091.45427 | G58: 12.5
F59: 10312.85076 | G59: 13
F60: 10525.55949 | G60: 13.5
F61: 10729.77626 | G61: 14
F62: 10925.69687 | G62: 14.5
F63: 11113.51713 | G63: 15
F64: 11293.43282 | G64: 15.5
F65: 11465.63976 | G65: 16
F66: 11630.33374 | G66: 16.5
F67: 11787.71057 | G67: 17
F68: 11937.96605 | G68: 17.5
F69: 12081.29598 | G69: 18
F70: 12217.89615 | G70: 18.5
F71: 12347.96237 | G71: 19
F72: 12471.69045 | G72: 19.5
F73: 12589.27617 | G73: 20
F74: 12700.91535 | G74: 20.5
F75: 12806.80378 | G75: 21
F76: 12907.13726 | G76: 21.5
F77: 13002.1116 | G77: 22
F78: 13091.9226 | G78: 22.5
F79: 13176.76606 | G79: 23
F80: 13256.83777 | G80: 23.5
F81: 13332.33354 | G81: 24
F82: 13403.44917 | G82: 24.5
F83: 13470.38046 | G83: 25
F84: 13533.32322 | G84: 25.5
F85: 13592.47324 | G85: 26
F86: 13648.02632 | G86: 26.5
F87: 13700.17827 | G87: 27
F88: 13749.12488 | G88: 27.5
F89: 13795.06196 | G89: 28
F90: 13838.18531 | G90: 28.5
F91: 13878.69072 | G91: 29
F92: 13916.77401 | G92: 29.5
F93: 13952.63096 | G93: 30
F94: 13986.45739 | G94: 30.5
F95: 14018.44909 | G95: 31
F96: 14048.80186 | G96: 31.5
F97: 14077.71151 | G97: 32
F98: 14105.37384 | G98: 32.5
F99: 14131.98464 | G99: 33
F100: 14157.73971 | G100: 33.5
F101: 14182.83487 | G101: 34
F102: 14207.4659 | G102: 34.5
F103: 14231.82862 | G103: 35
F104: 14256.11882 | G104: 35.5
F105: 14280.53229 | G105: 36
F106: 14305.26486 | G106: 36.5
F107: 14330.5123 | G107: 37
F108: 14356.47043 | G108: 37.5
F109: 14383.33505 | G109: 38
F110: 14411.30195 | G110: 38.5
F111: 14440.56694 | G111: 39
F112: 14471.32582 | G112: 39.5
F113: 14503.77439 | G113: 40
F114: 14538.10845 | G114: 40.5
F115: 14574.5238 | G115: 41
F116: 14613.21625 | G116: 41.5
F117: 14654.38158 | G117: 42
F118: 14698.21562 | G118: 42.5
F119: 14744.91414 | G119: 43
F120: 14794.67297 | G120: 43.5
F121: 14847.68789 | G121: 44
F122: 14904.15471 | G122: 44.5
F123: 14964.26923 | G123: 45
F124: 15028.22725 | G124: 45.5
F125: 15096.22457 | G125: 46
F126: 15168.45699 | G126: 46.5
F127: 15245.12031 | G127: 47
F128: 15326.41034 | G128: 47.5
F129: 15412.52288 | G129: 48
F130: 15503.65372 | G130: 48.5
F131: 15599.99867 | G131: 49
F132: 15701.75352 | G132: 49.5
F133: 15809.11408 | G133: 50
F134: 15922.27616 | G134: 50.5
F135: 16041.43554 | G135: 51
F136: 16166.78804 | G136: 51.5
F137: 16298.52945 | G137: 52
F138: 16436.85557 | G138: 52.5
F139: 16581.96221 | G139: 53
F140: 16734.04516 | G140: 53.5
F141: 16893.30023 | G141: 54
F142: 17059.92321 | G142: 54.5
F143: 17234.10992 | G143: 55
F144: 17416.05614 | G144: 55.5
F145: 17605.95769 | G145: 56
F146: 17804.01035 | G146: 56.5
F147: 18010.40994 | G147: 57
F148: 18225.35225 | G148: 57.5
F149: 18449.03308 | G149: 58
F150: 18681.64824 | G150: 58.5
F151: 18923.39353 | G151: 59
F152: 19174.46474 | G152: 59.5
F153: 19435.05768 | G153: 60
F154: 19705.36815 | G154: 60.5
F155: 19985.59195 | G155: 61
F156: 20275.92488 | G156: 61.5
F157: 20576.56274 | G157: 62
F158: 20887.70134 | G158: 62.5
F159: 21209.53646 | G159: 63
F160: 21542.26393 | G160: 63.5
F161: 21886.07952 | G161: 64
F162: 22241.17906 | G162: 64.5
F163: 22607.75833 | G163: 65
F164: 22986.01314 | G164: 65.5
F165: 23376.13929 | G165: 66
F166: 23778.33258 | G166: 66.5
F167: 24192.78881 | G167: 67
F168: 24619.70378 | G168: 67.5
F169: 25059.2733 | G169: 68
F170: 25511.69316 | G170: 68.5
F171: 25977.15917 | G171: 69
F172: 26455.86712 | G172: 69.5
F173: 26948.01282 | G173: 70
